{"text_format":"1","workbook":"xlsx","n_sheets":10,"sheets":["説明","基本情報登録","総括表情報登録","入力","組合届","組合控","年金","健保総括表","年金総括表","Sheet2"],"not_rendered":{"charts":0,"images":2,"macros":1,"external_links":0,"defined_names":0,"comments":0,"pivot_tables":0},"unopened":[],"bounds":{"document_bytes":16777216,"sheet_cells":100000,"rows_first":2000,"rows_last":500,"rows_between":2000,"halvings":0,"cell_chars":16384,"cell_head_chars":4096},"cells_cut":0,"cells_raw":0,"read":"whole","date_system":"1900"}

{"sheet":"説明","index":0,"n_rows":28,"n_cols":3,"rows_kept":28,"cut":false,"hidden":false,"merged":[[17,2,17,12],[18,2,18,12],[19,2,19,12],[20,2,20,12],[13,1,16,1],[17,1,20,1],[16,2,16,12],[11,2,11,12],[12,2,12,12],[13,2,13,12],[14,2,14,12],[15,2,15,12],[10,2,10,12],[5,2,5,12],[6,2,6,12],[4,2,4,12],[7,2,7,12],[8,2,8,12]]}
[]
["１．","シート「事業所基本情報登録」で貴事業所の基本情報を入力してください。"]
["２．","シート「総括表情報登録」で賞与情報を入力してください。"]
["３．","シート「入力」の入力について"]
[null,null,"通番…通番を入れているので削除しないでください。"]
[null,"必須","健保番号…健康保険証の番号を入力してください。"]
[null,"必須","被保険者氏名…被保険者氏名を入力してください。"]
[null,"必須","生年月日…被保険者の生年月日を入力してください。"]
[null,"必須","金銭賞与額…支払った賞与額を1円単位まで入力してください。"]
[]
[null,"ほぼ不要","現物賞与額…ブランクで結構です。"]
[null,"ほぼ不要","年金番号…健保の番号と年金の番号が違う方のみ入力して下さい。"]
[null,"ほぼ不要","賞与支払年月日…総括表情報登録で入力した賞与支払年月日と違う日に支給した場合のみ入力して下さい。"]
[null,"該当者がいるとき","備考"]
[null,null,"1：７０歳以上の方への支給であり、７０歳被用者届を兼ねる場合に「1」を入力。"]
[null,null,"2：二以上事業所勤務者であり、非該当事業所からも賞与が支給された場合に「2」を入力。"]
[null,null,"3：同月内で２回賞与を払った場合に「3」を入力。"]
[null,"備考を入力した場合","備考１の場合…個人番号１２桁を入力して下さい。"]
[null,null,"※ここに入力された個人番号は年金の届にのみ反映されます。"]
[null,null,"備考２の場合…非選択事業所で支給された賞与額を入力して下さい。"]
[null,null,"備考３の場合…同一月に支払った１回目の賞与支給日を入力して下さい。"]
[]
["４．届の印刷について"]
[null,"シート「入力」の"]
[null,"開始番号…印刷を開始する通番（通常は「1」）を入力してください。"]
[null,"終了番号…印刷を終了する通番を入力してください。"]
[null,"入力後「総括表印刷」と「賞与支払届印刷」をクリックしてください。"]
["５．このブックはマクロを使用していますのでマクロを有効にしてご使用ください。"]

{"sheet":"基本情報登録","index":1,"n_rows":11,"n_cols":5,"rows_kept":11,"cut":false,"hidden":false,"merged":[[6,4,6,11],[7,4,7,11],[8,4,8,11],[9,4,9,11],[10,4,10,11],[5,4,5,11],[1,4,1,11],[2,1,3,1],[2,4,2,11],[3,4,3,11],[4,4,4,11]]}
[]
[null,"提出年月日",{"$f":"TODAY()","v":"2021-04-22"},null,"TODAY関数が入力されています。提出日を変更する場合のみ入力してください。"]
[null,"年金整理記号","南",null,"年金記号の「南」、「北」、「豊中」を入力してください。"]
[null,null,"ＷＥＤ",null,"年金記号の「ＷＥＤ」、「ＳＦＨ」を入力してください"]
[null,"年金納入告知書番号","00687",null,"「00687」のように必ず５ケタの数字を入力してください。"]
[null,"健康保険記号","532",null,"健康保険の記号を入力してください。"]
[null,"郵便番号","542-0066",null,"「542-0066」と－（ハイフン）を入力してください。"]
[null,"事業所所在地","大阪府大阪市中央区瓦屋町2-3-1",null,"住所が長い場合は、Alt+Enterで折り返してください。"]
[null,"事業所名称","大阪自動車整備健康保険組合",null,"事業所名を入力してください。"]
[null,"事業主氏名","理事長　健保　太郎",null,"代表者名を入力してください。"]
[null,"電話番号","06-6762-6371",null,"「06-6762-6371」と－（ハイフン)を入力してください。"]

{"sheet":"総括表情報登録","index":2,"n_rows":5,"n_cols":5,"rows_kept":5,"cut":false,"hidden":false,"merged":[[1,4,1,11],[2,4,2,11],[3,4,3,11],[4,4,4,11]]}
[]
[null,"賞与支払年月日",null,null,"「H30.12.25」のように和暦で入力して下さい。"]
[null,"賞与支払人数",null,null,"賞与を支払った人数を入力してください。"]
[null,"賞与名称",null,null,"「夏期賞与」「冬期賞与」「決算手当」「役員賞与」等入力してください。"]
[null,"総被保険者数",null,null,"現在の事業所の被保険者の総数(賞与を支給していない人も含む）を記入。"]

{"sheet":"入力","index":3,"n_rows":501,"n_cols":17,"rows_kept":501,"cut":false,"hidden":false,"merged":[]}
["通番","健保\n番号","被保険者氏名","生年月日","金銭賞与額","現物賞与額","年金\n番号","賞与支払\n年月日","備考","備考1の場合\n個人番号","備考2の場合\n非選択支給額","備考3の場合\n支給日","年金\n番号2","賞与額"]
[1,35,"健保　一郎","1968-11-01",12345678,null,69,null,1,"123456789012",null,null,{"$f":"IF(ISNUMBER(G2),G2,B2)","v":69},{"$f":"IF(ISNUMBER(K2),ROUNDDOWN(E2+F2+K2,-3),ROUNDDOWN(E2+F2,-3))","v":12345000}]
[2,36,"健保　次郎","1969-11-01",1538500,null,null,null,2,null,12345678,null,36,{"$f":"IF(ISNUMBER(K3),ROUNDDOWN(E3+F3+K3,-3),ROUNDDOWN(E3+F3,-3))","v":13884000},null,"開始番号",1]
[3,37,"健保　三朗","1970-11-01",2001250,50000,null,"2018-12-15",3,null,null,"2018-12-02",37,2051000,null,"終了番号",10]
[4,38,"健保　四郎","1971-11-01",459638,null,null,null,null,null,null,null,38,459000]
[5,41,"健保　五郎","1972-11-01",1500000,null,null,null,null,null,null,null,41,1500000]
[6,42,"健保　六郎","1973-11-01",1000000,null,43,null,1,"987654321098",null,null,43,1000000]
[7,43,"健保　七郎","1974-11-01",1200000,null,44,"2018-12-06",2,null,502385,null,44,1702000]
[8,45,"健保　八郎","1975-11-01",1700000,null,null,"2018-12-07",3,null,null,"2018-12-10",45,1700000]
[9,52,"健保　九郎","1976-11-01",1200000,null,null,null,null,null,null,null,52,1200000]
[10,60,"健保　十郎","1977-11-01",5500000,null,null,null,null,null,null,null,60,5500000]
[11,61,"健保　十一郎","1978-11-01",3500000,null,null,null,null,null,null,null,61,3500000]
[12,65,"健保　十二朗","1979-11-01",1500000,null,null,null,1,"111122223333",null,null,65,1500000]
[13,67,"健保　十三朗","1980-11-01",1253,null,null,null,null,null,null,null,67,1000]
[14,null,null,null,null,null,null,null,null,null,null,null,0,0]
[15,null,null,null,null,null,null,null,null,null,null,null,{"$f":"IF(ISNUMBER(G16),G16,B16)","v":0},{"$f":"IF(ISNUMBER(K16),ROUNDDOWN(E16+F16+K16,-3),ROUNDDOWN(E16+F16,-3))","v":0}]
[16,null,null,null,null,null,null,null,null,null,null,null,0,0]
[17,null,null,null,null,null,null,null,null,null,null,null,0,0]
[18,null,null,null,null,null,null,null,null,null,null,null,0,0]
[19,null,null,null,null,null,null,null,null,null,null,null,0,0]
[20,null,null,null,null,null,null,null,null,null,null,null,0,0]
[21,null,null,null,null,null,null,null,null,null,null,null,0,0]
[22,null,null,null,null,null,null,null,null,null,null,null,0,0]
[23,null,null,null,null,null,null,null,null,null,null,null,0,0]
[24,null,null,null,null,null,null,null,null,null,null,null,0,0]
[25,null,null,null,null,null,null,null,null,null,null,null,0,0]
[26,null,null,null,null,null,null,null,null,null,null,null,0,0]
[27,null,null,null,null,null,null,null,null,null,null,null,0,0]
[28,null,null,null,null,null,null,null,null,null,null,null,0,0]
[29,null,null,null,null,null,null,null,null,null,null,null,0,0]
[30,null,null,null,null,null,null,null,null,null,null,null,0,0]
[31,null,null,null,null,null,null,null,null,null,null,null,0,0]
[32,null,null,null,null,null,null,null,null,null,null,null,0,0]
[33,null,null,null,null,null,null,null,null,null,null,null,0,0]
[34,null,null,null,null,null,null,null,null,null,null,null,0,0]
[35,null,null,null,null,null,null,null,null,null,null,null,0,0]
[36,null,null,null,null,null,null,null,null,null,null,null,0,0]
[37,null,null,null,null,null,null,null,null,null,null,null,0,0]
[38,null,null,null,null,null,null,null,null,null,null,null,0,0]
[39,null,null,null,null,null,null,null,null,null,null,null,0,0]
[40,null,null,null,null,null,null,null,null,null,null,null,0,0]
[41,null,null,null,null,null,null,null,null,null,null,null,0,0]
[42,null,null,null,null,null,null,null,null,null,null,null,0,0]
[43,null,null,null,null,null,null,null,null,null,null,null,0,0]
[44,null,null,null,null,null,null,null,null,null,null,null,0,0]
[45,null,null,null,null,null,null,null,null,null,null,null,0,0]
[46,null,null,null,null,null,null,null,null,null,null,null,0,0]
[47,null,null,null,null,null,null,null,null,null,null,null,0,0]
[48,null,null,null,null,null,null,null,null,null,null,null,0,0]
[49,null,null,null,null,null,null,null,null,null,null,null,0,0]
[50,null,null,null,null,null,null,null,null,null,null,null,0,0]
[51,null,null,null,null,null,null,null,null,null,null,null,0,0]
[52,null,null,null,null,null,null,null,null,null,null,null,0,0]
[53,null,null,null,null,null,null,null,null,null,null,null,0,0]
[54,null,null,null,null,null,null,null,null,null,null,null,0,0]
[55,null,null,null,null,null,null,null,null,null,null,null,0,0]
[56,null,null,null,null,null,null,null,null,null,null,null,0,0]
[57,null,null,null,null,null,null,null,null,null,null,null,0,0]
[58,null,null,null,null,null,null,null,null,null,null,null,0,0]
[59,null,null,null,null,null,null,null,null,null,null,null,0,0]
[60,null,null,null,null,null,null,null,null,null,null,null,0,0]
[61,null,null,null,null,null,null,null,null,null,null,null,0,0]
[62,null,null,null,null,null,null,null,null,null,null,null,0,0]
[63,null,null,null,null,null,null,null,null,null,null,null,0,0]
[64,null,null,null,null,null,null,null,null,null,null,null,0,0]
[65,null,null,null,null,null,null,null,null,null,null,null,0,0]
[66,null,null,null,null,null,null,null,null,null,null,null,0,0]
[67,null,null,null,null,null,null,null,null,null,null,null,0,0]
[68,null,null,null,null,null,null,null,null,null,null,null,0,0]
[69,null,null,null,null,null,null,null,null,null,null,null,0,0]
[70,null,null,null,null,null,null,null,null,null,null,null,0,0]
[71,null,null,null,null,null,null,null,null,null,null,null,0,0]
[72,null,null,null,null,null,null,null,null,null,null,null,0,0]
[73,null,null,null,null,null,null,null,null,null,null,null,0,0]
[74,null,null,null,null,null,null,null,null,null,null,null,0,0]
[75,null,null,null,null,null,null,null,null,null,null,null,0,0]
[76,null,null,null,null,null,null,null,null,null,null,null,0,0]
[77,null,null,null,null,null,null,null,null,null,null,null,0,0]
[78,null,null,null,null,null,null,null,null,null,null,null,0,0]
[79,null,null,null,null,null,null,null,null,null,null,null,{"$f":"IF(ISNUMBER(G80),G80,B80)","v":0},{"$f":"IF(ISNUMBER(K80),ROUNDDOWN(E80+F80+K80,-3),ROUNDDOWN(E80+F80,-3))","v":0}]
[80,null,null,null,null,null,null,null,null,null,null,null,0,0]
[81,null,null,null,null,null,null,null,null,null,null,null,0,0]
[82,null,null,null,null,null,null,null,null,null,null,null,0,0]
[83,null,null,null,null,null,null,null,null,null,null,null,0,0]
[84,null,null,null,null,null,null,null,null,null,null,null,0,0]
[85,null,null,null,null,null,null,null,null,null,null,null,0,0]
[86,null,null,null,null,null,null,null,null,null,null,null,0,0]
[87,null,null,null,null,null,null,null,null,null,null,null,0,0]
[88,null,null,null,null,null,null,null,null,null,null,null,0,0]
[89,null,null,null,null,null,null,null,null,null,null,null,0,0]
[90,null,null,null,null,null,null,null,null,null,null,null,0,0]
[91,null,null,null,null,null,null,null,null,null,null,null,0,0]
[92,null,null,null,null,null,null,null,null,null,null,null,0,0]
[93,null,null,null,null,null,null,null,null,null,null,null,0,0]
[94,null,null,null,null,null,null,null,null,null,null,null,0,0]
[95,null,null,null,null,null,null,null,null,null,null,null,0,0]
[96,null,null,null,null,null,null,null,null,null,null,null,0,0]
[97,null,null,null,null,null,null,null,null,null,null,null,0,0]
[98,null,null,null,null,null,null,null,null,null,null,null,0,0]
[99,null,null,null,null,null,null,null,null,null,null,null,0,0]
[100,null,null,null,null,null,null,null,null,null,null,null,0,0]
[101,null,null,null,null,null,null,null,null,null,null,null,{"$f":"IF(ISNUMBER(G102),G102,B102)","v":0},{"$f":"IF(ISNUMBER(K102),ROUNDDOWN(E102+F102+K102,-3),ROUNDDOWN(E102+F102,-3))","v":0}]
[102,null,null,null,null,null,null,null,null,null,null,null,{"$f":"IF(ISNUMBER(G103),G103,B103)","v":0},{"$f":"IF(ISNUMBER(K103),ROUNDDOWN(E103+F103+K103,-3),ROUNDDOWN(E103+F103,-3))","v":0}]
[103,null,null,null,null,null,null,null,null,null,null,null,0,0]
[104,null,null,null,null,null,null,null,null,null,null,null,{"$f":"IF(ISNUMBER(G105),G105,B105)","v":0},{"$f":"IF(ISNUMBER(K105),ROUNDDOWN(E105+F105+K105,-3),ROUNDDOWN(E105+F105,-3))","v":0}]
[105,null,null,null,null,null,null,null,null,null,null,null,0,0]
[106,null,null,null,null,null,null,null,null,null,null,null,0,0]
[107,null,null,null,null,null,null,null,null,null,null,null,0,0]
[108,null,null,null,null,null,null,null,null,null,null,null,0,0]
[109,null,null,null,null,null,null,null,null,null,null,null,0,0]
[110,null,null,null,null,null,null,null,null,null,null,null,0,0]
[111,null,null,null,null,null,null,null,null,null,null,null,0,0]
[112,null,null,null,null,null,null,null,null,null,null,null,0,0]
[113,null,null,null,null,null,null,null,null,null,null,null,0,0]
[114,null,null,null,null,null,null,null,null,null,null,null,0,0]
[115,null,null,null,null,null,null,null,null,null,null,null,0,0]
[116,null,null,null,null,null,null,null,null,null,null,null,0,0]
[117,null,null,null,null,null,null,null,null,null,null,null,0,0]
[118,null,null,null,null,null,null,null,null,null,null,null,0,0]
[119,null,null,null,null,null,null,null,null,null,null,null,0,0]
[120,null,null,null,null,null,null,null,null,null,null,null,0,0]
[121,null,null,null,null,null,null,null,null,null,null,null,0,0]
[122,null,null,null,null,null,null,null,null,null,null,null,0,0]
[123,null,null,null,null,null,null,null,null,null,null,null,0,0]
[124,null,null,null,null,null,null,null,null,null,null,null,0,0]
[125,null,null,null,null,null,null,null,null,null,null,null,0,0]
[126,null,null,null,null,null,null,null,null,null,null,null,0,0]
[127,null,null,null,null,null,null,null,null,null,null,null,0,0]
[128,null,null,null,null,null,null,null,null,null,null,null,0,0]
[129,null,null,null,null,null,null,null,null,null,null,null,0,0]
[130,null,null,null,null,null,null,null,null,null,null,null,0,0]
[131,null,null,null,null,null,null,null,null,null,null,null,0,0]
[132,null,null,null,null,null,null,null,null,null,null,null,0,0]
[133,null,null,null,null,null,null,null,null,null,null,null,0,0]
[134,null,null,null,null,null,null,null,null,null,null,null,0,0]
[135,null,null,null,null,null,null,null,null,null,null,null,0,0]
[136,null,null,null,null,null,null,null,null,null,null,null,0,0]
[137,null,null,null,null,null,null,null,null,null,null,null,0,0]
[138,null,null,null,null,null,null,null,null,null,null,null,0,0]
[139,null,null,null,null,null,null,null,null,null,null,null,0,0]
[140,null,null,null,null,null,null,null,null,null,null,null,0,0]
[141,null,null,null,null,null,null,null,null,null,null,null,0,0]
[142,null,null,null,null,null,null,null,null,null,null,null,0,0]
[143,null,null,null,null,null,null,null,null,null,null,null,0,0]
[144,null,null,null,null,null,null,null,null,null,null,null,0,0]
[145,null,null,null,null,null,null,null,null,null,null,null,0,0]
[146,null,null,null,null,null,null,null,null,null,null,null,0,0]
[147,null,null,null,null,null,null,null,null,null,null,null,0,0]
[148,null,null,null,null,null,null,null,null,null,null,null,0,0]
[149,null,null,null,null,null,null,null,null,null,null,null,0,0]
[150,null,null,null,null,null,null,null,null,null,null,null,0,0]
[151,null,null,null,null,null,null,null,null,null,null,null,0,0]
[152,null,null,null,null,null,null,null,null,null,null,null,0,0]
[153,null,null,null,null,null,null,null,null,null,null,null,0,0]
[154,null,null,null,null,null,null,null,null,null,null,null,0,0]
[155,null,null,null,null,null,null,null,null,null,null,null,0,0]
[156,null,null,null,null,null,null,null,null,null,null,null,0,0]
[157,null,null,null,null,null,null,null,null,null,null,null,0,0]
[158,null,null,null,null,null,null,null,null,null,null,null,0,0]
[159,null,null,null,null,null,null,null,null,null,null,null,0,0]
[160,null,null,null,null,null,null,null,null,null,null,null,0,0]
[161,null,null,null,null,null,null,null,null,null,null,null,0,0]
[162,null,null,null,null,null,null,null,null,null,null,null,0,0]
[163,null,null,null,null,null,null,null,null,null,null,null,0,0]
[164,null,null,null,null,null,null,null,null,null,null,null,0,0]
[165,null,null,null,null,null,null,null,null,null,null,null,0,0]
[166,null,null,null,null,null,null,null,null,null,null,null,0,0]
[167,null,null,null,null,null,null,null,null,null,null,null,0,0]
[168,null,null,null,null,null,null,null,null,null,null,null,{"$f":"IF(ISNUMBER(G169),G169,B169)","v":0},{"$f":"IF(ISNUMBER(K169),ROUNDDOWN(E169+F169+K169,-3),ROUNDDOWN(E169+F169,-3))","v":0}]
[169,null,null,null,null,null,null,null,null,null,null,null,0,0]
[170,null,null,null,null,null,null,null,null,null,null,null,0,0]
[171,null,null,null,null,null,null,null,null,null,null,null,0,0]
[172,null,null,null,null,null,null,null,null,null,null,null,0,0]
[173,null,null,null,null,null,null,null,null,null,null,null,0,0]
[174,null,null,null,null,null,null,null,null,null,null,null,0,0]
[175,null,null,null,null,null,null,null,null,null,null,null,0,0]
[176,null,null,null,null,null,null,null,null,null,null,null,0,0]
[177,null,null,null,null,null,null,null,null,null,null,null,0,0]
[178,null,null,null,null,null,null,null,null,null,null,null,0,0]
[179,null,null,null,null,null,null,null,null,null,null,null,0,0]
[180,null,null,null,null,null,null,null,null,null,null,null,0,0]
[181,null,null,null,null,null,null,null,null,null,null,null,0,0]
[182,null,null,null,null,null,null,null,null,null,null,null,0,0]
[183,null,null,null,null,null,null,null,null,null,null,null,0,0]
[184,null,null,null,null,null,null,null,null,null,null,null,0,0]
[185,null,null,null,null,null,null,null,null,null,null,null,0,0]
[186,null,null,null,null,null,null,null,null,null,null,null,0,0]
[187,null,null,null,null,null,null,null,null,null,null,null,0,0]
[188,null,null,null,null,null,null,null,null,null,null,null,0,0]
[189,null,null,null,null,null,null,null,null,null,null,null,0,0]
[190,null,null,null,null,null,null,null,null,null,null,null,0,0]
[191,null,null,null,null,null,null,null,null,null,null,null,0,0]
[192,null,null,null,null,null,null,null,null,null,null,null,0,0]
[193,null,null,null,null,null,null,null,null,null,null,null,0,0]
[194,null,null,null,null,null,null,null,null,null,null,null,0,0]
[195,null,null,null,null,null,null,null,null,null,null,null,0,0]
[196,null,null,null,null,null,null,null,null,null,null,null,0,0]
[197,null,null,null,null,null,null,null,null,null,null,null,0,0]
[198,null,null,null,null,null,null,null,null,null,null,null,0,0]
[199,null,null,null,null,null,null,null,null,null,null,null,0,0]
[200,null,null,null,null,null,null,null,null,null,null,null,0,0]
[201,null,null,null,null,null,null,null,null,null,null,null,0,0]
[202,null,null,null,null,null,null,null,null,null,null,null,0,0]
[203,null,null,null,null,null,null,null,null,null,null,null,0,0]
[204,null,null,null,null,null,null,null,null,null,null,null,0,0]
[205,null,null,null,null,null,null,null,null,null,null,null,0,0]
[206,null,null,null,null,null,null,null,null,null,null,null,0,0]
[207,null,null,null,null,null,null,null,null,null,null,null,0,0]
[208,null,null,null,null,null,null,null,null,null,null,null,0,0]
[209,null,null,null,null,null,null,null,null,null,null,null,0,0]
[210,null,null,null,null,null,null,null,null,null,null,null,0,0]
[211,null,null,null,null,null,null,null,null,null,null,null,0,0]
[212,null,null,null,null,null,null,null,null,null,null,null,0,0]
[213,null,null,null,null,null,null,null,null,null,null,null,0,0]
[214,null,null,null,null,null,null,null,null,null,null,null,0,0]
[215,null,null,null,null,null,null,null,null,null,null,null,0,0]
[216,null,null,null,null,null,null,null,null,null,null,null,0,0]
[217,null,null,null,null,null,null,null,null,null,null,null,0,0]
[218,null,null,null,null,null,null,null,null,null,null,null,0,0]
[219,null,null,null,null,null,null,null,null,null,null,null,0,0]
[220,null,null,null,null,null,null,null,null,null,null,null,0,0]
[221,null,null,null,null,null,null,null,null,null,null,null,0,0]
[222,null,null,null,null,null,null,null,null,null,null,null,0,0]
[223,null,null,null,null,null,null,null,null,null,null,null,0,0]
[224,null,null,null,null,null,null,null,null,null,null,null,0,0]
[225,null,null,null,null,null,null,null,null,null,null,null,0,0]
[226,null,null,null,null,null,null,null,null,null,null,null,0,0]
[227,null,null,null,null,null,null,null,null,null,null,null,0,0]
[228,null,null,null,null,null,null,null,null,null,null,null,0,0]
[229,null,null,null,null,null,null,null,null,null,null,null,0,0]
[230,null,null,null,null,null,null,null,null,null,null,null,0,0]
[231,null,null,null,null,null,null,null,null,null,null,null,0,0]
[232,null,null,null,null,null,null,null,null,null,null,null,{"$f":"IF(ISNUMBER(G233),G233,B233)","v":0},{"$f":"IF(ISNUMBER(K233),ROUNDDOWN(E233+F233+K233,-3),ROUNDDOWN(E233+F233,-3))","v":0}]
[233,null,null,null,null,null,null,null,null,null,null,null,0,0]
[234,null,null,null,null,null,null,null,null,null,null,null,0,0]
[235,null,null,null,null,null,null,null,null,null,null,null,0,0]
[236,null,null,null,null,null,null,null,null,null,null,null,0,0]
[237,null,null,null,null,null,null,null,null,null,null,null,0,0]
[238,null,null,null,null,null,null,null,null,null,null,null,0,0]
[239,null,null,null,null,null,null,null,null,null,null,null,0,0]
[240,null,null,null,null,null,null,null,null,null,null,null,0,0]
[241,null,null,null,null,null,null,null,null,null,null,null,0,0]
[242,null,null,null,null,null,null,null,null,null,null,null,0,0]
[243,null,null,null,null,null,null,null,null,null,null,null,0,0]
[244,null,null,null,null,null,null,null,null,null,null,null,0,0]
[245,null,null,null,null,null,null,null,null,null,null,null,0,0]
[246,null,null,null,null,null,null,null,null,null,null,null,0,0]
[247,null,null,null,null,null,null,null,null,null,null,null,0,0]
[248,null,null,null,null,null,null,null,null,null,null,null,0,0]
[249,null,null,null,null,null,null,null,null,null,null,null,0,0]
[250,null,null,null,null,null,null,null,null,null,null,null,0,0]
[251,null,null,null,null,null,null,null,null,null,null,null,0,0]
[252,null,null,null,null,null,null,null,null,null,null,null,0,0]
[253,null,null,null,null,null,null,null,null,null,null,null,0,0]
[254,null,null,null,null,null,null,null,null,null,null,null,0,0]
[255,null,null,null,null,null,null,null,null,null,null,null,0,0]
[256,null,null,null,null,null,null,null,null,null,null,null,0,0]
[257,null,null,null,null,null,null,null,null,null,null,null,0,0]
[258,null,null,null,null,null,null,null,null,null,null,null,0,0]
[259,null,null,null,null,null,null,null,null,null,null,null,0,0]
[260,null,null,null,null,null,null,null,null,null,null,null,0,0]
[261,null,null,null,null,null,null,null,null,null,null,null,0,0]
[262,null,null,null,null,null,null,null,null,null,null,null,0,0]
[263,null,null,null,null,null,null,null,null,null,null,null,0,0]
[264,null,null,null,null,null,null,null,null,null,null,null,0,0]
[265,null,null,null,null,null,null,null,null,null,null,null,0,0]
[266,null,null,null,null,null,null,null,null,null,null,null,0,0]
[267,null,null,null,null,null,null,null,null,null,null,null,0,0]
[268,null,null,null,null,null,null,null,null,null,null,null,0,0]
[269,null,null,null,null,null,null,null,null,null,null,null,0,0]
[270,null,null,null,null,null,null,null,null,null,null,null,0,0]
[271,null,null,null,null,null,null,null,null,null,null,null,0,0]
[272,null,null,null,null,null,null,null,null,null,null,null,0,0]
[273,null,null,null,null,null,null,null,null,null,null,null,0,0]
[274,null,null,null,null,null,null,null,null,null,null,null,0,0]
[275,null,null,null,null,null,null,null,null,null,null,null,0,0]
[276,null,null,null,null,null,null,null,null,null,null,null,0,0]
[277,null,null,null,null,null,null,null,null,null,null,null,0,0]
[278,null,null,null,null,null,null,null,null,null,null,null,0,0]
[279,null,null,null,null,null,null,null,null,null,null,null,0,0]
[280,null,null,null,null,null,null,null,null,null,null,null,0,0]
[281,null,null,null,null,null,null,null,null,null,null,null,0,0]
[282,null,null,null,null,null,null,null,null,null,null,null,0,0]
[283,null,null,null,null,null,null,null,null,null,null,null,0,0]
[284,null,null,null,null,null,null,null,null,null,null,null,0,0]
[285,null,null,null,null,null,null,null,null,null,null,null,0,0]
[286,null,null,null,null,null,null,null,null,null,null,null,0,0]
[287,null,null,null,null,null,null,null,null,null,null,null,0,0]
[288,null,null,null,null,null,null,null,null,null,null,null,0,0]
[289,null,null,null,null,null,null,null,null,null,null,null,0,0]
[290,null,null,null,null,null,null,null,null,null,null,null,0,0]
[291,null,null,null,null,null,null,null,null,null,null,null,0,0]
[292,null,null,null,null,null,null,null,null,null,null,null,0,0]
[293,null,null,null,null,null,null,null,null,null,null,null,0,0]
[294,null,null,null,null,null,null,null,null,null,null,null,0,0]
[295,null,null,null,null,null,null,null,null,null,null,null,0,0]
[296,null,null,null,null,null,null,null,null,null,null,null,{"$f":"IF(ISNUMBER(G297),G297,B297)","v":0},{"$f":"IF(ISNUMBER(K297),ROUNDDOWN(E297+F297+K297,-3),ROUNDDOWN(E297+F297,-3))","v":0}]
[297,null,null,null,null,null,null,null,null,null,null,null,0,0]
[298,null,null,null,null,null,null,null,null,null,null,null,0,0]
[299,null,null,null,null,null,null,null,null,null,null,null,0,0]
[300,null,null,null,null,null,null,null,null,null,null,null,0,0]
[301,null,null,null,null,null,null,null,null,null,null,null,0,0]
[302,null,null,null,null,null,null,null,null,null,null,null,0,0]
[303,null,null,null,null,null,null,null,null,null,null,null,0,0]
[304,null,null,null,null,null,null,null,null,null,null,null,0,0]
[305,null,null,null,null,null,null,null,null,null,null,null,0,0]
[306,null,null,null,null,null,null,null,null,null,null,null,0,0]
[307,null,null,null,null,null,null,null,null,null,null,null,0,0]
[308,null,null,null,null,null,null,null,null,null,null,null,0,0]
[309,null,null,null,null,null,null,null,null,null,null,null,0,0]
[310,null,null,null,null,null,null,null,null,null,null,null,0,0]
[311,null,null,null,null,null,null,null,null,null,null,null,0,0]
[312,null,null,null,null,null,null,null,null,null,null,null,0,0]
[313,null,null,null,null,null,null,null,null,null,null,null,0,0]
[314,null,null,null,null,null,null,null,null,null,null,null,0,0]
[315,null,null,null,null,null,null,null,null,null,null,null,0,0]
[316,null,null,null,null,null,null,null,null,null,null,null,0,0]
[317,null,null,null,null,null,null,null,null,null,null,null,0,0]
[318,null,null,null,null,null,null,null,null,null,null,null,0,0]
[319,null,null,null,null,null,null,null,null,null,null,null,0,0]
[320,null,null,null,null,null,null,null,null,null,null,null,0,0]
[321,null,null,null,null,null,null,null,null,null,null,null,0,0]
[322,null,null,null,null,null,null,null,null,null,null,null,0,0]
[323,null,null,null,null,null,null,null,null,null,null,null,0,0]
[324,null,null,null,null,null,null,null,null,null,null,null,0,0]
[325,null,null,null,null,null,null,null,null,null,null,null,0,0]
[326,null,null,null,null,null,null,null,null,null,null,null,0,0]
[327,null,null,null,null,null,null,null,null,null,null,null,0,0]
[328,null,null,null,null,null,null,null,null,null,null,null,0,0]
[329,null,null,null,null,null,null,null,null,null,null,null,0,0]
[330,null,null,null,null,null,null,null,null,null,null,null,0,0]
[331,null,null,null,null,null,null,null,null,null,null,null,0,0]
[332,null,null,null,null,null,null,null,null,null,null,null,0,0]
[333,null,null,null,null,null,null,null,null,null,null,null,0,0]
[334,null,null,null,null,null,null,null,null,null,null,null,0,0]
[335,null,null,null,null,null,null,null,null,null,null,null,0,0]
[336,null,null,null,null,null,null,null,null,null,null,null,0,0]
[337,null,null,null,null,null,null,null,null,null,null,null,0,0]
[338,null,null,null,null,null,null,null,null,null,null,null,0,0]
[339,null,null,null,null,null,null,null,null,null,null,null,0,0]
[340,null,null,null,null,null,null,null,null,null,null,null,0,0]
[341,null,null,null,null,null,null,null,null,null,null,null,0,0]
[342,null,null,null,null,null,null,null,null,null,null,null,0,0]
[343,null,null,null,null,null,null,null,null,null,null,null,0,0]
[344,null,null,null,null,null,null,null,null,null,null,null,0,0]
[345,null,null,null,null,null,null,null,null,null,null,null,0,0]
[346,null,null,null,null,null,null,null,null,null,null,null,0,0]
[347,null,null,null,null,null,null,null,null,null,null,null,0,0]
[348,null,null,null,null,null,null,null,null,null,null,null,0,0]
[349,null,null,null,null,null,null,null,null,null,null,null,0,0]
[350,null,null,null,null,null,null,null,null,null,null,null,0,0]
[351,null,null,null,null,null,null,null,null,null,null,null,0,0]
[352,null,null,null,null,null,null,null,null,null,null,null,0,0]
[353,null,null,null,null,null,null,null,null,null,null,null,0,0]
[354,null,null,null,null,null,null,null,null,null,null,null,0,0]
[355,null,null,null,null,null,null,null,null,null,null,null,0,0]
[356,null,null,null,null,null,null,null,null,null,null,null,0,0]
[357,null,null,null,null,null,null,null,null,null,null,null,0,0]
[358,null,null,null,null,null,null,null,null,null,null,null,0,0]
[359,null,null,null,null,null,null,null,null,null,null,null,0,0]
[360,null,null,null,null,null,null,null,null,null,null,null,{"$f":"IF(ISNUMBER(G361),G361,B361)","v":0},{"$f":"IF(ISNUMBER(K361),ROUNDDOWN(E361+F361+K361,-3),ROUNDDOWN(E361+F361,-3))","v":0}]
[361,null,null,null,null,null,null,null,null,null,null,null,0,0]
[362,null,null,null,null,null,null,null,null,null,null,null,0,0]
[363,null,null,null,null,null,null,null,null,null,null,null,0,0]
[364,null,null,null,null,null,null,null,null,null,null,null,0,0]
[365,null,null,null,null,null,null,null,null,null,null,null,0,0]
[366,null,null,null,null,null,null,null,null,null,null,null,0,0]
[367,null,null,null,null,null,null,null,null,null,null,null,0,0]
[368,null,null,null,null,null,null,null,null,null,null,null,0,0]
[369,null,null,null,null,null,null,null,null,null,null,null,0,0]
[370,null,null,null,null,null,null,null,null,null,null,null,0,0]
[371,null,null,null,null,null,null,null,null,null,null,null,0,0]
[372,null,null,null,null,null,null,null,null,null,null,null,0,0]
[373,null,null,null,null,null,null,null,null,null,null,null,0,0]
[374,null,null,null,null,null,null,null,null,null,null,null,0,0]
[375,null,null,null,null,null,null,null,null,null,null,null,0,0]
[376,null,null,null,null,null,null,null,null,null,null,null,0,0]
[377,null,null,null,null,null,null,null,null,null,null,null,0,0]
[378,null,null,null,null,null,null,null,null,null,null,null,0,0]
[379,null,null,null,null,null,null,null,null,null,null,null,0,0]
[380,null,null,null,null,null,null,null,null,null,null,null,0,0]
[381,null,null,null,null,null,null,null,null,null,null,null,0,0]
[382,null,null,null,null,null,null,null,null,null,null,null,0,0]
[383,null,null,null,null,null,null,null,null,null,null,null,0,0]
[384,null,null,null,null,null,null,null,null,null,null,null,0,0]
[385,null,null,null,null,null,null,null,null,null,null,null,0,0]
[386,null,null,null,null,null,null,null,null,null,null,null,0,0]
[387,null,null,null,null,null,null,null,null,null,null,null,0,0]
[388,null,null,null,null,null,null,null,null,null,null,null,0,0]
[389,null,null,null,null,null,null,null,null,null,null,null,0,0]
[390,null,null,null,null,null,null,null,null,null,null,null,0,0]
[391,null,null,null,null,null,null,null,null,null,null,null,0,0]
[392,null,null,null,null,null,null,null,null,null,null,null,0,0]
[393,null,null,null,null,null,null,null,null,null,null,null,0,0]
[394,null,null,null,null,null,null,null,null,null,null,null,0,0]
[395,null,null,null,null,null,null,null,null,null,null,null,0,0]
[396,null,null,null,null,null,null,null,null,null,null,null,0,0]
[397,null,null,null,null,null,null,null,null,null,null,null,0,0]
[398,null,null,null,null,null,null,null,null,null,null,null,0,0]
[399,null,null,null,null,null,null,null,null,null,null,null,0,0]
[400,null,null,null,null,null,null,null,null,null,null,null,0,0]
[401,null,null,null,null,null,null,null,null,null,null,null,0,0]
[402,null,null,null,null,null,null,null,null,null,null,null,0,0]
[403,null,null,null,null,null,null,null,null,null,null,null,0,0]
[404,null,null,null,null,null,null,null,null,null,null,null,0,0]
[405,null,null,null,null,null,null,null,null,null,null,null,0,0]
[406,null,null,null,null,null,null,null,null,null,null,null,0,0]
[407,null,null,null,null,null,null,null,null,null,null,null,0,0]
[408,null,null,null,null,null,null,null,null,null,null,null,0,0]
[409,null,null,null,null,null,null,null,null,null,null,null,0,0]
[410,null,null,null,null,null,null,null,null,null,null,null,0,0]
[411,null,null,null,null,null,null,null,null,null,null,null,0,0]
[412,null,null,null,null,null,null,null,null,null,null,null,0,0]
[413,null,null,null,null,null,null,null,null,null,null,null,0,0]
[414,null,null,null,null,null,null,null,null,null,null,null,0,0]
[415,null,null,null,null,null,null,null,null,null,null,null,0,0]
[416,null,null,null,null,null,null,null,null,null,null,null,0,0]
[417,null,null,null,null,null,null,null,null,null,null,null,0,0]
[418,null,null,null,null,null,null,null,null,null,null,null,0,0]
[419,null,null,null,null,null,null,null,null,null,null,null,0,0]
[420,null,null,null,null,null,null,null,null,null,null,null,0,0]
[421,null,null,null,null,null,null,null,null,null,null,null,0,0]
[422,null,null,null,null,null,null,null,null,null,null,null,0,0]
[423,null,null,null,null,null,null,null,null,null,null,null,0,0]
[424,null,null,null,null,null,null,null,null,null,null,null,{"$f":"IF(ISNUMBER(G425),G425,B425)","v":0},{"$f":"IF(ISNUMBER(K425),ROUNDDOWN(E425+F425+K425,-3),ROUNDDOWN(E425+F425,-3))","v":0}]
[425,null,null,null,null,null,null,null,null,null,null,null,0,0]
[426,null,null,null,null,null,null,null,null,null,null,null,0,0]
[427,null,null,null,null,null,null,null,null,null,null,null,0,0]
[428,null,null,null,null,null,null,null,null,null,null,null,0,0]
[429,null,null,null,null,null,null,null,null,null,null,null,0,0]
[430,null,null,null,null,null,null,null,null,null,null,null,0,0]
[431,null,null,null,null,null,null,null,null,null,null,null,0,0]
[432,null,null,null,null,null,null,null,null,null,null,null,0,0]
[433,null,null,null,null,null,null,null,null,null,null,null,0,0]
[434,null,null,null,null,null,null,null,null,null,null,null,0,0]
[435,null,null,null,null,null,null,null,null,null,null,null,0,0]
[436,null,null,null,null,null,null,null,null,null,null,null,0,0]
[437,null,null,null,null,null,null,null,null,null,null,null,0,0]
[438,null,null,null,null,null,null,null,null,null,null,null,0,0]
[439,null,null,null,null,null,null,null,null,null,null,null,0,0]
[440,null,null,null,null,null,null,null,null,null,null,null,0,0]
[441,null,null,null,null,null,null,null,null,null,null,null,0,0]
[442,null,null,null,null,null,null,null,null,null,null,null,0,0]
[443,null,null,null,null,null,null,null,null,null,null,null,0,0]
[444,null,null,null,null,null,null,null,null,null,null,null,0,0]
[445,null,null,null,null,null,null,null,null,null,null,null,0,0]
[446,null,null,null,null,null,null,null,null,null,null,null,0,0]
[447,null,null,null,null,null,null,null,null,null,null,null,0,0]
[448,null,null,null,null,null,null,null,null,null,null,null,0,0]
[449,null,null,null,null,null,null,null,null,null,null,null,0,0]
[450,null,null,null,null,null,null,null,null,null,null,null,0,0]
[451,null,null,null,null,null,null,null,null,null,null,null,0,0]
[452,null,null,null,null,null,null,null,null,null,null,null,0,0]
[453,null,null,null,null,null,null,null,null,null,null,null,0,0]
[454,null,null,null,null,null,null,null,null,null,null,null,0,0]
[455,null,null,null,null,null,null,null,null,null,null,null,0,0]
[456,null,null,null,null,null,null,null,null,null,null,null,0,0]
[457,null,null,null,null,null,null,null,null,null,null,null,0,0]
[458,null,null,null,null,null,null,null,null,null,null,null,0,0]
[459,null,null,null,null,null,null,null,null,null,null,null,0,0]
[460,null,null,null,null,null,null,null,null,null,null,null,0,0]
[461,null,null,null,null,null,null,null,null,null,null,null,0,0]
[462,null,null,null,null,null,null,null,null,null,null,null,0,0]
[463,null,null,null,null,null,null,null,null,null,null,null,0,0]
[464,null,null,null,null,null,null,null,null,null,null,null,0,0]
[465,null,null,null,null,null,null,null,null,null,null,null,0,0]
[466,null,null,null,null,null,null,null,null,null,null,null,0,0]
[467,null,null,null,null,null,null,null,null,null,null,null,0,0]
[468,null,null,null,null,null,null,null,null,null,null,null,0,0]
[469,null,null,null,null,null,null,null,null,null,null,null,0,0]
[470,null,null,null,null,null,null,null,null,null,null,null,0,0]
[471,null,null,null,null,null,null,null,null,null,null,null,0,0]
[472,null,null,null,null,null,null,null,null,null,null,null,0,0]
[473,null,null,null,null,null,null,null,null,null,null,null,0,0]
[474,null,null,null,null,null,null,null,null,null,null,null,0,0]
[475,null,null,null,null,null,null,null,null,null,null,null,0,0]
[476,null,null,null,null,null,null,null,null,null,null,null,0,0]
[477,null,null,null,null,null,null,null,null,null,null,null,0,0]
[478,null,null,null,null,null,null,null,null,null,null,null,0,0]
[479,null,null,null,null,null,null,null,null,null,null,null,0,0]
[480,null,null,null,null,null,null,null,null,null,null,null,0,0]
[481,null,null,null,null,null,null,null,null,null,null,null,0,0]
[482,null,null,null,null,null,null,null,null,null,null,null,0,0]
[483,null,null,null,null,null,null,null,null,null,null,null,0,0]
[484,null,null,null,null,null,null,null,null,null,null,null,0,0]
[485,null,null,null,null,null,null,null,null,null,null,null,0,0]
[486,null,null,null,null,null,null,null,null,null,null,null,0,0]
[487,null,null,null,null,null,null,null,null,null,null,null,0,0]
[488,null,null,null,null,null,null,null,null,null,null,null,{"$f":"IF(ISNUMBER(G489),G489,B489)","v":0},{"$f":"IF(ISNUMBER(K489),ROUNDDOWN(E489+F489+K489,-3),ROUNDDOWN(E489+F489,-3))","v":0}]
[489,null,null,null,null,null,null,null,null,null,null,null,0,0]
[490,null,null,null,null,null,null,null,null,null,null,null,0,0]
[491,null,null,null,null,null,null,null,null,null,null,null,0,0]
[492,null,null,null,null,null,null,null,null,null,null,null,0,0]
[493,null,null,null,null,null,null,null,null,null,null,null,0,0]
[494,null,null,null,null,null,null,null,null,null,null,null,0,0]
[495,null,null,null,null,null,null,null,null,null,null,null,0,0]
[496,null,null,null,null,null,null,null,null,null,null,null,0,0]
[497,null,null,null,null,null,null,null,null,null,null,null,0,0]
[498,null,null,null,null,null,null,null,null,null,null,null,0,0]
[499,null,null,null,null,null,null,null,null,null,null,null,0,0]
[500,null,null,null,null,null,null,null,null,null,null,null,0,0]

{"sheet":"組合届","index":4,"n_rows":215,"n_cols":166,"rows_kept":215,"cut":false,"hidden":false,"merged":[[214,96,217,139],[104,156,109,179],[107,5,109,7],[107,32,109,34],[107,85,109,87],[107,112,110,114],[107,115,115,117],[107,118,109,139],[110,5,112,7],[113,5,115,7],[113,32,115,34],[113,35,115,39],[113,60,115,64],[113,85,115,87],[113,118,115,139],[110,35,112,39],[110,40,115,59],[110,60,112,64],[110,65,115,84],[110,85,112,87],[110,88,115,111],[110,118,112,139],[110,8,115,31],[110,32,112,34],[90,0,101,4],[90,5,92,7],[90,32,92,34],[90,35,95,84],[55,0,64,4],[55,5,57,7],[58,5,64,7],[55,42,64,69],[110,156,115,179],[111,112,115,114],[93,115,101,117],[96,156,101,179],[76,156,81,179],[90,156,95,179],[104,0,115,4],[104,5,106,7],[104,8,109,19],[104,20,109,31],[104,32,106,34],[104,35,109,84],[104,85,106,87],[104,88,109,111],[104,112,106,114],[104,115,106,139],[1,11,7,70],[20,5,24,15],[20,16,22,69],[23,16,25,18],[23,19,25,31],[23,32,25,69],[25,5,30,15],[26,16,32,69],[31,5,33,15],[33,16,33,69],[9,0,12,27],[0,96,2,106],[0,107,2,117],[0,118,2,128],[0,129,2,139],[3,74,12,84],[3,85,12,95],[3,96,12,106],[3,107,12,117],[3,118,12,128],[3,129,12,139],[0,74,2,84],[0,85,2,95],[24,105,52,139],[15,5,18,15],[15,16,18,23],[34,5,39,15],[34,16,39,69],[40,5,40,15],[40,16,40,69],[41,5,46,15],[41,16,46,61],[41,62,46,69],[50,71,54,101],[55,131,64,139],[55,71,64,130],[79,5,81,7],[47,5,47,15],[47,16,47,69],[48,5,53,15],[48,16,53,69],[15,0,53,4],[66,94,69,139],[70,94,73,139],[76,112,78,114],[69,58,69,60],[70,58,72,60],[73,58,73,60],[70,61,73,90],[66,61,69,90],[66,91,68,93],[69,91,69,93],[70,91,72,93],[73,91,73,93],[73,32,73,34],[66,58,68,60],[79,32,81,34],[20,105,23,139],[55,8,64,41],[76,0,87,4],[76,5,78,7],[66,0,73,4],[66,5,68,7],[69,5,69,7],[70,5,72,7],[73,5,73,7],[70,8,73,31],[66,8,69,31],[66,32,68,34],[66,35,69,57],[69,32,69,34],[70,32,72,34],[70,35,73,57],[82,32,84,34],[82,35,84,39],[82,40,87,59],[82,5,84,7],[82,8,87,31],[85,5,87,7],[85,32,87,34],[85,35,87,39],[76,20,81,31],[96,5,98,7],[96,8,101,31],[96,32,98,34],[96,35,98,39],[96,40,101,59],[96,60,98,64],[96,65,101,84],[96,85,98,87],[99,5,101,7],[99,32,101,34],[99,35,101,39],[99,60,101,64],[99,85,101,87],[85,60,87,64],[85,85,87,87],[79,115,87,117],[90,85,92,87],[90,88,95,111],[90,112,92,114],[93,5,95,7],[93,32,95,34],[93,85,95,87],[83,112,87,114],[82,60,84,64],[82,65,87,84],[76,35,81,84],[76,85,78,87],[76,88,81,111],[82,85,84,87],[82,88,87,111],[79,112,82,114],[79,85,81,87],[76,32,78,34],[76,8,81,19],[90,8,95,19],[90,20,95,31],[7,156,10,164],[7,165,10,173],[11,156,14,164],[11,165,14,173],[15,156,18,164],[15,165,18,173],[19,156,22,164],[19,165,22,173],[23,156,26,164],[23,165,26,173],[118,112,120,114],[127,85,129,87],[82,156,87,179],[27,156,30,164],[27,165,30,173],[31,156,34,164],[31,165,34,173],[35,156,38,164],[35,165,38,173],[39,156,42,164],[39,165,42,173],[43,156,46,164],[43,165,46,173],[90,115,92,139],[93,112,96,114],[93,118,95,139],[96,118,98,139],[99,118,101,139],[76,115,78,139],[79,118,81,139],[82,118,84,139],[85,118,87,139],[96,88,101,111],[97,112,101,114],[127,60,129,64],[118,0,129,4],[118,5,120,7],[118,8,123,19],[118,20,123,31],[118,32,120,34],[118,35,123,84],[118,85,120,87],[118,88,123,111],[127,118,129,139],[118,115,120,139],[118,156,123,179],[121,5,123,7],[121,32,123,34],[121,85,123,87],[121,112,124,114],[121,115,129,117],[121,118,123,139],[124,5,126,7],[124,8,129,31],[124,32,126,34],[124,35,126,39],[124,40,129,59],[124,60,126,64],[124,65,129,84],[124,85,126,87],[124,88,129,111],[124,118,126,139],[124,156,129,179],[125,112,129,114],[127,5,129,7],[127,32,129,34],[127,35,129,39],[132,156,137,179],[135,5,137,7],[135,32,137,34],[135,85,137,87],[135,112,138,114],[135,115,143,117],[135,118,137,139],[138,5,140,7],[138,8,143,31],[138,32,140,34],[138,35,140,39],[138,40,143,59],[138,60,140,64],[138,65,143,84],[138,85,140,87],[138,88,143,111],[138,118,140,139],[138,156,143,179],[139,112,143,114],[141,5,143,7],[141,32,143,34],[141,35,143,39],[141,60,143,64],[141,118,143,139],[146,115,148,139],[155,118,157,139],[132,0,143,4],[132,5,134,7],[132,8,137,19],[132,20,137,31],[132,32,134,34],[132,35,137,84],[132,85,134,87],[132,88,137,111],[132,112,134,114],[141,85,143,87],[132,115,134,139],[146,0,157,4],[146,5,148,7],[146,8,151,19],[146,20,151,31],[146,32,148,34],[146,35,151,84],[146,85,148,87],[146,88,151,111],[146,112,148,114],[146,156,151,179],[149,5,151,7],[149,32,151,34],[149,85,151,87],[149,112,152,114],[149,115,157,117],[149,118,151,139],[152,5,154,7],[152,8,157,31],[152,32,154,34],[152,35,154,39],[152,40,157,59],[152,60,154,64],[152,65,157,84],[152,85,154,87],[152,88,157,111],[152,118,154,139],[152,156,157,179],[153,112,157,114],[155,5,157,7],[155,32,157,34],[155,35,157,39],[155,60,157,64],[155,85,157,87],[160,156,165,179],[163,5,165,7],[163,32,165,34],[163,85,165,87],[163,112,166,114],[163,115,171,117],[163,118,165,139],[166,5,168,7],[166,8,171,31],[166,32,168,34],[166,35,168,39],[166,40,171,59],[166,60,168,64],[166,65,171,84],[166,85,168,87],[166,88,171,111],[166,118,168,139],[166,156,171,179],[167,112,171,114],[169,5,171,7],[169,32,171,34],[169,35,171,39],[169,60,171,64],[169,118,171,139],[174,115,176,139],[183,118,185,139],[160,0,171,4],[160,5,162,7],[160,8,165,19],[160,20,165,31],[160,32,162,34],[160,35,165,84],[160,85,162,87],[160,88,165,111],[160,112,162,114],[169,85,171,87],[160,115,162,139],[174,0,185,4],[174,5,176,7],[174,8,179,19],[174,20,179,31],[174,32,176,34],[174,35,179,84],[174,85,176,87],[174,88,179,111],[174,112,176,114],[174,156,179,179],[177,5,179,7],[177,32,179,34],[177,85,179,87],[177,112,180,114],[177,115,185,117],[177,118,179,139],[180,5,182,7],[180,8,185,31],[180,32,182,34],[180,35,182,39],[180,40,185,59],[180,60,182,64],[180,65,185,84],[180,85,182,87],[180,88,185,111],[180,118,182,139],[180,156,185,179],[181,112,185,114],[183,5,185,7],[183,32,185,34],[183,35,185,39],[183,60,185,64],[183,85,185,87],[188,156,193,179],[191,5,193,7],[191,32,193,34],[191,85,193,87],[191,112,194,114],[191,115,199,117],[191,118,193,139],[194,5,196,7],[194,8,199,31],[194,32,196,34],[194,35,196,39],[194,40,199,59],[194,60,196,64],[194,65,199,84],[194,85,196,87],[194,88,199,111],[194,118,196,139],[194,156,199,179],[195,112,199,114],[197,5,199,7],[197,32,199,34],[197,35,199,39],[197,60,199,64],[197,118,199,139],[202,115,204,139],[211,118,213,139],[188,0,199,4],[188,5,190,7],[188,8,193,19],[188,20,193,31],[188,32,190,34],[188,35,193,84],[188,85,190,87],[188,88,193,111],[188,112,190,114],[197,85,199,87],[188,115,190,139],[202,0,213,4],[202,5,204,7],[202,8,207,19],[202,20,207,31],[202,32,204,34],[202,35,207,84],[202,85,204,87],[202,88,207,111],[202,112,204,114],[202,156,207,179],[205,5,207,7],[205,32,207,34],[205,85,207,87],[205,112,208,114],[205,115,213,117],[205,118,207,139],[208,5,210,7],[208,8,213,31],[208,32,210,34],[208,35,210,39],[208,40,213,59],[208,60,210,64],[208,65,213,84],[208,85,210,87],[208,88,213,111],[208,118,210,139],[208,156,213,179],[209,112,213,114],[211,5,213,7],[211,32,213,34],[211,35,213,39],[211,60,213,64],[211,85,213,87]]}
[null,null,null,null,null,null,null,null,null,null,null,null,null,null,null,null,null,null,null,null,null,null,null,null,null,null,null,null,null,null,null,null,null,null,null,null,null,null,null,null,null,null,null,null,null,null,null,null,null,null,null,null,null,null,null,null,null,null,null,null,null,null,null,null,null,null,null,null,null,null,null,null,null,null,"常務理事",null,null,null,null,null,null,null,null,null,null,"事務長",null,null,null,null,null,null,null,null,null,null,"部長",null,null,null,null,null,null,null,null,null,null,"課長",null,null,null,null,null,null,null,null,null,null,"係長",null,null,null,null,null,null,null,null,null,null,"係"]
[null,null,null,null,null,null,null,null,null,null,null,"健康保険　被保険者賞与支払届"]
[]
[]
[]
[]
[]
[null,null,null,null,null,null,null,null,null,null,null,null,null,null,null,null,null,null,null,null,null,null,null,null,null,null,null,null,null,null,null,null,null,null,null,null,null,null,null,null,null,null,null,null,null,null,null,null,null,null,null,null,null,null,null,null,null,null,null,null,null,null,null,null,null,null,null,null,null,null,null,null,null,null,null,null,null,null,null,null,null,null,null,null,null,null,null,null,null,null,null,null,null,null,null,null,null,null,null,null,null,null,null,null,null,null,null,null,null,null,null,null,null,null,null,null,null,null,null,null,null,null,null,null,null,null,null,null,null,null,null,null,null,null,null,null,null,null,null,null,null,null,null,null,null,null,null,null,null,null,null,null,null,null,null,null,1,null,null,null,null,null,null,null,null,1]
[]
[{"$f":"基本情報登録!C2","v":"2021-04-22"}]
[]
[null,null,null,null,null,null,null,null,null,null,null,null,null,null,null,null,null,null,null,null,null,null,null,null,null,null,null,null,null,null,null,null,null,null,null,null,null,null,null,null,null,null,null,null,null,null,null,null,null,null,null,null,null,null,null,null,null,null,null,null,null,null,null,null,null,null,null,null,null,null,null,null,null,null,null,null,null,null,null,null,null,null,null,null,null,null,null,null,null,null,null,null,null,null,null,null,null,null,null,null,null,null,null,null,null,null,null,null,null,null,null,null,null,null,null,null,null,null,null,null,null,null,null,null,null,null,null,null,null,null,null,null,null,null,null,null,null,null,null,null,null,null,null,null,null,null,null,null,null,null,null,null,null,null,null,null,null,null,null,null,null,null,null,null,null,2]
[]
[]
[]
["事業主記入欄",null,null,null,null,"記号",null,null,null,null,null,null,null,null,null,null,{"$f":"基本情報登録!C6","v":"532"},null,null,null,null,null,null,null,null,null,null,null,null,null,null,null,null,null,null,null,null,null,null,null,null,null,null,null,null,null,null,null,null,null,null,null,null,null,null,null,null,null,null,null,null,null,null,null,null,null,null,null,null,null,null,null,null,null,null,null,null,null,null,null,null,null,null,null,null,null,null,null,null,null,null,null,null,null,null,null,null,null,null,null,null,null,null,null,null,null,null,null,null,null,null,null,null,null,null,null,null,null,null,null,null,null,null,null,null,null,null,null,null,null,null,null,null,null,null,null,null,null,null,null,null,null,null,null,null,null,null,null,null,null,null,null,null,null,null,null,null,null,null,null,null,null,null,null,null,3]
[]
[]
[]
[null,null,null,null,null,null,null,null,null,null,null,null,null,null,null,null,null,null,null,null,null,null,null,null,null,null,null,null,null,null,null,null,null,null,null,null,null,null,null,null,null,null,null,null,null,null,null,null,null,null,null,null,null,null,null,null,null,null,null,null,null,null,null,null,null,null,null,null,null,null,null,null,null,null,null,null,null,null,null,null,null,null,null,null,null,null,null,null,null,null,null,null,null,null,null,null,null,null,null,null,null,null,null,null,null,null,null,null,null,null,null,null,null,null,null,null,null,null,null,null,null,null,null,null,null,null,null,null,null,null,null,null,null,null,null,null,null,null,null,null,null,null,null,null,null,null,null,null,null,null,null,null,null,null,null,null,null,null,null,null,null,null,null,null,null,4]
[null,null,null,null,null,null,null,null,null,null,null,null,null,null,null,null,"届書記入の個人番号(基礎年金番号)に誤りがないことを確認しました。",null,null,null,null,null,null,null,null,null,null,null,null,null,null,null,null,null,null,null,null,null,null,null,null,null,null,null,null,null,null,null,null,null,null,null,null,null,null,null,null,null,null,null,null,null,null,null,null,null,null,null,null,null,null,null,null,null,null,null,null,null,null,null,null,null,null,null,null,null,null,null,null,null,null,null,null,null,null,null,null,null,null,null,null,null,null,null,null,"受付印"]
[]
[]
[null,null,null,null,null,null,null,null,null,null,null,null,null,null,null,null,"〒",null,null,{"$f":"基本情報登録!C7","v":"542-0066"},null,null,null,null,null,null,null,null,null,null,null,null,null,null,null,null,null,null,null,null,null,null,null,null,null,null,null,null,null,null,null,null,null,null,null,null,null,null,null,null,null,null,null,null,null,null,null,null,null,null,null,null,null,null,null,null,null,null,null,null,null,null,null,null,null,null,null,null,null,null,null,null,null,null,null,null,null,null,null,null,null,null,null,null,null,null,null,null,null,null,null,null,null,null,null,null,null,null,null,null,null,null,null,null,null,null,null,null,null,null,null,null,null,null,null,null,null,null,null,null,null,null,null,null,null,null,null,null,null,null,null,null,null,null,null,null,null,null,null,null,null,null,null,null,null,5]
[]
[null,null,null,null,null,"事業所\n所在地"]
[null,null,null,null,null,null,null,null,null,null,null,null,null,null,null,null,{"$f":"基本情報登録!C8","v":"大阪府大阪市中央区瓦屋町2-3-1"}]
[null,null,null,null,null,null,null,null,null,null,null,null,null,null,null,null,null,null,null,null,null,null,null,null,null,null,null,null,null,null,null,null,null,null,null,null,null,null,null,null,null,null,null,null,null,null,null,null,null,null,null,null,null,null,null,null,null,null,null,null,null,null,null,null,null,null,null,null,null,null,null,null,null,null,null,null,null,null,null,null,null,null,null,null,null,null,null,null,null,null,null,null,null,null,null,null,null,null,null,null,null,null,null,null,null,null,null,null,null,null,null,null,null,null,null,null,null,null,null,null,null,null,null,null,null,null,null,null,null,null,null,null,null,null,null,null,null,null,null,null,null,null,null,null,null,null,null,null,null,null,null,null,null,null,null,null,null,null,null,null,null,null,null,null,null,6]
[]
[]
[]
[null,null,null,null,null,null,null,null,null,null,null,null,null,null,null,null,null,null,null,null,null,null,null,null,null,null,null,null,null,null,null,null,null,null,null,null,null,null,null,null,null,null,null,null,null,null,null,null,null,null,null,null,null,null,null,null,null,null,null,null,null,null,null,null,null,null,null,null,null,null,null,null,null,null,null,null,null,null,null,null,null,null,null,null,null,null,null,null,null,null,null,null,null,null,null,null,null,null,null,null,null,null,null,null,null,null,null,null,null,null,null,null,null,null,null,null,null,null,null,null,null,null,null,null,null,null,null,null,null,null,null,null,null,null,null,null,null,null,null,null,null,null,null,null,null,null,null,null,null,null,null,null,null,null,null,null,null,null,null,null,null,null,null,null,null,7]
[]
[]
[null,null,null,null,null,"事業所\n名称",null,null,null,null,null,null,null,null,null,null,{"$f":"基本情報登録!C9","v":"大阪自動車整備健康保険組合"}]
[null,null,null,null,null,null,null,null,null,null,null,null,null,null,null,null,null,null,null,null,null,null,null,null,null,null,null,null,null,null,null,null,null,null,null,null,null,null,null,null,null,null,null,null,null,null,null,null,null,null,null,null,null,null,null,null,null,null,null,null,null,null,null,null,null,null,null,null,null,null,null,null,null,null,null,null,null,null,null,null,null,null,null,null,null,null,null,null,null,null,null,null,null,null,null,null,null,null,null,null,null,null,null,null,null,null,null,null,null,null,null,null,null,null,null,null,null,null,null,null,null,null,null,null,null,null,null,null,null,null,null,null,null,null,null,null,null,null,null,null,null,null,null,null,null,null,null,null,null,null,null,null,null,null,null,null,null,null,null,null,null,null,null,null,null,8]
[]
[]
[]
[null,null,null,null,null,null,null,null,null,null,null,null,null,null,null,null,null,null,null,null,null,null,null,null,null,null,null,null,null,null,null,null,null,null,null,null,null,null,null,null,null,null,null,null,null,null,null,null,null,null,null,null,null,null,null,null,null,null,null,null,null,null,null,null,null,null,null,null,null,null,null,null,null,null,null,null,null,null,null,null,null,null,null,null,null,null,null,null,null,null,null,null,null,null,null,null,null,null,null,null,null,null,null,null,null,null,null,null,null,null,null,null,null,null,null,null,null,null,null,null,null,null,null,null,null,null,null,null,null,null,null,null,null,null,null,null,null,null,null,null,null,null,null,null,null,null,null,null,null,null,null,null,null,null,null,null,null,null,null,null,null,null,null,null,null,9]
[]
[null,null,null,null,null,"事業主\n氏名",null,null,null,null,null,null,null,null,null,null,{"$f":"基本情報登録!C10","v":"理事長　健保　太郎"}]
[]
[null,null,null,null,null,null,null,null,null,null,null,null,null,null,null,null,null,null,null,null,null,null,null,null,null,null,null,null,null,null,null,null,null,null,null,null,null,null,null,null,null,null,null,null,null,null,null,null,null,null,null,null,null,null,null,null,null,null,null,null,null,null,null,null,null,null,null,null,null,null,null,null,null,null,null,null,null,null,null,null,null,null,null,null,null,null,null,null,null,null,null,null,null,null,null,null,null,null,null,null,null,null,null,null,null,null,null,null,null,null,null,null,null,null,null,null,null,null,null,null,null,null,null,null,null,null,null,null,null,null,null,null,null,null,null,null,null,null,null,null,null,null,null,null,null,null,null,null,null,null,null,null,null,null,null,null,null,null,null,null,null,null,null,null,null,10]
[]
[]
[]
[]
[null,null,null,null,null,"電話番号",null,null,null,null,null,null,null,null,null,null,{"$f":"基本情報登録!C11","v":"06-6762-6371"}]
[]
[null,null,null,null,null,null,null,null,null,null,null,null,null,null,null,null,null,null,null,null,null,null,null,null,null,null,null,null,null,null,null,null,null,null,null,null,null,null,null,null,null,null,null,null,null,null,null,null,null,null,null,null,null,null,null,null,null,null,null,null,null,null,null,null,null,null,null,null,null,null,null,"社会保険労務士記載欄"]
[]
[]
[]
[]
["共通",null,null,null,null,4,null,null,"賞与支払年月日(共通)",null,null,null,null,null,null,null,null,null,null,null,null,null,null,null,null,null,null,null,null,null,null,null,null,null,null,null,null,null,null,null,null,null,{"$f":"総括表情報登録!C2","v":"00:00:00"}]
[]
[]
[]
[]
[]
[]
[]
[]
[]
[]
["項目名",null,null,null,null,1,null,null,"年金番号・健保番号",null,null,null,null,null,null,null,null,null,null,null,null,null,null,null,null,null,null,null,null,null,null,null,2,null,null,"被保険者氏名",null,null,null,null,null,null,null,null,null,null,null,null,null,null,null,null,null,null,null,null,null,null,3,null,null,"生年月日",null,null,null,null,null,null,null,null,null,null,null,null,null,null,null,null,null,null,null,null,null,null,null,null,null,null,null,null,null,7,null,null,"個人番号(70歳以上被用者の場合のみ)"]
[]
[]
[]
[null,null,null,null,null,4,null,null,"賞与支払年月日",null,null,null,null,null,null,null,null,null,null,null,null,null,null,null,null,null,null,null,null,null,null,null,5,null,null,"賞与支払額",null,null,null,null,null,null,null,null,null,null,null,null,null,null,null,null,null,null,null,null,null,null,6,null,null,"賞与額(千円未満切捨て)",null,null,null,null,null,null,null,null,null,null,null,null,null,null,null,null,null,null,null,null,null,null,null,null,null,null,null,null,null,8,null,null,"備　考"]
[]
[]
[]
[]
[]
["１",null,null,null,null,1,null,null,{"$f":"IF(ISBLANK(FJ8),(FJ8),INDEX(入力!A2:N501,FJ8,13))","v":69},null,null,null,null,null,null,null,null,null,null,null,{"$f":"IF(ISBLANK(FJ8),(FJ8),INDEX(入力!A2:N501,FJ8,2))","v":35},null,null,null,null,null,null,null,null,null,null,null,2,null,null,{"$f":"IF(ISBLANK(FJ8),(FJ8),INDEX(入力!A2:N501,FJ8,3))","v":"健保　一郎"},null,null,null,null,null,null,null,null,null,null,null,null,null,null,null,null,null,null,null,null,null,null,null,null,null,null,null,null,null,null,null,null,null,null,null,null,null,null,null,null,null,null,null,null,null,null,null,null,null,3,null,null,{"$f":"IF(ISBLANK(FJ8),(FJ8),INDEX(入力!A2:N501,FJ8,4))","v":"1968-11-01"},null,null,null,null,null,null,null,null,null,null,null,null,null,null,null,null,null,null,null,null,null,null,null,7,null,null,{"$f":"IF(DL80=1,INDEX(入力!A2:L501,FJ8,10),\"\")","v":"123456789012"},null,null,null,null,null,null,null,null,null,null,null,null,null,null,null,null,null,null,null,null,null,null,null,null,null,null,null,null,null,null,null,null,null,null,null,null,null,null,null,null,{"$f":"IF(ISBLANK(FJ8),(FJ8),INDEX(入力!A2:N501,FJ8,9))","v":1}]
[]
[]
[null,null,null,null,null,null,null,null,null,null,null,null,null,null,null,null,null,null,null,null,null,null,null,null,null,null,null,null,null,null,null,null,null,null,null,null,null,null,null,null,null,null,null,null,null,null,null,null,null,null,null,null,null,null,null,null,null,null,null,null,null,null,null,null,null,null,null,null,null,null,null,null,null,null,null,null,null,null,null,null,null,null,null,null,null,null,null,null,null,null,null,null,null,null,null,null,null,null,null,null,null,null,null,null,null,null,null,null,null,null,null,null,8,null,null,{"$f":"IF(FA77=0,\"\",FA77)","v":1},null,null,{"$f":"IF(DL80=1,\"70歳以上被用者\",\"\")","v":"70歳以上被用者"}]
[]
[]
[null,null,null,null,null,4,null,null,{"$f":"IF(FA83=0,\"\",FA83)","v":""},null,null,null,null,null,null,null,null,null,null,null,null,null,null,null,null,null,null,null,null,null,null,null,5,null,null,"ｱ通貨",null,null,null,null,{"$f":"IF(ISBLANK(FJ8),(FJ8),INDEX(入力!A2:N501,FJ8,5))","v":12345678},null,null,null,null,null,null,null,null,null,null,null,null,null,null,null,null,null,null,null,"ｲ現物",null,null,null,null,{"$f":"IF(ISBLANK(FJ8),(FJ8),INDEX(入力!A2:N501,FJ8,6))","v":0},null,null,null,null,null,null,null,null,null,null,null,null,null,null,null,null,null,null,null,6,null,null,{"$f":"IF(ISBLANK(FJ8),(FJ8),INDEX(入力!A2:N501,FJ8,14))","v":12345000},null,null,null,null,null,null,null,null,null,null,null,null,null,null,null,null,null,null,null,null,null,null,null,null,null,null,null,null,null,{"$f":"IF(DL80=2,INDEX(入力!$A$2:$N$501,FJ8,11),\"\")","v":""},null,null,null,null,null,null,null,null,null,null,null,null,null,null,null,null,null,null,null,null,null,null,null,null,null,null,null,null,null,null,null,null,null,null,null,null,null,{"$f":"IF(ISBLANK(FJ8),(FJ8),INDEX(入力!A2:N501,FJ8,8))","v":"00:00:00"}]
[]
[]
[null,null,null,null,null,null,null,null,null,null,null,null,null,null,null,null,null,null,null,null,null,null,null,null,null,null,null,null,null,null,null,null,null,null,null,null,null,null,null,null,null,null,null,null,null,null,null,null,null,null,null,null,null,null,null,null,null,null,null,null,null,null,null,null,null,null,null,null,null,null,null,null,null,null,null,null,null,null,null,null,null,null,null,null,null,null,null,null,null,null,null,null,null,null,null,null,null,null,null,null,null,null,null,null,null,null,null,null,null,null,null,null,null,null,null,null,null,null,{"$f":"IF(DL80=3,INDEX(入力!$A$2:$N$501,FJ8,12),\"\")","v":""}]
[]
[]
[]
[]
["２",null,null,null,null,1,null,null,{"$f":"IF(ISBLANK(FJ12),(FJ12),INDEX(入力!A2:N501,FJ12,13))","v":36},null,null,null,null,null,null,null,null,null,null,null,{"$f":"IF(ISBLANK(FJ12),(FJ12),INDEX(入力!A2:N501,FJ12,2))","v":36},null,null,null,null,null,null,null,null,null,null,null,2,null,null,{"$f":"IF(ISBLANK(FJ12),(FJ12),INDEX(入力!A2:N501,FJ12,3))","v":"健保　次郎"},null,null,null,null,null,null,null,null,null,null,null,null,null,null,null,null,null,null,null,null,null,null,null,null,null,null,null,null,null,null,null,null,null,null,null,null,null,null,null,null,null,null,null,null,null,null,null,null,null,3,null,null,{"$f":"IF(ISBLANK(FJ12),(FJ12),INDEX(入力!A2:N501,FJ12,4))","v":"1969-11-01"},null,null,null,null,null,null,null,null,null,null,null,null,null,null,null,null,null,null,null,null,null,null,null,7,null,null,{"$f":"IF(DL94=1,INDEX(入力!$A$2:$L$501,FJ12,10),\"\")","v":""},null,null,null,null,null,null,null,null,null,null,null,null,null,null,null,null,null,null,null,null,null,null,null,null,null,null,null,null,null,null,null,null,null,null,null,null,null,null,null,null,{"$f":"IF(ISBLANK(FJ12),(FJ12),INDEX(入力!A2:N501,FJ12,9))","v":2}]
[]
[]
[null,null,null,null,null,null,null,null,null,null,null,null,null,null,null,null,null,null,null,null,null,null,null,null,null,null,null,null,null,null,null,null,null,null,null,null,null,null,null,null,null,null,null,null,null,null,null,null,null,null,null,null,null,null,null,null,null,null,null,null,null,null,null,null,null,null,null,null,null,null,null,null,null,null,null,null,null,null,null,null,null,null,null,null,null,null,null,null,null,null,null,null,null,null,null,null,null,null,null,null,null,null,null,null,null,null,null,null,null,null,null,null,8,null,null,{"$f":"IF(FA91=0,\"\",FA91)","v":2},null,null,{"$f":"IF(DL94=1,\"70歳以上被用者\",\"\")","v":""}]
[]
[]
[null,null,null,null,null,4,null,null,{"$f":"IF(FA97=0,\"\",FA97)","v":""},null,null,null,null,null,null,null,null,null,null,null,null,null,null,null,null,null,null,null,null,null,null,null,5,null,null,"ｱ通貨",null,null,null,null,{"$f":"IF(ISBLANK(FJ12),(FJ12),INDEX(入力!A2:N501,FJ12,5))","v":1538500},null,null,null,null,null,null,null,null,null,null,null,null,null,null,null,null,null,null,null,"ｲ現物",null,null,null,null,{"$f":"IF(ISBLANK(FJ12),(FJ12),INDEX(入力!A2:N501,FJ12,6))","v":0},null,null,null,null,null,null,null,null,null,null,null,null,null,null,null,null,null,null,null,6,null,null,{"$f":"IF(ISBLANK(FJ12),(FJ12),INDEX(入力!A2:N501,FJ12,14))","v":13884000},null,null,null,null,null,null,null,null,null,null,null,null,null,null,null,null,null,null,null,null,null,null,null,null,null,null,null,null,null,{"$f":"IF(DL94=2,INDEX(入力!$A$2:$N$501,FJ12,11),\"\")","v":12345678},null,null,null,null,null,null,null,null,null,null,null,null,null,null,null,null,null,null,null,null,null,null,null,null,null,null,null,null,null,null,null,null,null,null,null,null,null,{"$f":"IF(ISBLANK(FJ12),(FJ12),INDEX(入力!A2:N501,FJ12,8))","v":"00:00:00"}]
[]
[]
[null,null,null,null,null,null,null,null,null,null,null,null,null,null,null,null,null,null,null,null,null,null,null,null,null,null,null,null,null,null,null,null,null,null,null,null,null,null,null,null,null,null,null,null,null,null,null,null,null,null,null,null,null,null,null,null,null,null,null,null,null,null,null,null,null,null,null,null,null,null,null,null,null,null,null,null,null,null,null,null,null,null,null,null,null,null,null,null,null,null,null,null,null,null,null,null,null,null,null,null,null,null,null,null,null,null,null,null,null,null,null,null,null,null,null,null,null,null,{"$f":"IF(DL94=3,INDEX(入力!$A$2:$N$501,FJ12,12),\"\")","v":""}]
[]
[]
[]
[]
["３",null,null,null,null,1,null,null,{"$f":"IF(ISBLANK(FJ16),(FJ16),INDEX(入力!A2:N501,FJ16,13))","v":37},null,null,null,null,null,null,null,null,null,null,null,{"$f":"IF(ISBLANK(FJ16),(FJ16),INDEX(入力!A2:N501,FJ16,2))","v":37},null,null,null,null,null,null,null,null,null,null,null,2,null,null,{"$f":"IF(ISBLANK(FJ16),(FJ16),INDEX(入力!A2:N501,FJ16,3))","v":"健保　三朗"},null,null,null,null,null,null,null,null,null,null,null,null,null,null,null,null,null,null,null,null,null,null,null,null,null,null,null,null,null,null,null,null,null,null,null,null,null,null,null,null,null,null,null,null,null,null,null,null,null,3,null,null,{"$f":"IF(ISBLANK(FJ16),(FJ16),INDEX(入力!A2:N501,FJ16,4))","v":"1970-11-01"},null,null,null,null,null,null,null,null,null,null,null,null,null,null,null,null,null,null,null,null,null,null,null,7,null,null,{"$f":"IF(DL108=1,INDEX(入力!$A$2:$L$501,FJ16,10),\"\")","v":""},null,null,null,null,null,null,null,null,null,null,null,null,null,null,null,null,null,null,null,null,null,null,null,null,null,null,null,null,null,null,null,null,null,null,null,null,null,null,null,null,{"$f":"IF(ISBLANK(FJ16),(FJ16),INDEX(入力!A2:N501,FJ16,9))","v":3}]
[]
[]
[null,null,null,null,null,null,null,null,null,null,null,null,null,null,null,null,null,null,null,null,null,null,null,null,null,null,null,null,null,null,null,null,null,null,null,null,null,null,null,null,null,null,null,null,null,null,null,null,null,null,null,null,null,null,null,null,null,null,null,null,null,null,null,null,null,null,null,null,null,null,null,null,null,null,null,null,null,null,null,null,null,null,null,null,null,null,null,null,null,null,null,null,null,null,null,null,null,null,null,null,null,null,null,null,null,null,null,null,null,null,null,null,8,null,null,{"$f":"IF(FA105=0,\"\",FA105)","v":3},null,null,{"$f":"IF(DL108=1,\"70歳以上被用者\",\"\")","v":""}]
[]
[]
[null,null,null,null,null,4,null,null,{"$f":"IF(FA111=0,\"\",FA111)","v":"2018-12-15"},null,null,null,null,null,null,null,null,null,null,null,null,null,null,null,null,null,null,null,null,null,null,null,5,null,null,"ｱ通貨",null,null,null,null,{"$f":"IF(ISBLANK(FJ16),(FJ16),INDEX(入力!A2:N501,FJ16,5))","v":2001250},null,null,null,null,null,null,null,null,null,null,null,null,null,null,null,null,null,null,null,"ｲ現物",null,null,null,null,{"$f":"IF(ISBLANK(FJ16),(FJ16),INDEX(入力!A2:N501,FJ16,6))","v":50000},null,null,null,null,null,null,null,null,null,null,null,null,null,null,null,null,null,null,null,6,null,null,{"$f":"IF(ISBLANK(FJ16),(FJ16),INDEX(入力!A2:N501,FJ16,14))","v":2051000},null,null,null,null,null,null,null,null,null,null,null,null,null,null,null,null,null,null,null,null,null,null,null,null,null,null,null,null,null,{"$f":"IF(DL108=2,INDEX(入力!$A$2:$N$501,FJ16,11),\"\")","v":""},null,null,null,null,null,null,null,null,null,null,null,null,null,null,null,null,null,null,null,null,null,null,null,null,null,null,null,null,null,null,null,null,null,null,null,null,null,{"$f":"IF(ISBLANK(FJ16),(FJ16),INDEX(入力!A2:N501,FJ16,8))","v":"2018-12-15"}]
[]
[]
[null,null,null,null,null,null,null,null,null,null,null,null,null,null,null,null,null,null,null,null,null,null,null,null,null,null,null,null,null,null,null,null,null,null,null,null,null,null,null,null,null,null,null,null,null,null,null,null,null,null,null,null,null,null,null,null,null,null,null,null,null,null,null,null,null,null,null,null,null,null,null,null,null,null,null,null,null,null,null,null,null,null,null,null,null,null,null,null,null,null,null,null,null,null,null,null,null,null,null,null,null,null,null,null,null,null,null,null,null,null,null,null,null,null,null,null,null,null,{"$f":"IF(DL108=3,INDEX(入力!$A$2:$N$501,FJ16,12),\"\")","v":"2018-12-02"}]
[]
[]
[]
[]
["４",null,null,null,null,1,null,null,{"$f":"IF(ISBLANK(FJ20),(FJ20),INDEX(入力!A2:N501,FJ20,13))","v":38},null,null,null,null,null,null,null,null,null,null,null,{"$f":"IF(ISBLANK(FJ20),(FJ20),INDEX(入力!A2:N501,FJ20,2))","v":38},null,null,null,null,null,null,null,null,null,null,null,2,null,null,{"$f":"IF(ISBLANK(FJ20),(FJ20),INDEX(入力!A2:N501,FJ20,3))","v":"健保　四郎"},null,null,null,null,null,null,null,null,null,null,null,null,null,null,null,null,null,null,null,null,null,null,null,null,null,null,null,null,null,null,null,null,null,null,null,null,null,null,null,null,null,null,null,null,null,null,null,null,null,3,null,null,{"$f":"IF(ISBLANK(FJ20),(FJ20),INDEX(入力!A2:N501,FJ20,4))","v":"1971-11-01"},null,null,null,null,null,null,null,null,null,null,null,null,null,null,null,null,null,null,null,null,null,null,null,7,null,null,{"$f":"IF(DL122=1,INDEX(入力!$A$2:$L$501,FJ20,10),\"\")","v":""},null,null,null,null,null,null,null,null,null,null,null,null,null,null,null,null,null,null,null,null,null,null,null,null,null,null,null,null,null,null,null,null,null,null,null,null,null,null,null,null,{"$f":"IF(ISBLANK(FJ20),(FJ20),INDEX(入力!A2:N501,FJ20,9))","v":0}]
[]
[]
[null,null,null,null,null,null,null,null,null,null,null,null,null,null,null,null,null,null,null,null,null,null,null,null,null,null,null,null,null,null,null,null,null,null,null,null,null,null,null,null,null,null,null,null,null,null,null,null,null,null,null,null,null,null,null,null,null,null,null,null,null,null,null,null,null,null,null,null,null,null,null,null,null,null,null,null,null,null,null,null,null,null,null,null,null,null,null,null,null,null,null,null,null,null,null,null,null,null,null,null,null,null,null,null,null,null,null,null,null,null,null,null,8,null,null,{"$f":"IF(FA119=0,\"\",FA119)","v":""},null,null,{"$f":"IF(DL122=1,\"70歳以上被用者\",\"\")","v":""}]
[]
[]
[null,null,null,null,null,4,null,null,{"$f":"IF(FA125=0,\"\",FA125)","v":""},null,null,null,null,null,null,null,null,null,null,null,null,null,null,null,null,null,null,null,null,null,null,null,5,null,null,"ｱ通貨",null,null,null,null,{"$f":"IF(ISBLANK(FJ20),(FJ20),INDEX(入力!A2:N501,FJ20,5))","v":459638},null,null,null,null,null,null,null,null,null,null,null,null,null,null,null,null,null,null,null,"ｲ現物",null,null,null,null,{"$f":"IF(ISBLANK(FJ20),(FJ20),INDEX(入力!A2:N501,FJ20,6))","v":0},null,null,null,null,null,null,null,null,null,null,null,null,null,null,null,null,null,null,null,6,null,null,{"$f":"IF(ISBLANK(FJ20),(FJ20),INDEX(入力!A2:N501,FJ20,14))","v":459000},null,null,null,null,null,null,null,null,null,null,null,null,null,null,null,null,null,null,null,null,null,null,null,null,null,null,null,null,null,{"$f":"IF(DL122=2,INDEX(入力!$A$2:$N$501,FJ20,11),\"\")","v":""},null,null,null,null,null,null,null,null,null,null,null,null,null,null,null,null,null,null,null,null,null,null,null,null,null,null,null,null,null,null,null,null,null,null,null,null,null,{"$f":"IF(ISBLANK(FJ20),(FJ20),INDEX(入力!A2:N501,FJ20,8))","v":"00:00:00"}]
[]
[]
[null,null,null,null,null,null,null,null,null,null,null,null,null,null,null,null,null,null,null,null,null,null,null,null,null,null,null,null,null,null,null,null,null,null,null,null,null,null,null,null,null,null,null,null,null,null,null,null,null,null,null,null,null,null,null,null,null,null,null,null,null,null,null,null,null,null,null,null,null,null,null,null,null,null,null,null,null,null,null,null,null,null,null,null,null,null,null,null,null,null,null,null,null,null,null,null,null,null,null,null,null,null,null,null,null,null,null,null,null,null,null,null,null,null,null,null,null,null,{"$f":"IF(DL122=3,INDEX(入力!$A$2:$N$501,FJ20,12),\"\")","v":""}]
[]
[]
[]
[]
["５",null,null,null,null,1,null,null,{"$f":"IF(ISBLANK(FJ24),(FJ24),INDEX(入力!A2:N501,FJ24,13))","v":41},null,null,null,null,null,null,null,null,null,null,null,{"$f":"IF(ISBLANK(FJ24),(FJ24),INDEX(入力!A2:N501,FJ24,2))","v":41},null,null,null,null,null,null,null,null,null,null,null,2,null,null,{"$f":"IF(ISBLANK(FJ24),(FJ24),INDEX(入力!A2:N501,FJ24,3))","v":"健保　五郎"},null,null,null,null,null,null,null,null,null,null,null,null,null,null,null,null,null,null,null,null,null,null,null,null,null,null,null,null,null,null,null,null,null,null,null,null,null,null,null,null,null,null,null,null,null,null,null,null,null,3,null,null,{"$f":"IF(ISBLANK(FJ24),(FJ24),INDEX(入力!A2:N501,FJ24,4))","v":"1972-11-01"},null,null,null,null,null,null,null,null,null,null,null,null,null,null,null,null,null,null,null,null,null,null,null,7,null,null,{"$f":"IF(DL136=1,INDEX(入力!$A$2:$L$501,FJ24,10),\"\")","v":""},null,null,null,null,null,null,null,null,null,null,null,null,null,null,null,null,null,null,null,null,null,null,null,null,null,null,null,null,null,null,null,null,null,null,null,null,null,null,null,null,{"$f":"IF(ISBLANK(FJ24),(FJ24),INDEX(入力!A2:N501,FJ24,9))","v":0}]
[]
[]
[null,null,null,null,null,null,null,null,null,null,null,null,null,null,null,null,null,null,null,null,null,null,null,null,null,null,null,null,null,null,null,null,null,null,null,null,null,null,null,null,null,null,null,null,null,null,null,null,null,null,null,null,null,null,null,null,null,null,null,null,null,null,null,null,null,null,null,null,null,null,null,null,null,null,null,null,null,null,null,null,null,null,null,null,null,null,null,null,null,null,null,null,null,null,null,null,null,null,null,null,null,null,null,null,null,null,null,null,null,null,null,null,8,null,null,{"$f":"IF(FA133=0,\"\",FA133)","v":""},null,null,{"$f":"IF(DL136=1,\"70歳以上被用者\",\"\")","v":""}]
[]
[]
[null,null,null,null,null,4,null,null,{"$f":"IF(FA139=0,\"\",FA139)","v":""},null,null,null,null,null,null,null,null,null,null,null,null,null,null,null,null,null,null,null,null,null,null,null,5,null,null,"ｱ通貨",null,null,null,null,{"$f":"IF(ISBLANK(FJ24),(FJ24),INDEX(入力!A2:N501,FJ24,5))","v":1500000},null,null,null,null,null,null,null,null,null,null,null,null,null,null,null,null,null,null,null,"ｲ現物",null,null,null,null,{"$f":"IF(ISBLANK(FJ24),(FJ24),INDEX(入力!A2:N501,FJ24,6))","v":0},null,null,null,null,null,null,null,null,null,null,null,null,null,null,null,null,null,null,null,6,null,null,{"$f":"IF(ISBLANK(FJ24),(FJ24),INDEX(入力!A2:N501,FJ24,14))","v":1500000},null,null,null,null,null,null,null,null,null,null,null,null,null,null,null,null,null,null,null,null,null,null,null,null,null,null,null,null,null,{"$f":"IF(DL136=2,INDEX(入力!$A$2:$N$501,FJ24,11),\"\")","v":""},null,null,null,null,null,null,null,null,null,null,null,null,null,null,null,null,null,null,null,null,null,null,null,null,null,null,null,null,null,null,null,null,null,null,null,null,null,{"$f":"IF(ISBLANK(FJ24),(FJ24),INDEX(入力!A2:N501,FJ24,8))","v":"00:00:00"}]
[]
[]
[null,null,null,null,null,null,null,null,null,null,null,null,null,null,null,null,null,null,null,null,null,null,null,null,null,null,null,null,null,null,null,null,null,null,null,null,null,null,null,null,null,null,null,null,null,null,null,null,null,null,null,null,null,null,null,null,null,null,null,null,null,null,null,null,null,null,null,null,null,null,null,null,null,null,null,null,null,null,null,null,null,null,null,null,null,null,null,null,null,null,null,null,null,null,null,null,null,null,null,null,null,null,null,null,null,null,null,null,null,null,null,null,null,null,null,null,null,null,{"$f":"IF(DL136=3,INDEX(入力!$A$2:$N$501,FJ24,12),\"\")","v":""}]
[]
[]
[]
[]
["６",null,null,null,null,1,null,null,{"$f":"IF(ISBLANK(FJ28),(FJ28),INDEX(入力!A2:N501,FJ28,13))","v":43},null,null,null,null,null,null,null,null,null,null,null,{"$f":"IF(ISBLANK(FJ28),(FJ28),INDEX(入力!A2:N501,FJ28,2))","v":42},null,null,null,null,null,null,null,null,null,null,null,2,null,null,{"$f":"IF(ISBLANK(FJ28),(FJ28),INDEX(入力!A2:N501,FJ28,3))","v":"健保　六郎"},null,null,null,null,null,null,null,null,null,null,null,null,null,null,null,null,null,null,null,null,null,null,null,null,null,null,null,null,null,null,null,null,null,null,null,null,null,null,null,null,null,null,null,null,null,null,null,null,null,3,null,null,{"$f":"IF(ISBLANK(FJ28),(FJ28),INDEX(入力!A2:N501,FJ28,4))","v":"1973-11-01"},null,null,null,null,null,null,null,null,null,null,null,null,null,null,null,null,null,null,null,null,null,null,null,7,null,null,{"$f":"IF(DL150=1,INDEX(入力!$A$2:$L$501,FJ28,10),\"\")","v":"987654321098"},null,null,null,null,null,null,null,null,null,null,null,null,null,null,null,null,null,null,null,null,null,null,null,null,null,null,null,null,null,null,null,null,null,null,null,null,null,null,null,null,{"$f":"IF(ISBLANK(FJ28),(FJ28),INDEX(入力!A2:N501,FJ28,9))","v":1}]
[]
[]
[null,null,null,null,null,null,null,null,null,null,null,null,null,null,null,null,null,null,null,null,null,null,null,null,null,null,null,null,null,null,null,null,null,null,null,null,null,null,null,null,null,null,null,null,null,null,null,null,null,null,null,null,null,null,null,null,null,null,null,null,null,null,null,null,null,null,null,null,null,null,null,null,null,null,null,null,null,null,null,null,null,null,null,null,null,null,null,null,null,null,null,null,null,null,null,null,null,null,null,null,null,null,null,null,null,null,null,null,null,null,null,null,8,null,null,{"$f":"IF(FA147=0,\"\",FA147)","v":1},null,null,{"$f":"IF(DL150=1,\"70歳以上被用者\",\"\")","v":"70歳以上被用者"}]
[]
[]
[null,null,null,null,null,4,null,null,{"$f":"IF(FA153=0,\"\",FA153)","v":""},null,null,null,null,null,null,null,null,null,null,null,null,null,null,null,null,null,null,null,null,null,null,null,5,null,null,"ｱ通貨",null,null,null,null,{"$f":"IF(ISBLANK(FJ28),(FJ28),INDEX(入力!A2:N501,FJ28,5))","v":1000000},null,null,null,null,null,null,null,null,null,null,null,null,null,null,null,null,null,null,null,"ｲ現物",null,null,null,null,{"$f":"IF(ISBLANK(FJ28),(FJ28),INDEX(入力!A2:N501,FJ28,6))","v":0},null,null,null,null,null,null,null,null,null,null,null,null,null,null,null,null,null,null,null,6,null,null,{"$f":"IF(ISBLANK(FJ28),(FJ28),INDEX(入力!A2:N501,FJ28,14))","v":1000000},null,null,null,null,null,null,null,null,null,null,null,null,null,null,null,null,null,null,null,null,null,null,null,null,null,null,null,null,null,{"$f":"IF(DL150=2,INDEX(入力!$A$2:$N$501,FJ28,11),\"\")","v":""},null,null,null,null,null,null,null,null,null,null,null,null,null,null,null,null,null,null,null,null,null,null,null,null,null,null,null,null,null,null,null,null,null,null,null,null,null,{"$f":"IF(ISBLANK(FJ28),(FJ28),INDEX(入力!A2:N501,FJ28,8))","v":"00:00:00"}]
[]
[]
[null,null,null,null,null,null,null,null,null,null,null,null,null,null,null,null,null,null,null,null,null,null,null,null,null,null,null,null,null,null,null,null,null,null,null,null,null,null,null,null,null,null,null,null,null,null,null,null,null,null,null,null,null,null,null,null,null,null,null,null,null,null,null,null,null,null,null,null,null,null,null,null,null,null,null,null,null,null,null,null,null,null,null,null,null,null,null,null,null,null,null,null,null,null,null,null,null,null,null,null,null,null,null,null,null,null,null,null,null,null,null,null,null,null,null,null,null,null,{"$f":"IF(DL150=3,INDEX(入力!$A$2:$N$501,FJ28,12),\"\")","v":""}]
[]
[]
[]
[]
["７",null,null,null,null,1,null,null,{"$f":"IF(ISBLANK(FJ32),(FJ32),INDEX(入力!A2:N501,FJ32,13))","v":44},null,null,null,null,null,null,null,null,null,null,null,{"$f":"IF(ISBLANK(FJ32),(FJ32),INDEX(入力!A2:N501,FJ32,2))","v":43},null,null,null,null,null,null,null,null,null,null,null,2,null,null,{"$f":"IF(ISBLANK(FJ32),(FJ32),INDEX(入力!A2:N501,FJ32,3))","v":"健保　七郎"},null,null,null,null,null,null,null,null,null,null,null,null,null,null,null,null,null,null,null,null,null,null,null,null,null,null,null,null,null,null,null,null,null,null,null,null,null,null,null,null,null,null,null,null,null,null,null,null,null,3,null,null,{"$f":"IF(ISBLANK(FJ32),(FJ32),INDEX(入力!A2:N501,FJ32,4))","v":"1974-11-01"},null,null,null,null,null,null,null,null,null,null,null,null,null,null,null,null,null,null,null,null,null,null,null,7,null,null,{"$f":"IF(DL164=1,INDEX(入力!$A$2:$L$501,FJ32,10),\"\")","v":""},null,null,null,null,null,null,null,null,null,null,null,null,null,null,null,null,null,null,null,null,null,null,null,null,null,null,null,null,null,null,null,null,null,null,null,null,null,null,null,null,{"$f":"IF(ISBLANK(FJ32),(FJ32),INDEX(入力!A2:N501,FJ32,9))","v":2}]
[]
[]
[null,null,null,null,null,null,null,null,null,null,null,null,null,null,null,null,null,null,null,null,null,null,null,null,null,null,null,null,null,null,null,null,null,null,null,null,null,null,null,null,null,null,null,null,null,null,null,null,null,null,null,null,null,null,null,null,null,null,null,null,null,null,null,null,null,null,null,null,null,null,null,null,null,null,null,null,null,null,null,null,null,null,null,null,null,null,null,null,null,null,null,null,null,null,null,null,null,null,null,null,null,null,null,null,null,null,null,null,null,null,null,null,8,null,null,{"$f":"IF(FA161=0,\"\",FA161)","v":2},null,null,{"$f":"IF(DL164=1,\"70歳以上被用者\",\"\")","v":""}]
[]
[]
[null,null,null,null,null,4,null,null,{"$f":"IF(FA167=0,\"\",FA167)","v":"2018-12-06"},null,null,null,null,null,null,null,null,null,null,null,null,null,null,null,null,null,null,null,null,null,null,null,5,null,null,"ｱ通貨",null,null,null,null,{"$f":"IF(ISBLANK(FJ32),(FJ32),INDEX(入力!A2:N501,FJ32,5))","v":1200000},null,null,null,null,null,null,null,null,null,null,null,null,null,null,null,null,null,null,null,"ｲ現物",null,null,null,null,{"$f":"IF(ISBLANK(FJ32),(FJ32),INDEX(入力!A2:N501,FJ32,6))","v":0},null,null,null,null,null,null,null,null,null,null,null,null,null,null,null,null,null,null,null,6,null,null,{"$f":"IF(ISBLANK(FJ32),(FJ32),INDEX(入力!A2:N501,FJ32,14))","v":1702000},null,null,null,null,null,null,null,null,null,null,null,null,null,null,null,null,null,null,null,null,null,null,null,null,null,null,null,null,null,{"$f":"IF(DL164=2,INDEX(入力!$A$2:$N$501,FJ32,11),\"\")","v":502385},null,null,null,null,null,null,null,null,null,null,null,null,null,null,null,null,null,null,null,null,null,null,null,null,null,null,null,null,null,null,null,null,null,null,null,null,null,{"$f":"IF(ISBLANK(FJ32),(FJ32),INDEX(入力!A2:N501,FJ32,8))","v":"2018-12-06"}]
[]
[]
[null,null,null,null,null,null,null,null,null,null,null,null,null,null,null,null,null,null,null,null,null,null,null,null,null,null,null,null,null,null,null,null,null,null,null,null,null,null,null,null,null,null,null,null,null,null,null,null,null,null,null,null,null,null,null,null,null,null,null,null,null,null,null,null,null,null,null,null,null,null,null,null,null,null,null,null,null,null,null,null,null,null,null,null,null,null,null,null,null,null,null,null,null,null,null,null,null,null,null,null,null,null,null,null,null,null,null,null,null,null,null,null,null,null,null,null,null,null,{"$f":"IF(DL164=3,INDEX(入力!$A$2:$N$501,FJ32,12),\"\")","v":""}]
[]
[]
[]
[]
["８",null,null,null,null,1,null,null,{"$f":"IF(ISBLANK(FJ36),(FJ36),INDEX(入力!A2:N501,FJ36,13))","v":45},null,null,null,null,null,null,null,null,null,null,null,{"$f":"IF(ISBLANK(FJ36),(FJ36),INDEX(入力!A2:N501,FJ36,2))","v":45},null,null,null,null,null,null,null,null,null,null,null,2,null,null,{"$f":"IF(ISBLANK(FJ36),(FJ36),INDEX(入力!A2:N501,FJ36,3))","v":"健保　八郎"},null,null,null,null,null,null,null,null,null,null,null,null,null,null,null,null,null,null,null,null,null,null,null,null,null,null,null,null,null,null,null,null,null,null,null,null,null,null,null,null,null,null,null,null,null,null,null,null,null,3,null,null,{"$f":"IF(ISBLANK(FJ36),(FJ36),INDEX(入力!A2:N501,FJ36,4))","v":"1975-11-01"},null,null,null,null,null,null,null,null,null,null,null,null,null,null,null,null,null,null,null,null,null,null,null,7,null,null,{"$f":"IF(DL178=1,INDEX(入力!$A$2:$L$501,FJ36,10),\"\")","v":""},null,null,null,null,null,null,null,null,null,null,null,null,null,null,null,null,null,null,null,null,null,null,null,null,null,null,null,null,null,null,null,null,null,null,null,null,null,null,null,null,{"$f":"IF(ISBLANK(FJ36),(FJ36),INDEX(入力!A2:N501,FJ36,9))","v":3}]
[]
[]
[null,null,null,null,null,null,null,null,null,null,null,null,null,null,null,null,null,null,null,null,null,null,null,null,null,null,null,null,null,null,null,null,null,null,null,null,null,null,null,null,null,null,null,null,null,null,null,null,null,null,null,null,null,null,null,null,null,null,null,null,null,null,null,null,null,null,null,null,null,null,null,null,null,null,null,null,null,null,null,null,null,null,null,null,null,null,null,null,null,null,null,null,null,null,null,null,null,null,null,null,null,null,null,null,null,null,null,null,null,null,null,null,8,null,null,{"$f":"IF(FA175=0,\"\",FA175)","v":3},null,null,{"$f":"IF(DL178=1,\"70歳以上被用者\",\"\")","v":""}]
[]
[]
[null,null,null,null,null,4,null,null,{"$f":"IF(FA181=0,\"\",FA181)","v":"2018-12-07"},null,null,null,null,null,null,null,null,null,null,null,null,null,null,null,null,null,null,null,null,null,null,null,5,null,null,"ｱ通貨",null,null,null,null,{"$f":"IF(ISBLANK(FJ36),(FJ36),INDEX(入力!A2:N501,FJ36,5))","v":1700000},null,null,null,null,null,null,null,null,null,null,null,null,null,null,null,null,null,null,null,"ｲ現物",null,null,null,null,{"$f":"IF(ISBLANK(FJ36),(FJ36),INDEX(入力!A2:N501,FJ36,6))","v":0},null,null,null,null,null,null,null,null,null,null,null,null,null,null,null,null,null,null,null,6,null,null,{"$f":"IF(ISBLANK(FJ36),(FJ36),INDEX(入力!A2:N501,FJ36,14))","v":1700000},null,null,null,null,null,null,null,null,null,null,null,null,null,null,null,null,null,null,null,null,null,null,null,null,null,null,null,null,null,{"$f":"IF(DL178=2,INDEX(入力!$A$2:$N$501,FJ36,11),\"\")","v":""},null,null,null,null,null,null,null,null,null,null,null,null,null,null,null,null,null,null,null,null,null,null,null,null,null,null,null,null,null,null,null,null,null,null,null,null,null,{"$f":"IF(ISBLANK(FJ36),(FJ36),INDEX(入力!A2:N501,FJ36,8))","v":"2018-12-07"}]
[]
[]
[null,null,null,null,null,null,null,null,null,null,null,null,null,null,null,null,null,null,null,null,null,null,null,null,null,null,null,null,null,null,null,null,null,null,null,null,null,null,null,null,null,null,null,null,null,null,null,null,null,null,null,null,null,null,null,null,null,null,null,null,null,null,null,null,null,null,null,null,null,null,null,null,null,null,null,null,null,null,null,null,null,null,null,null,null,null,null,null,null,null,null,null,null,null,null,null,null,null,null,null,null,null,null,null,null,null,null,null,null,null,null,null,null,null,null,null,null,null,{"$f":"IF(DL178=3,INDEX(入力!$A$2:$N$501,FJ36,12),\"\")","v":"2018-12-10"}]
[]
[]
[]
[]
["９",null,null,null,null,1,null,null,{"$f":"IF(ISBLANK(FJ40),(FJ40),INDEX(入力!A2:N501,FJ40,13))","v":52},null,null,null,null,null,null,null,null,null,null,null,{"$f":"IF(ISBLANK(FJ40),(FJ40),INDEX(入力!A2:N501,FJ40,2))","v":52},null,null,null,null,null,null,null,null,null,null,null,2,null,null,{"$f":"IF(ISBLANK(FJ40),(FJ40),INDEX(入力!A2:N501,FJ40,3))","v":"健保　九郎"},null,null,null,null,null,null,null,null,null,null,null,null,null,null,null,null,null,null,null,null,null,null,null,null,null,null,null,null,null,null,null,null,null,null,null,null,null,null,null,null,null,null,null,null,null,null,null,null,null,3,null,null,{"$f":"IF(ISBLANK(FJ40),(FJ40),INDEX(入力!A2:N501,FJ40,4))","v":"1976-11-01"},null,null,null,null,null,null,null,null,null,null,null,null,null,null,null,null,null,null,null,null,null,null,null,7,null,null,{"$f":"IF(DL192=1,INDEX(入力!$A$2:$L$501,FJ40,10),\"\")","v":""},null,null,null,null,null,null,null,null,null,null,null,null,null,null,null,null,null,null,null,null,null,null,null,null,null,null,null,null,null,null,null,null,null,null,null,null,null,null,null,null,{"$f":"IF(ISBLANK(FJ40),(FJ40),INDEX(入力!A2:N501,FJ40,9))","v":0}]
[]
[]
[null,null,null,null,null,null,null,null,null,null,null,null,null,null,null,null,null,null,null,null,null,null,null,null,null,null,null,null,null,null,null,null,null,null,null,null,null,null,null,null,null,null,null,null,null,null,null,null,null,null,null,null,null,null,null,null,null,null,null,null,null,null,null,null,null,null,null,null,null,null,null,null,null,null,null,null,null,null,null,null,null,null,null,null,null,null,null,null,null,null,null,null,null,null,null,null,null,null,null,null,null,null,null,null,null,null,null,null,null,null,null,null,8,null,null,{"$f":"IF(FA189=0,\"\",FA189)","v":""},null,null,{"$f":"IF(DL192=1,\"70歳以上被用者\",\"\")","v":""}]
[]
[]
[null,null,null,null,null,4,null,null,{"$f":"IF(FA195=0,\"\",FA195)","v":""},null,null,null,null,null,null,null,null,null,null,null,null,null,null,null,null,null,null,null,null,null,null,null,5,null,null,"ｱ通貨",null,null,null,null,{"$f":"IF(ISBLANK(FJ40),(FJ40),INDEX(入力!A2:N501,FJ40,5))","v":1200000},null,null,null,null,null,null,null,null,null,null,null,null,null,null,null,null,null,null,null,"ｲ現物",null,null,null,null,{"$f":"IF(ISBLANK(FJ40),(FJ40),INDEX(入力!A2:N501,FJ40,6))","v":0},null,null,null,null,null,null,null,null,null,null,null,null,null,null,null,null,null,null,null,6,null,null,{"$f":"IF(ISBLANK(FJ40),(FJ40),INDEX(入力!A2:N501,FJ40,14))","v":1200000},null,null,null,null,null,null,null,null,null,null,null,null,null,null,null,null,null,null,null,null,null,null,null,null,null,null,null,null,null,{"$f":"IF(DL192=2,INDEX(入力!$A$2:$N$501,FJ40,11),\"\")","v":""},null,null,null,null,null,null,null,null,null,null,null,null,null,null,null,null,null,null,null,null,null,null,null,null,null,null,null,null,null,null,null,null,null,null,null,null,null,{"$f":"IF(ISBLANK(FJ40),(FJ40),INDEX(入力!A2:N501,FJ40,8))","v":"00:00:00"}]
[]
[]
[null,null,null,null,null,null,null,null,null,null,null,null,null,null,null,null,null,null,null,null,null,null,null,null,null,null,null,null,null,null,null,null,null,null,null,null,null,null,null,null,null,null,null,null,null,null,null,null,null,null,null,null,null,null,null,null,null,null,null,null,null,null,null,null,null,null,null,null,null,null,null,null,null,null,null,null,null,null,null,null,null,null,null,null,null,null,null,null,null,null,null,null,null,null,null,null,null,null,null,null,null,null,null,null,null,null,null,null,null,null,null,null,null,null,null,null,null,null,{"$f":"IF(DL192=3,INDEX(入力!$A$2:$N$501,FJ40,12),\"\")","v":""}]
[]
[]
[]
[]
["１０",null,null,null,null,1,null,null,{"$f":"IF(ISBLANK(FJ44),(FJ44),INDEX(入力!A2:N501,FJ44,13))","v":60},null,null,null,null,null,null,null,null,null,null,null,{"$f":"IF(ISBLANK(FJ44),(FJ44),INDEX(入力!A2:N501,FJ44,2))","v":60},null,null,null,null,null,null,null,null,null,null,null,2,null,null,{"$f":"IF(ISBLANK(FJ44),(FJ44),INDEX(入力!A2:N501,FJ44,3))","v":"健保　十郎"},null,null,null,null,null,null,null,null,null,null,null,null,null,null,null,null,null,null,null,null,null,null,null,null,null,null,null,null,null,null,null,null,null,null,null,null,null,null,null,null,null,null,null,null,null,null,null,null,null,3,null,null,{"$f":"IF(ISBLANK(FJ44),(FJ44),INDEX(入力!A2:N501,FJ44,4))","v":"1977-11-01"},null,null,null,null,null,null,null,null,null,null,null,null,null,null,null,null,null,null,null,null,null,null,null,7,null,null,{"$f":"IF(DL206=1,INDEX(入力!$A$2:$L$501,FJ44,10),\"\")","v":""},null,null,null,null,null,null,null,null,null,null,null,null,null,null,null,null,null,null,null,null,null,null,null,null,null,null,null,null,null,null,null,null,null,null,null,null,null,null,null,null,{"$f":"IF(ISBLANK(FJ44),(FJ44),INDEX(入力!A2:N501,FJ44,9))","v":0}]
[]
[]
[null,null,null,null,null,null,null,null,null,null,null,null,null,null,null,null,null,null,null,null,null,null,null,null,null,null,null,null,null,null,null,null,null,null,null,null,null,null,null,null,null,null,null,null,null,null,null,null,null,null,null,null,null,null,null,null,null,null,null,null,null,null,null,null,null,null,null,null,null,null,null,null,null,null,null,null,null,null,null,null,null,null,null,null,null,null,null,null,null,null,null,null,null,null,null,null,null,null,null,null,null,null,null,null,null,null,null,null,null,null,null,null,8,null,null,{"$f":"IF(FA203=0,\"\",FA203)","v":""},null,null,{"$f":"IF(DL206=1,\"70歳以上被用者\",\"\")","v":""}]
[]
[]
[null,null,null,null,null,4,null,null,{"$f":"IF(FA209=0,\"\",FA209)","v":""},null,null,null,null,null,null,null,null,null,null,null,null,null,null,null,null,null,null,null,null,null,null,null,5,null,null,"ｱ通貨",null,null,null,null,{"$f":"IF(ISBLANK(FJ44),(FJ44),INDEX(入力!A2:N501,FJ44,5))","v":5500000},null,null,null,null,null,null,null,null,null,null,null,null,null,null,null,null,null,null,null,"ｲ現物",null,null,null,null,{"$f":"IF(ISBLANK(FJ44),(FJ44),INDEX(入力!A2:N501,FJ44,6))","v":0},null,null,null,null,null,null,null,null,null,null,null,null,null,null,null,null,null,null,null,6,null,null,{"$f":"IF(ISBLANK(FJ44),(FJ44),INDEX(入力!A2:N501,FJ44,14))","v":5500000},null,null,null,null,null,null,null,null,null,null,null,null,null,null,null,null,null,null,null,null,null,null,null,null,null,null,null,null,null,{"$f":"IF(DL206=2,INDEX(入力!$A$2:$N$501,FJ44,11),\"\")","v":""},null,null,null,null,null,null,null,null,null,null,null,null,null,null,null,null,null,null,null,null,null,null,null,null,null,null,null,null,null,null,null,null,null,null,null,null,null,{"$f":"IF(ISBLANK(FJ44),(FJ44),INDEX(入力!A2:N501,FJ44,8))","v":"00:00:00"}]
[]
[]
[null,null,null,null,null,null,null,null,null,null,null,null,null,null,null,null,null,null,null,null,null,null,null,null,null,null,null,null,null,null,null,null,null,null,null,null,null,null,null,null,null,null,null,null,null,null,null,null,null,null,null,null,null,null,null,null,null,null,null,null,null,null,null,null,null,null,null,null,null,null,null,null,null,null,null,null,null,null,null,null,null,null,null,null,null,null,null,null,null,null,null,null,null,null,null,null,null,null,null,null,null,null,null,null,null,null,null,null,null,null,null,null,null,null,null,null,null,null,{"$f":"IF(DL206=3,INDEX(入力!$A$2:$N$501,FJ44,12),\"\")","v":""}]
[]
[]
[null,null,null,null,null,null,null,null,null,null,null,null,null,null,null,null,null,null,null,null,null,null,null,null,null,null,null,null,null,null,null,null,null,null,null,null,null,null,null,null,null,null,null,null,null,null,null,null,null,null,null,null,null,null,null,null,null,null,null,null,null,null,null,null,null,null,null,null,null,null,null,null,null,null,null,null,null,null,null,null,null,null,null,null,null,null,null,null,null,null,null,null,null,null,null,null,"大阪自動車整備健康保険組合"]

{"sheet":"組合控","index":5,"n_rows":212,"n_cols":119,"rows_kept":212,"cut":false,"hidden":false,"merged":[[208,118,210,139],[209,112,213,114],[211,5,213,7],[211,32,213,34],[211,35,213,39],[211,60,213,64],[211,85,213,87],[211,118,213,139],[205,118,207,139],[208,5,210,7],[208,8,213,31],[208,32,210,34],[208,35,210,39],[208,40,213,59],[208,60,210,64],[208,65,213,84],[208,85,210,87],[208,88,213,111],[202,0,213,4],[202,5,204,7],[202,8,207,19],[202,20,207,31],[202,32,204,34],[202,35,207,84],[194,118,196,139],[195,112,199,114],[197,5,199,7],[197,32,199,34],[197,35,199,39],[197,60,199,64],[197,85,199,87],[197,118,199,139],[188,0,199,4],[202,85,204,87],[202,88,207,111],[202,112,204,114],[202,115,204,139],[205,5,207,7],[205,32,207,34],[205,85,207,87],[205,112,208,114],[205,115,213,117],[188,85,190,87],[188,88,193,111],[188,112,190,114],[188,115,190,139],[191,5,193,7],[191,32,193,34],[191,85,193,87],[191,112,194,114],[191,115,199,117],[188,5,190,7],[188,8,193,19],[188,20,193,31],[188,32,190,34],[188,35,193,84],[191,118,193,139],[194,5,196,7],[194,8,199,31],[194,32,196,34],[194,35,196,39],[194,40,199,59],[194,60,196,64],[194,65,199,84],[194,85,196,87],[194,88,199,111],[180,118,182,139],[181,112,185,114],[183,5,185,7],[183,32,185,34],[183,35,185,39],[183,60,185,64],[183,85,185,87],[183,118,185,139],[177,118,179,139],[180,5,182,7],[180,8,185,31],[180,32,182,34],[180,35,182,39],[180,40,185,59],[180,60,182,64],[180,65,185,84],[180,85,182,87],[180,88,185,111],[174,0,185,4],[174,5,176,7],[174,8,179,19],[174,20,179,31],[174,32,176,34],[174,35,179,84],[166,118,168,139],[167,112,171,114],[169,5,171,7],[169,32,171,34],[169,35,171,39],[169,60,171,64],[169,85,171,87],[169,118,171,139],[160,0,171,4],[174,85,176,87],[174,88,179,111],[174,112,176,114],[174,115,176,139],[177,5,179,7],[177,32,179,34],[177,85,179,87],[177,112,180,114],[177,115,185,117],[160,85,162,87],[160,88,165,111],[160,112,162,114],[160,115,162,139],[163,5,165,7],[163,32,165,34],[163,85,165,87],[163,112,166,114],[163,115,171,117],[160,5,162,7],[160,8,165,19],[160,20,165,31],[160,32,162,34],[160,35,165,84],[163,118,165,139],[166,5,168,7],[166,8,171,31],[166,32,168,34],[166,35,168,39],[166,40,171,59],[166,60,168,64],[166,65,171,84],[166,85,168,87],[166,88,171,111],[152,118,154,139],[153,112,157,114],[155,5,157,7],[155,32,157,34],[155,35,157,39],[155,60,157,64],[155,85,157,87],[155,118,157,139],[149,118,151,139],[152,5,154,7],[152,8,157,31],[152,32,154,34],[152,35,154,39],[152,40,157,59],[152,60,154,64],[152,65,157,84],[152,85,154,87],[152,88,157,111],[146,0,157,4],[146,5,148,7],[146,8,151,19],[146,20,151,31],[146,32,148,34],[146,35,151,84],[138,118,140,139],[139,112,143,114],[141,5,143,7],[141,32,143,34],[141,35,143,39],[141,60,143,64],[141,85,143,87],[141,118,143,139],[132,0,143,4],[146,85,148,87],[146,88,151,111],[146,112,148,114],[146,115,148,139],[149,5,151,7],[149,32,151,34],[149,85,151,87],[149,112,152,114],[149,115,157,117],[132,85,134,87],[132,88,137,111],[132,112,134,114],[132,115,134,139],[135,5,137,7],[135,32,137,34],[135,85,137,87],[135,112,138,114],[135,115,143,117],[132,5,134,7],[132,8,137,19],[132,20,137,31],[132,32,134,34],[132,35,137,84],[135,118,137,139],[138,5,140,7],[138,8,143,31],[138,32,140,34],[138,35,140,39],[138,40,143,59],[138,60,140,64],[138,65,143,84],[138,85,140,87],[138,88,143,111],[124,118,126,139],[125,112,129,114],[127,5,129,7],[127,32,129,34],[127,35,129,39],[127,60,129,64],[127,85,129,87],[127,118,129,139],[121,118,123,139],[124,5,126,7],[124,8,129,31],[124,32,126,34],[124,35,126,39],[124,40,129,59],[124,60,126,64],[124,65,129,84],[124,85,126,87],[124,88,129,111],[118,0,129,4],[118,5,120,7],[118,8,123,19],[118,20,123,31],[118,32,120,34],[118,35,123,84],[110,118,112,139],[111,112,115,114],[113,5,115,7],[113,32,115,34],[113,35,115,39],[113,60,115,64],[113,85,115,87],[113,118,115,139],[104,0,115,4],[118,85,120,87],[118,88,123,111],[118,112,120,114],[118,115,120,139],[121,5,123,7],[121,32,123,34],[121,85,123,87],[121,112,124,114],[121,115,129,117],[104,85,106,87],[104,88,109,111],[104,112,106,114],[104,115,106,139],[107,5,109,7],[107,32,109,34],[107,85,109,87],[107,112,110,114],[107,115,115,117],[104,5,106,7],[104,8,109,19],[104,20,109,31],[104,32,106,34],[104,35,109,84],[107,118,109,139],[110,5,112,7],[110,8,115,31],[110,32,112,34],[110,35,112,39],[110,40,115,59],[110,60,112,64],[110,65,115,84],[110,85,112,87],[110,88,115,111],[96,118,98,139],[97,112,101,114],[99,5,101,7],[99,32,101,34],[99,35,101,39],[99,60,101,64],[99,85,101,87],[99,118,101,139],[93,118,95,139],[96,5,98,7],[96,8,101,31],[96,32,98,34],[96,35,98,39],[96,40,101,59],[96,60,98,64],[96,65,101,84],[96,85,98,87],[96,88,101,111],[90,0,101,4],[90,5,92,7],[90,8,95,19],[90,20,95,31],[90,32,92,34],[90,35,95,84],[82,118,84,139],[83,112,87,114],[85,5,87,7],[85,32,87,34],[85,35,87,39],[85,60,87,64],[85,85,87,87],[85,118,87,139],[76,0,87,4],[90,85,92,87],[90,88,95,111],[90,112,92,114],[90,115,92,139],[93,5,95,7],[93,32,95,34],[93,85,95,87],[93,112,96,114],[93,115,101,117],[76,85,78,87],[76,88,81,111],[76,112,78,114],[76,115,78,139],[79,5,81,7],[79,32,81,34],[79,85,81,87],[79,112,82,114],[79,115,87,117],[76,5,78,7],[76,8,81,19],[76,20,81,31],[76,32,78,34],[76,35,81,84],[79,118,81,139],[82,5,84,7],[82,8,87,31],[82,32,84,34],[82,35,84,39],[82,40,87,59],[82,60,84,64],[82,65,87,84],[82,85,84,87],[82,88,87,111],[70,61,73,90],[70,91,72,93],[70,94,73,139],[73,5,73,7],[73,32,73,34],[73,58,73,60],[73,91,73,93],[66,61,69,90],[66,91,68,93],[66,94,69,139],[69,5,69,7],[69,32,69,34],[69,58,69,60],[69,91,69,93],[66,0,73,4],[66,5,68,7],[66,8,69,31],[66,32,68,34],[66,35,69,57],[66,58,68,60],[70,5,72,7],[70,8,73,31],[70,32,72,34],[70,35,73,57],[70,58,72,60],[55,0,64,4],[55,5,57,7],[55,8,64,41],[55,42,64,69],[58,5,64,7],[47,5,47,15],[47,16,47,69],[48,5,53,15],[48,16,53,69],[15,0,53,4],[15,5,18,15],[15,16,18,23],[9,0,12,27],[1,11,7,101],[40,5,40,15],[40,16,40,69],[41,5,46,15],[41,16,46,61],[41,62,46,69],[25,5,30,15],[26,16,32,69],[31,5,33,15],[33,16,33,69],[34,5,39,15],[34,16,39,69],[23,16,25,18],[23,19,25,31],[23,32,25,69],[20,5,24,15],[20,16,22,69],[26,76,29,135],[39,76,43,132]]}
[]
[null,null,null,null,null,null,null,null,null,null,null,"健康保険　被保険者標準賞与決定通知書"]
[]
[]
[]
[]
[]
[]
[]
[{"$f":"基本情報登録!C2","v":"2021-04-22"}]
[]
[]
[]
[]
[]
["事業主記入欄",null,null,null,null,"記号",null,null,null,null,null,null,null,null,null,null,{"$f":"基本情報登録!C6","v":"532"}]
[]
[]
[]
[]
[]
[]
[]
[null,null,null,null,null,null,null,null,null,null,null,null,null,null,null,null,"〒",null,null,{"$f":"基本情報登録!C7","v":"542-0066"}]
[]
[null,null,null,null,null,"事業所\n所在地"]
[null,null,null,null,null,null,null,null,null,null,null,null,null,null,null,null,{"$f":"基本情報登録!C8","v":"大阪府大阪市中央区瓦屋町2-3-1"},null,null,null,null,null,null,null,null,null,null,null,null,null,null,null,null,null,null,null,null,null,null,null,null,null,null,null,null,null,null,null,null,null,null,null,null,null,null,null,null,null,null,null,null,null,null,null,null,null,null,null,null,null,null,null,null,null,null,null,"下記のとおり標準賞与額が確認されたので通知します。"]
[]
[]
[]
[]
[]
[]
[]
[null,null,null,null,null,"事業所\n名称",null,null,null,null,null,null,null,null,null,null,{"$f":"基本情報登録!C9","v":"大阪自動車整備健康保険組合"}]
[]
[]
[]
[]
[null,null,null,null,null,null,null,null,null,null,null,null,null,null,null,null,null,null,null,null,null,null,null,null,null,null,null,null,null,null,null,null,null,null,null,null,null,null,null,null,null,null,null,null,null,null,null,null,null,null,null,null,null,null,null,null,null,null,null,null,null,null,null,null,null,null,null,null,null,null,null,null,null,null,null,null,"大阪自動車整備健康保険組合理事長"]
[]
[null,null,null,null,null,"事業主\n氏名",null,null,null,null,null,null,null,null,null,null,{"$f":"基本情報登録!C10","v":"理事長　健保　太郎"},null,null,null,null,null,null,null,null,null,null,null,null,null,null,null,null,null,null,null,null,null,null,null,null,null,null,null,null,null,null,null,null,null,null,null,null,null,null,null,null,null,null,null,null,null,"様"]
[]
[]
[]
[]
[]
[]
[null,null,null,null,null,"電話番号",null,null,null,null,null,null,null,null,null,null,{"$f":"基本情報登録!C11","v":"06-6762-6371"}]
[]
[]
[]
[]
[]
[]
["共通",null,null,null,null,4,null,null,"賞与支払年月日(共通)",null,null,null,null,null,null,null,null,null,null,null,null,null,null,null,null,null,null,null,null,null,null,null,null,null,null,null,null,null,null,null,null,null,{"$f":"総括表情報登録!C2","v":"00:00:00"}]
[]
[]
[]
[]
[]
[]
[]
[]
[]
[]
["項目名",null,null,null,null,1,null,null,"年金番号・健保番号",null,null,null,null,null,null,null,null,null,null,null,null,null,null,null,null,null,null,null,null,null,null,null,2,null,null,"被保険者氏名",null,null,null,null,null,null,null,null,null,null,null,null,null,null,null,null,null,null,null,null,null,null,3,null,null,"生年月日",null,null,null,null,null,null,null,null,null,null,null,null,null,null,null,null,null,null,null,null,null,null,null,null,null,null,null,null,null,7,null,null,"個人番号(70歳以上被用者の場合のみ)"]
[]
[]
[]
[null,null,null,null,null,4,null,null,"賞与支払年月日",null,null,null,null,null,null,null,null,null,null,null,null,null,null,null,null,null,null,null,null,null,null,null,5,null,null,"賞与支払額",null,null,null,null,null,null,null,null,null,null,null,null,null,null,null,null,null,null,null,null,null,null,6,null,null,"賞与額(千円未満切捨て)",null,null,null,null,null,null,null,null,null,null,null,null,null,null,null,null,null,null,null,null,null,null,null,null,null,null,null,null,null,8,null,null,"備　考"]
[]
[]
[]
[]
[]
["１",null,null,null,null,1,null,null,{"$f":"組合届!I77","v":69},null,null,null,null,null,null,null,null,null,null,null,{"$f":"組合届!U77","v":35},null,null,null,null,null,null,null,null,null,null,null,2,null,null,{"$f":"組合届!AJ77","v":"健保　一郎"},null,null,null,null,null,null,null,null,null,null,null,null,null,null,null,null,null,null,null,null,null,null,null,null,null,null,null,null,null,null,null,null,null,null,null,null,null,null,null,null,null,null,null,null,null,null,null,null,null,3,null,null,{"$f":"組合届!CK77","v":"1968-11-01"},null,null,null,null,null,null,null,null,null,null,null,null,null,null,null,null,null,null,null,null,null,null,null,7]
[]
[]
[null,null,null,null,null,null,null,null,null,null,null,null,null,null,null,null,null,null,null,null,null,null,null,null,null,null,null,null,null,null,null,null,null,null,null,null,null,null,null,null,null,null,null,null,null,null,null,null,null,null,null,null,null,null,null,null,null,null,null,null,null,null,null,null,null,null,null,null,null,null,null,null,null,null,null,null,null,null,null,null,null,null,null,null,null,null,null,null,null,null,null,null,null,null,null,null,null,null,null,null,null,null,null,null,null,null,null,null,null,null,null,null,8,null,null,{"$f":"組合届!DL80","v":1},null,null,{"$f":"組合届!DO80","v":"70歳以上被用者"}]
[]
[]
[null,null,null,null,null,4,null,null,{"$f":"組合届!I83","v":""},null,null,null,null,null,null,null,null,null,null,null,null,null,null,null,null,null,null,null,null,null,null,null,5,null,null,"ｱ通貨",null,null,null,null,{"$f":"組合届!AO83","v":12345678},null,null,null,null,null,null,null,null,null,null,null,null,null,null,null,null,null,null,null,"ｲ現物",null,null,null,null,{"$f":"組合届!BN83","v":0},null,null,null,null,null,null,null,null,null,null,null,null,null,null,null,null,null,null,null,6,null,null,{"$f":"組合届!CK83","v":12345000},null,null,null,null,null,null,null,null,null,null,null,null,null,null,null,null,null,null,null,null,null,null,null,null,null,null,null,null,null,{"$f":"組合届!DO83","v":""}]
[]
[]
[null,null,null,null,null,null,null,null,null,null,null,null,null,null,null,null,null,null,null,null,null,null,null,null,null,null,null,null,null,null,null,null,null,null,null,null,null,null,null,null,null,null,null,null,null,null,null,null,null,null,null,null,null,null,null,null,null,null,null,null,null,null,null,null,null,null,null,null,null,null,null,null,null,null,null,null,null,null,null,null,null,null,null,null,null,null,null,null,null,null,null,null,null,null,null,null,null,null,null,null,null,null,null,null,null,null,null,null,null,null,null,null,null,null,null,null,null,null,{"$f":"組合届!DO86","v":""}]
[]
[]
[]
[]
["２",null,null,null,null,1,null,null,{"$f":"組合届!I91","v":36},null,null,null,null,null,null,null,null,null,null,null,{"$f":"組合届!U91","v":36},null,null,null,null,null,null,null,null,null,null,null,2,null,null,{"$f":"組合届!AJ91","v":"健保　次郎"},null,null,null,null,null,null,null,null,null,null,null,null,null,null,null,null,null,null,null,null,null,null,null,null,null,null,null,null,null,null,null,null,null,null,null,null,null,null,null,null,null,null,null,null,null,null,null,null,null,3,null,null,{"$f":"組合届!CK91","v":"1969-11-01"},null,null,null,null,null,null,null,null,null,null,null,null,null,null,null,null,null,null,null,null,null,null,null,7]
[]
[]
[null,null,null,null,null,null,null,null,null,null,null,null,null,null,null,null,null,null,null,null,null,null,null,null,null,null,null,null,null,null,null,null,null,null,null,null,null,null,null,null,null,null,null,null,null,null,null,null,null,null,null,null,null,null,null,null,null,null,null,null,null,null,null,null,null,null,null,null,null,null,null,null,null,null,null,null,null,null,null,null,null,null,null,null,null,null,null,null,null,null,null,null,null,null,null,null,null,null,null,null,null,null,null,null,null,null,null,null,null,null,null,null,8,null,null,{"$f":"組合届!DL94","v":2},null,null,{"$f":"組合届!DO94","v":""}]
[]
[]
[null,null,null,null,null,4,null,null,{"$f":"組合届!I97","v":""},null,null,null,null,null,null,null,null,null,null,null,null,null,null,null,null,null,null,null,null,null,null,null,5,null,null,"ｱ通貨",null,null,null,null,{"$f":"組合届!AO97","v":1538500},null,null,null,null,null,null,null,null,null,null,null,null,null,null,null,null,null,null,null,"ｲ現物",null,null,null,null,{"$f":"組合届!BN97","v":0},null,null,null,null,null,null,null,null,null,null,null,null,null,null,null,null,null,null,null,6,null,null,{"$f":"組合届!CK97","v":13884000},null,null,null,null,null,null,null,null,null,null,null,null,null,null,null,null,null,null,null,null,null,null,null,null,null,null,null,null,null,{"$f":"組合届!DO97","v":12345678}]
[]
[]
[null,null,null,null,null,null,null,null,null,null,null,null,null,null,null,null,null,null,null,null,null,null,null,null,null,null,null,null,null,null,null,null,null,null,null,null,null,null,null,null,null,null,null,null,null,null,null,null,null,null,null,null,null,null,null,null,null,null,null,null,null,null,null,null,null,null,null,null,null,null,null,null,null,null,null,null,null,null,null,null,null,null,null,null,null,null,null,null,null,null,null,null,null,null,null,null,null,null,null,null,null,null,null,null,null,null,null,null,null,null,null,null,null,null,null,null,null,null,{"$f":"組合届!DO100","v":""}]
[]
[]
[]
[]
["３",null,null,null,null,1,null,null,{"$f":"組合届!I105","v":37},null,null,null,null,null,null,null,null,null,null,null,{"$f":"組合届!U105","v":37},null,null,null,null,null,null,null,null,null,null,null,2,null,null,{"$f":"組合届!AJ105","v":"健保　三朗"},null,null,null,null,null,null,null,null,null,null,null,null,null,null,null,null,null,null,null,null,null,null,null,null,null,null,null,null,null,null,null,null,null,null,null,null,null,null,null,null,null,null,null,null,null,null,null,null,null,3,null,null,{"$f":"組合届!CK105","v":"1970-11-01"},null,null,null,null,null,null,null,null,null,null,null,null,null,null,null,null,null,null,null,null,null,null,null,7]
[]
[]
[null,null,null,null,null,null,null,null,null,null,null,null,null,null,null,null,null,null,null,null,null,null,null,null,null,null,null,null,null,null,null,null,null,null,null,null,null,null,null,null,null,null,null,null,null,null,null,null,null,null,null,null,null,null,null,null,null,null,null,null,null,null,null,null,null,null,null,null,null,null,null,null,null,null,null,null,null,null,null,null,null,null,null,null,null,null,null,null,null,null,null,null,null,null,null,null,null,null,null,null,null,null,null,null,null,null,null,null,null,null,null,null,8,null,null,{"$f":"組合届!DL108","v":3},null,null,{"$f":"組合届!DO108","v":""}]
[]
[]
[null,null,null,null,null,4,null,null,{"$f":"組合届!I111","v":"2018-12-15"},null,null,null,null,null,null,null,null,null,null,null,null,null,null,null,null,null,null,null,null,null,null,null,5,null,null,"ｱ通貨",null,null,null,null,{"$f":"組合届!AO111","v":2001250},null,null,null,null,null,null,null,null,null,null,null,null,null,null,null,null,null,null,null,"ｲ現物",null,null,null,null,{"$f":"組合届!BN111","v":50000},null,null,null,null,null,null,null,null,null,null,null,null,null,null,null,null,null,null,null,6,null,null,{"$f":"組合届!CK111","v":2051000},null,null,null,null,null,null,null,null,null,null,null,null,null,null,null,null,null,null,null,null,null,null,null,null,null,null,null,null,null,{"$f":"組合届!DO111","v":""}]
[]
[]
[null,null,null,null,null,null,null,null,null,null,null,null,null,null,null,null,null,null,null,null,null,null,null,null,null,null,null,null,null,null,null,null,null,null,null,null,null,null,null,null,null,null,null,null,null,null,null,null,null,null,null,null,null,null,null,null,null,null,null,null,null,null,null,null,null,null,null,null,null,null,null,null,null,null,null,null,null,null,null,null,null,null,null,null,null,null,null,null,null,null,null,null,null,null,null,null,null,null,null,null,null,null,null,null,null,null,null,null,null,null,null,null,null,null,null,null,null,null,{"$f":"組合届!DO114","v":"2018-12-02"}]
[]
[]
[]
[]
["４",null,null,null,null,1,null,null,{"$f":"組合届!I119","v":38},null,null,null,null,null,null,null,null,null,null,null,{"$f":"組合届!U119","v":38},null,null,null,null,null,null,null,null,null,null,null,2,null,null,{"$f":"組合届!AJ119","v":"健保　四郎"},null,null,null,null,null,null,null,null,null,null,null,null,null,null,null,null,null,null,null,null,null,null,null,null,null,null,null,null,null,null,null,null,null,null,null,null,null,null,null,null,null,null,null,null,null,null,null,null,null,3,null,null,{"$f":"組合届!CK119","v":"1971-11-01"},null,null,null,null,null,null,null,null,null,null,null,null,null,null,null,null,null,null,null,null,null,null,null,7]
[]
[]
[null,null,null,null,null,null,null,null,null,null,null,null,null,null,null,null,null,null,null,null,null,null,null,null,null,null,null,null,null,null,null,null,null,null,null,null,null,null,null,null,null,null,null,null,null,null,null,null,null,null,null,null,null,null,null,null,null,null,null,null,null,null,null,null,null,null,null,null,null,null,null,null,null,null,null,null,null,null,null,null,null,null,null,null,null,null,null,null,null,null,null,null,null,null,null,null,null,null,null,null,null,null,null,null,null,null,null,null,null,null,null,null,8,null,null,{"$f":"組合届!DL122","v":""},null,null,{"$f":"組合届!DO122","v":""}]
[]
[]
[null,null,null,null,null,4,null,null,{"$f":"組合届!I125","v":""},null,null,null,null,null,null,null,null,null,null,null,null,null,null,null,null,null,null,null,null,null,null,null,5,null,null,"ｱ通貨",null,null,null,null,{"$f":"組合届!AO125","v":459638},null,null,null,null,null,null,null,null,null,null,null,null,null,null,null,null,null,null,null,"ｲ現物",null,null,null,null,{"$f":"組合届!BN125","v":0},null,null,null,null,null,null,null,null,null,null,null,null,null,null,null,null,null,null,null,6,null,null,{"$f":"組合届!CK125","v":459000},null,null,null,null,null,null,null,null,null,null,null,null,null,null,null,null,null,null,null,null,null,null,null,null,null,null,null,null,null,{"$f":"組合届!DO125","v":""}]
[]
[]
[null,null,null,null,null,null,null,null,null,null,null,null,null,null,null,null,null,null,null,null,null,null,null,null,null,null,null,null,null,null,null,null,null,null,null,null,null,null,null,null,null,null,null,null,null,null,null,null,null,null,null,null,null,null,null,null,null,null,null,null,null,null,null,null,null,null,null,null,null,null,null,null,null,null,null,null,null,null,null,null,null,null,null,null,null,null,null,null,null,null,null,null,null,null,null,null,null,null,null,null,null,null,null,null,null,null,null,null,null,null,null,null,null,null,null,null,null,null,{"$f":"組合届!DO128","v":""}]
[]
[]
[]
[]
["５",null,null,null,null,1,null,null,{"$f":"組合届!I133","v":41},null,null,null,null,null,null,null,null,null,null,null,{"$f":"組合届!U133","v":41},null,null,null,null,null,null,null,null,null,null,null,2,null,null,{"$f":"組合届!AJ133","v":"健保　五郎"},null,null,null,null,null,null,null,null,null,null,null,null,null,null,null,null,null,null,null,null,null,null,null,null,null,null,null,null,null,null,null,null,null,null,null,null,null,null,null,null,null,null,null,null,null,null,null,null,null,3,null,null,{"$f":"組合届!CK133","v":"1972-11-01"},null,null,null,null,null,null,null,null,null,null,null,null,null,null,null,null,null,null,null,null,null,null,null,7]
[]
[]
[null,null,null,null,null,null,null,null,null,null,null,null,null,null,null,null,null,null,null,null,null,null,null,null,null,null,null,null,null,null,null,null,null,null,null,null,null,null,null,null,null,null,null,null,null,null,null,null,null,null,null,null,null,null,null,null,null,null,null,null,null,null,null,null,null,null,null,null,null,null,null,null,null,null,null,null,null,null,null,null,null,null,null,null,null,null,null,null,null,null,null,null,null,null,null,null,null,null,null,null,null,null,null,null,null,null,null,null,null,null,null,null,8,null,null,{"$f":"組合届!DL136","v":""},null,null,{"$f":"組合届!DO136","v":""}]
[]
[]
[null,null,null,null,null,4,null,null,{"$f":"組合届!I139","v":""},null,null,null,null,null,null,null,null,null,null,null,null,null,null,null,null,null,null,null,null,null,null,null,5,null,null,"ｱ通貨",null,null,null,null,{"$f":"組合届!AO139","v":1500000},null,null,null,null,null,null,null,null,null,null,null,null,null,null,null,null,null,null,null,"ｲ現物",null,null,null,null,{"$f":"組合届!BN139","v":0},null,null,null,null,null,null,null,null,null,null,null,null,null,null,null,null,null,null,null,6,null,null,{"$f":"組合届!CK139","v":1500000},null,null,null,null,null,null,null,null,null,null,null,null,null,null,null,null,null,null,null,null,null,null,null,null,null,null,null,null,null,{"$f":"組合届!DO139","v":""}]
[]
[]
[null,null,null,null,null,null,null,null,null,null,null,null,null,null,null,null,null,null,null,null,null,null,null,null,null,null,null,null,null,null,null,null,null,null,null,null,null,null,null,null,null,null,null,null,null,null,null,null,null,null,null,null,null,null,null,null,null,null,null,null,null,null,null,null,null,null,null,null,null,null,null,null,null,null,null,null,null,null,null,null,null,null,null,null,null,null,null,null,null,null,null,null,null,null,null,null,null,null,null,null,null,null,null,null,null,null,null,null,null,null,null,null,null,null,null,null,null,null,{"$f":"組合届!DO142","v":""}]
[]
[]
[]
[]
["６",null,null,null,null,1,null,null,{"$f":"組合届!I147","v":43},null,null,null,null,null,null,null,null,null,null,null,{"$f":"組合届!U147","v":42},null,null,null,null,null,null,null,null,null,null,null,2,null,null,{"$f":"組合届!AJ147","v":"健保　六郎"},null,null,null,null,null,null,null,null,null,null,null,null,null,null,null,null,null,null,null,null,null,null,null,null,null,null,null,null,null,null,null,null,null,null,null,null,null,null,null,null,null,null,null,null,null,null,null,null,null,3,null,null,{"$f":"組合届!CK147","v":"1973-11-01"},null,null,null,null,null,null,null,null,null,null,null,null,null,null,null,null,null,null,null,null,null,null,null,7]
[]
[]
[null,null,null,null,null,null,null,null,null,null,null,null,null,null,null,null,null,null,null,null,null,null,null,null,null,null,null,null,null,null,null,null,null,null,null,null,null,null,null,null,null,null,null,null,null,null,null,null,null,null,null,null,null,null,null,null,null,null,null,null,null,null,null,null,null,null,null,null,null,null,null,null,null,null,null,null,null,null,null,null,null,null,null,null,null,null,null,null,null,null,null,null,null,null,null,null,null,null,null,null,null,null,null,null,null,null,null,null,null,null,null,null,8,null,null,{"$f":"組合届!DL150","v":1},null,null,{"$f":"組合届!DO150","v":"70歳以上被用者"}]
[]
[]
[null,null,null,null,null,4,null,null,{"$f":"組合届!I153","v":""},null,null,null,null,null,null,null,null,null,null,null,null,null,null,null,null,null,null,null,null,null,null,null,5,null,null,"ｱ通貨",null,null,null,null,{"$f":"組合届!AO153","v":1000000},null,null,null,null,null,null,null,null,null,null,null,null,null,null,null,null,null,null,null,"ｲ現物",null,null,null,null,{"$f":"組合届!BN153","v":0},null,null,null,null,null,null,null,null,null,null,null,null,null,null,null,null,null,null,null,6,null,null,{"$f":"組合届!CK153","v":1000000},null,null,null,null,null,null,null,null,null,null,null,null,null,null,null,null,null,null,null,null,null,null,null,null,null,null,null,null,null,{"$f":"組合届!DO153","v":""}]
[]
[]
[null,null,null,null,null,null,null,null,null,null,null,null,null,null,null,null,null,null,null,null,null,null,null,null,null,null,null,null,null,null,null,null,null,null,null,null,null,null,null,null,null,null,null,null,null,null,null,null,null,null,null,null,null,null,null,null,null,null,null,null,null,null,null,null,null,null,null,null,null,null,null,null,null,null,null,null,null,null,null,null,null,null,null,null,null,null,null,null,null,null,null,null,null,null,null,null,null,null,null,null,null,null,null,null,null,null,null,null,null,null,null,null,null,null,null,null,null,null,{"$f":"組合届!DO156","v":""}]
[]
[]
[]
[]
["７",null,null,null,null,1,null,null,{"$f":"組合届!I161","v":44},null,null,null,null,null,null,null,null,null,null,null,{"$f":"組合届!U161","v":43},null,null,null,null,null,null,null,null,null,null,null,2,null,null,{"$f":"組合届!AJ161","v":"健保　七郎"},null,null,null,null,null,null,null,null,null,null,null,null,null,null,null,null,null,null,null,null,null,null,null,null,null,null,null,null,null,null,null,null,null,null,null,null,null,null,null,null,null,null,null,null,null,null,null,null,null,3,null,null,{"$f":"組合届!CK161","v":"1974-11-01"},null,null,null,null,null,null,null,null,null,null,null,null,null,null,null,null,null,null,null,null,null,null,null,7]
[]
[]
[null,null,null,null,null,null,null,null,null,null,null,null,null,null,null,null,null,null,null,null,null,null,null,null,null,null,null,null,null,null,null,null,null,null,null,null,null,null,null,null,null,null,null,null,null,null,null,null,null,null,null,null,null,null,null,null,null,null,null,null,null,null,null,null,null,null,null,null,null,null,null,null,null,null,null,null,null,null,null,null,null,null,null,null,null,null,null,null,null,null,null,null,null,null,null,null,null,null,null,null,null,null,null,null,null,null,null,null,null,null,null,null,8,null,null,{"$f":"組合届!DL164","v":2},null,null,{"$f":"組合届!DO164","v":""}]
[]
[]
[null,null,null,null,null,4,null,null,{"$f":"組合届!I167","v":"2018-12-06"},null,null,null,null,null,null,null,null,null,null,null,null,null,null,null,null,null,null,null,null,null,null,null,5,null,null,"ｱ通貨",null,null,null,null,{"$f":"組合届!AO167","v":1200000},null,null,null,null,null,null,null,null,null,null,null,null,null,null,null,null,null,null,null,"ｲ現物",null,null,null,null,{"$f":"組合届!BN167","v":0},null,null,null,null,null,null,null,null,null,null,null,null,null,null,null,null,null,null,null,6,null,null,{"$f":"組合届!CK167","v":1702000},null,null,null,null,null,null,null,null,null,null,null,null,null,null,null,null,null,null,null,null,null,null,null,null,null,null,null,null,null,{"$f":"組合届!DO167","v":502385}]
[]
[]
[null,null,null,null,null,null,null,null,null,null,null,null,null,null,null,null,null,null,null,null,null,null,null,null,null,null,null,null,null,null,null,null,null,null,null,null,null,null,null,null,null,null,null,null,null,null,null,null,null,null,null,null,null,null,null,null,null,null,null,null,null,null,null,null,null,null,null,null,null,null,null,null,null,null,null,null,null,null,null,null,null,null,null,null,null,null,null,null,null,null,null,null,null,null,null,null,null,null,null,null,null,null,null,null,null,null,null,null,null,null,null,null,null,null,null,null,null,null,{"$f":"組合届!DO170","v":""}]
[]
[]
[]
[]
["８",null,null,null,null,1,null,null,{"$f":"組合届!I175","v":45},null,null,null,null,null,null,null,null,null,null,null,{"$f":"組合届!U175","v":45},null,null,null,null,null,null,null,null,null,null,null,2,null,null,{"$f":"組合届!AJ175","v":"健保　八郎"},null,null,null,null,null,null,null,null,null,null,null,null,null,null,null,null,null,null,null,null,null,null,null,null,null,null,null,null,null,null,null,null,null,null,null,null,null,null,null,null,null,null,null,null,null,null,null,null,null,3,null,null,{"$f":"組合届!CK175","v":"1975-11-01"},null,null,null,null,null,null,null,null,null,null,null,null,null,null,null,null,null,null,null,null,null,null,null,7]
[]
[]
[null,null,null,null,null,null,null,null,null,null,null,null,null,null,null,null,null,null,null,null,null,null,null,null,null,null,null,null,null,null,null,null,null,null,null,null,null,null,null,null,null,null,null,null,null,null,null,null,null,null,null,null,null,null,null,null,null,null,null,null,null,null,null,null,null,null,null,null,null,null,null,null,null,null,null,null,null,null,null,null,null,null,null,null,null,null,null,null,null,null,null,null,null,null,null,null,null,null,null,null,null,null,null,null,null,null,null,null,null,null,null,null,8,null,null,{"$f":"組合届!DL178","v":3},null,null,{"$f":"組合届!DO178","v":""}]
[]
[]
[null,null,null,null,null,4,null,null,{"$f":"組合届!I181","v":"2018-12-07"},null,null,null,null,null,null,null,null,null,null,null,null,null,null,null,null,null,null,null,null,null,null,null,5,null,null,"ｱ通貨",null,null,null,null,{"$f":"組合届!AO181","v":1700000},null,null,null,null,null,null,null,null,null,null,null,null,null,null,null,null,null,null,null,"ｲ現物",null,null,null,null,{"$f":"組合届!BN181","v":0},null,null,null,null,null,null,null,null,null,null,null,null,null,null,null,null,null,null,null,6,null,null,{"$f":"組合届!CK181","v":1700000},null,null,null,null,null,null,null,null,null,null,null,null,null,null,null,null,null,null,null,null,null,null,null,null,null,null,null,null,null,{"$f":"組合届!DO181","v":""}]
[]
[]
[null,null,null,null,null,null,null,null,null,null,null,null,null,null,null,null,null,null,null,null,null,null,null,null,null,null,null,null,null,null,null,null,null,null,null,null,null,null,null,null,null,null,null,null,null,null,null,null,null,null,null,null,null,null,null,null,null,null,null,null,null,null,null,null,null,null,null,null,null,null,null,null,null,null,null,null,null,null,null,null,null,null,null,null,null,null,null,null,null,null,null,null,null,null,null,null,null,null,null,null,null,null,null,null,null,null,null,null,null,null,null,null,null,null,null,null,null,null,{"$f":"組合届!DO184","v":"2018-12-10"}]
[]
[]
[]
[]
["９",null,null,null,null,1,null,null,{"$f":"組合届!I189","v":52},null,null,null,null,null,null,null,null,null,null,null,{"$f":"組合届!U189","v":52},null,null,null,null,null,null,null,null,null,null,null,2,null,null,{"$f":"組合届!AJ189","v":"健保　九郎"},null,null,null,null,null,null,null,null,null,null,null,null,null,null,null,null,null,null,null,null,null,null,null,null,null,null,null,null,null,null,null,null,null,null,null,null,null,null,null,null,null,null,null,null,null,null,null,null,null,3,null,null,{"$f":"組合届!CK189","v":"1976-11-01"},null,null,null,null,null,null,null,null,null,null,null,null,null,null,null,null,null,null,null,null,null,null,null,7]
[]
[]
[null,null,null,null,null,null,null,null,null,null,null,null,null,null,null,null,null,null,null,null,null,null,null,null,null,null,null,null,null,null,null,null,null,null,null,null,null,null,null,null,null,null,null,null,null,null,null,null,null,null,null,null,null,null,null,null,null,null,null,null,null,null,null,null,null,null,null,null,null,null,null,null,null,null,null,null,null,null,null,null,null,null,null,null,null,null,null,null,null,null,null,null,null,null,null,null,null,null,null,null,null,null,null,null,null,null,null,null,null,null,null,null,8,null,null,{"$f":"組合届!DL192","v":""},null,null,{"$f":"組合届!DO192","v":""}]
[]
[]
[null,null,null,null,null,4,null,null,{"$f":"組合届!I195","v":""},null,null,null,null,null,null,null,null,null,null,null,null,null,null,null,null,null,null,null,null,null,null,null,5,null,null,"ｱ通貨",null,null,null,null,{"$f":"組合届!AO195","v":1200000},null,null,null,null,null,null,null,null,null,null,null,null,null,null,null,null,null,null,null,"ｲ現物",null,null,null,null,{"$f":"組合届!BN195","v":0},null,null,null,null,null,null,null,null,null,null,null,null,null,null,null,null,null,null,null,6,null,null,{"$f":"組合届!CK195","v":1200000},null,null,null,null,null,null,null,null,null,null,null,null,null,null,null,null,null,null,null,null,null,null,null,null,null,null,null,null,null,{"$f":"組合届!DO195","v":""}]
[]
[]
[null,null,null,null,null,null,null,null,null,null,null,null,null,null,null,null,null,null,null,null,null,null,null,null,null,null,null,null,null,null,null,null,null,null,null,null,null,null,null,null,null,null,null,null,null,null,null,null,null,null,null,null,null,null,null,null,null,null,null,null,null,null,null,null,null,null,null,null,null,null,null,null,null,null,null,null,null,null,null,null,null,null,null,null,null,null,null,null,null,null,null,null,null,null,null,null,null,null,null,null,null,null,null,null,null,null,null,null,null,null,null,null,null,null,null,null,null,null,{"$f":"組合届!DO198","v":""}]
[]
[]
[]
[]
["１０",null,null,null,null,1,null,null,{"$f":"組合届!I203","v":60},null,null,null,null,null,null,null,null,null,null,null,{"$f":"組合届!U203","v":60},null,null,null,null,null,null,null,null,null,null,null,2,null,null,{"$f":"組合届!AJ203","v":"健保　十郎"},null,null,null,null,null,null,null,null,null,null,null,null,null,null,null,null,null,null,null,null,null,null,null,null,null,null,null,null,null,null,null,null,null,null,null,null,null,null,null,null,null,null,null,null,null,null,null,null,null,3,null,null,{"$f":"組合届!CK203","v":"1977-11-01"},null,null,null,null,null,null,null,null,null,null,null,null,null,null,null,null,null,null,null,null,null,null,null,7]
[]
[]
[null,null,null,null,null,null,null,null,null,null,null,null,null,null,null,null,null,null,null,null,null,null,null,null,null,null,null,null,null,null,null,null,null,null,null,null,null,null,null,null,null,null,null,null,null,null,null,null,null,null,null,null,null,null,null,null,null,null,null,null,null,null,null,null,null,null,null,null,null,null,null,null,null,null,null,null,null,null,null,null,null,null,null,null,null,null,null,null,null,null,null,null,null,null,null,null,null,null,null,null,null,null,null,null,null,null,null,null,null,null,null,null,8,null,null,{"$f":"組合届!DL206","v":""},null,null,{"$f":"組合届!DO206","v":""}]
[]
[]
[null,null,null,null,null,4,null,null,{"$f":"組合届!I209","v":""},null,null,null,null,null,null,null,null,null,null,null,null,null,null,null,null,null,null,null,null,null,null,null,5,null,null,"ｱ通貨",null,null,null,null,{"$f":"組合届!AO209","v":5500000},null,null,null,null,null,null,null,null,null,null,null,null,null,null,null,null,null,null,null,"ｲ現物",null,null,null,null,{"$f":"組合届!BN209","v":0},null,null,null,null,null,null,null,null,null,null,null,null,null,null,null,null,null,null,null,6,null,null,{"$f":"組合届!CK209","v":5500000},null,null,null,null,null,null,null,null,null,null,null,null,null,null,null,null,null,null,null,null,null,null,null,null,null,null,null,null,null,{"$f":"組合届!DO209","v":""}]
[]
[]
[null,null,null,null,null,null,null,null,null,null,null,null,null,null,null,null,null,null,null,null,null,null,null,null,null,null,null,null,null,null,null,null,null,null,null,null,null,null,null,null,null,null,null,null,null,null,null,null,null,null,null,null,null,null,null,null,null,null,null,null,null,null,null,null,null,null,null,null,null,null,null,null,null,null,null,null,null,null,null,null,null,null,null,null,null,null,null,null,null,null,null,null,null,null,null,null,null,null,null,null,null,null,null,null,null,null,null,null,null,null,null,null,null,null,null,null,null,null,{"$f":"組合届!DO212","v":""}]

{"sheet":"年金","index":6,"n_rows":212,"n_cols":119,"rows_kept":212,"cut":false,"hidden":false,"merged":[[20,105,23,139],[24,105,52,139],[55,71,64,130],[55,131,64,139],[50,71,54,101],[1,11,7,80],[15,24,18,31],[211,5,213,7],[211,32,213,34],[211,35,213,39],[211,60,213,64],[211,85,213,87],[211,118,213,139],[208,40,213,59],[208,60,210,64],[208,65,213,84],[208,85,210,87],[208,88,213,111],[208,118,210,139],[209,112,213,114],[202,85,204,87],[202,88,207,111],[202,112,204,114],[202,115,204,139],[205,5,207,7],[205,32,207,34],[205,85,207,87],[205,112,208,114],[205,115,213,117],[205,118,207,139],[202,0,213,4],[202,5,204,7],[202,8,207,19],[202,20,207,31],[202,32,204,34],[202,35,207,84],[208,5,210,7],[208,8,213,31],[208,32,210,34],[208,35,210,39],[188,85,190,87],[188,88,193,111],[188,112,190,114],[188,115,190,139],[191,5,193,7],[191,32,193,34],[191,85,193,87],[191,112,194,114],[191,115,199,117],[191,118,193,139],[197,5,199,7],[197,32,199,34],[197,35,199,39],[197,60,199,64],[197,85,199,87],[197,118,199,139],[194,40,199,59],[194,60,196,64],[194,65,199,84],[194,85,196,87],[194,88,199,111],[194,118,196,139],[195,112,199,114],[188,0,199,4],[188,5,190,7],[188,8,193,19],[188,20,193,31],[188,32,190,34],[188,35,193,84],[194,5,196,7],[194,8,199,31],[194,32,196,34],[194,35,196,39],[174,85,176,87],[174,88,179,111],[174,112,176,114],[174,115,176,139],[177,5,179,7],[177,32,179,34],[177,85,179,87],[177,112,180,114],[177,115,185,117],[177,118,179,139],[183,5,185,7],[183,32,185,34],[183,35,185,39],[183,60,185,64],[183,85,185,87],[183,118,185,139],[180,40,185,59],[180,60,182,64],[180,65,185,84],[180,85,182,87],[180,88,185,111],[180,118,182,139],[181,112,185,114],[174,0,185,4],[174,5,176,7],[174,8,179,19],[174,20,179,31],[174,32,176,34],[174,35,179,84],[180,5,182,7],[180,8,185,31],[180,32,182,34],[180,35,182,39],[160,85,162,87],[160,88,165,111],[160,112,162,114],[160,115,162,139],[163,5,165,7],[163,32,165,34],[163,85,165,87],[163,112,166,114],[163,115,171,117],[163,118,165,139],[169,5,171,7],[169,32,171,34],[169,35,171,39],[169,60,171,64],[169,85,171,87],[169,118,171,139],[166,40,171,59],[166,60,168,64],[166,65,171,84],[166,85,168,87],[166,88,171,111],[166,118,168,139],[167,112,171,114],[160,0,171,4],[160,5,162,7],[160,8,165,19],[160,20,165,31],[160,32,162,34],[160,35,165,84],[166,5,168,7],[166,8,171,31],[166,32,168,34],[166,35,168,39],[146,85,148,87],[146,88,151,111],[146,112,148,114],[146,115,148,139],[149,5,151,7],[149,32,151,34],[149,85,151,87],[149,112,152,114],[149,115,157,117],[149,118,151,139],[155,5,157,7],[155,32,157,34],[155,35,157,39],[155,60,157,64],[155,85,157,87],[155,118,157,139],[152,40,157,59],[152,60,154,64],[152,65,157,84],[152,85,154,87],[152,88,157,111],[152,118,154,139],[153,112,157,114],[146,0,157,4],[146,5,148,7],[146,8,151,19],[146,20,151,31],[146,32,148,34],[146,35,151,84],[152,5,154,7],[152,8,157,31],[152,32,154,34],[152,35,154,39],[132,85,134,87],[132,88,137,111],[132,112,134,114],[132,115,134,139],[135,5,137,7],[135,32,137,34],[135,85,137,87],[135,112,138,114],[135,115,143,117],[135,118,137,139],[141,5,143,7],[141,32,143,34],[141,35,143,39],[141,60,143,64],[141,85,143,87],[141,118,143,139],[138,40,143,59],[138,60,140,64],[138,65,143,84],[138,85,140,87],[138,88,143,111],[138,118,140,139],[139,112,143,114],[132,0,143,4],[132,5,134,7],[132,8,137,19],[132,20,137,31],[132,32,134,34],[132,35,137,84],[138,5,140,7],[138,8,143,31],[138,32,140,34],[138,35,140,39],[118,85,120,87],[118,88,123,111],[118,112,120,114],[118,115,120,139],[121,5,123,7],[121,32,123,34],[121,85,123,87],[121,112,124,114],[121,115,129,117],[121,118,123,139],[127,5,129,7],[127,32,129,34],[127,35,129,39],[127,60,129,64],[127,85,129,87],[127,118,129,139],[124,40,129,59],[124,60,126,64],[124,65,129,84],[124,85,126,87],[124,88,129,111],[124,118,126,139],[125,112,129,114],[118,0,129,4],[118,5,120,7],[118,8,123,19],[118,20,123,31],[118,32,120,34],[118,35,123,84],[124,5,126,7],[124,8,129,31],[124,32,126,34],[124,35,126,39],[104,85,106,87],[104,88,109,111],[104,112,106,114],[104,115,106,139],[107,5,109,7],[107,32,109,34],[107,85,109,87],[107,112,110,114],[107,115,115,117],[107,118,109,139],[113,5,115,7],[113,32,115,34],[113,35,115,39],[113,60,115,64],[113,85,115,87],[113,118,115,139],[110,40,115,59],[110,60,112,64],[110,65,115,84],[110,85,112,87],[110,88,115,111],[110,118,112,139],[111,112,115,114],[104,0,115,4],[104,5,106,7],[104,8,109,19],[104,20,109,31],[104,32,106,34],[104,35,109,84],[110,5,112,7],[110,8,115,31],[110,32,112,34],[110,35,112,39],[90,85,92,87],[90,88,95,111],[90,112,92,114],[90,115,92,139],[93,5,95,7],[93,32,95,34],[93,85,95,87],[93,112,96,114],[93,115,101,117],[93,118,95,139],[99,5,101,7],[99,32,101,34],[99,35,101,39],[99,60,101,64],[99,85,101,87],[99,118,101,139],[96,40,101,59],[96,60,98,64],[96,65,101,84],[96,85,98,87],[96,88,101,111],[96,118,98,139],[97,112,101,114],[90,0,101,4],[90,5,92,7],[90,8,95,19],[90,20,95,31],[90,32,92,34],[90,35,95,84],[96,5,98,7],[96,8,101,31],[96,32,98,34],[96,35,98,39],[76,112,78,114],[76,115,78,139],[79,5,81,7],[79,32,81,34],[79,85,81,87],[79,112,82,114],[79,115,87,117],[79,118,81,139],[85,5,87,7],[85,32,87,34],[85,35,87,39],[85,60,87,64],[85,85,87,87],[85,118,87,139],[82,40,87,59],[82,60,84,64],[82,65,87,84],[82,85,84,87],[82,88,87,111],[82,118,84,139],[83,112,87,114],[70,5,72,7],[70,8,73,31],[70,32,72,34],[70,35,73,57],[70,58,72,60],[70,61,73,90],[76,0,87,4],[76,5,78,7],[76,8,81,19],[76,20,81,31],[76,32,78,34],[76,35,81,84],[82,5,84,7],[82,8,87,31],[82,32,84,34],[82,35,84,39],[76,85,78,87],[76,88,81,111],[66,58,68,60],[66,61,69,90],[66,91,68,93],[66,94,69,139],[69,5,69,7],[69,32,69,34],[69,58,69,60],[69,91,69,93],[55,0,64,4],[55,5,57,7],[55,8,64,41],[55,42,64,69],[58,5,64,7],[66,0,73,4],[66,5,68,7],[66,8,69,31],[66,32,68,34],[66,35,69,57],[70,91,72,93],[70,94,73,139],[73,5,73,7],[73,32,73,34],[73,58,73,60],[73,91,73,93],[9,0,12,27],[15,0,53,4],[15,5,18,15],[15,16,18,23],[20,5,24,15],[20,16,22,69],[23,16,25,18],[23,19,25,31],[23,32,25,69],[41,5,46,15],[41,16,46,61],[41,62,46,69],[47,5,47,15],[47,16,47,69],[48,5,53,15],[48,16,53,69],[25,5,30,15],[26,16,32,69],[31,5,33,15],[33,16,33,69],[34,5,39,15],[34,16,39,69],[40,5,40,15],[40,16,40,69]]}
[]
[null,null,null,null,null,null,null,null,null,null,null,"厚生年金保険　被保険者賞与支払届"]
[]
[]
[]
[]
[]
[]
[]
[{"$f":"基本情報登録!C2","v":"2021-04-22"}]
[]
[]
[]
[]
[]
["事業主記入欄",null,null,null,null,"記号",null,null,null,null,null,null,null,null,null,null,{"$f":"基本情報登録!C3","v":"南"},null,null,null,null,null,null,null,{"$f":"基本情報登録!C4","v":"ＷＥＤ"}]
[]
[]
[]
[]
[null,null,null,null,null,null,null,null,null,null,null,null,null,null,null,null,"届書記入の個人番号(基礎年金番号)に誤りがないことを確認しました。",null,null,null,null,null,null,null,null,null,null,null,null,null,null,null,null,null,null,null,null,null,null,null,null,null,null,null,null,null,null,null,null,null,null,null,null,null,null,null,null,null,null,null,null,null,null,null,null,null,null,null,null,null,null,null,null,null,null,null,null,null,null,null,null,null,null,null,null,null,null,null,null,null,null,null,null,null,null,null,null,null,null,null,null,null,null,null,null,"受付印"]
[]
[]
[null,null,null,null,null,null,null,null,null,null,null,null,null,null,null,null,"〒",null,null,{"$f":"基本情報登録!C7","v":"542-0066"}]
[]
[null,null,null,null,null,"事業所\n所在地"]
[null,null,null,null,null,null,null,null,null,null,null,null,null,null,null,null,{"$f":"基本情報登録!C8","v":"大阪府大阪市中央区瓦屋町2-3-1"}]
[]
[]
[]
[]
[]
[]
[]
[null,null,null,null,null,"事業所\n名称",null,null,null,null,null,null,null,null,null,null,{"$f":"基本情報登録!C9","v":"大阪自動車整備健康保険組合"}]
[]
[]
[]
[]
[]
[]
[null,null,null,null,null,"事業主\n氏名",null,null,null,null,null,null,null,null,null,null,{"$f":"基本情報登録!C10","v":"理事長　健保　太郎"}]
[]
[]
[]
[]
[]
[]
[null,null,null,null,null,"電話番号",null,null,null,null,null,null,null,null,null,null,{"$f":"基本情報登録!C11","v":"06-6762-6371"}]
[]
[null,null,null,null,null,null,null,null,null,null,null,null,null,null,null,null,null,null,null,null,null,null,null,null,null,null,null,null,null,null,null,null,null,null,null,null,null,null,null,null,null,null,null,null,null,null,null,null,null,null,null,null,null,null,null,null,null,null,null,null,null,null,null,null,null,null,null,null,null,null,null,"社会保険労務士記載欄"]
[]
[]
[]
[]
["共通",null,null,null,null,4,null,null,"賞与支払年月日(共通)",null,null,null,null,null,null,null,null,null,null,null,null,null,null,null,null,null,null,null,null,null,null,null,null,null,null,null,null,null,null,null,null,null,{"$f":"総括表情報登録!C2","v":"00:00:00"}]
[]
[]
[]
[]
[]
[]
[]
[]
[]
[]
["項目名",null,null,null,null,1,null,null,"年金番号・健保番号",null,null,null,null,null,null,null,null,null,null,null,null,null,null,null,null,null,null,null,null,null,null,null,2,null,null,"被保険者氏名",null,null,null,null,null,null,null,null,null,null,null,null,null,null,null,null,null,null,null,null,null,null,3,null,null,"生年月日",null,null,null,null,null,null,null,null,null,null,null,null,null,null,null,null,null,null,null,null,null,null,null,null,null,null,null,null,null,7,null,null,"個人番号(70歳以上被用者の場合のみ)"]
[]
[]
[]
[null,null,null,null,null,4,null,null,"賞与支払年月日",null,null,null,null,null,null,null,null,null,null,null,null,null,null,null,null,null,null,null,null,null,null,null,5,null,null,"賞与支払額",null,null,null,null,null,null,null,null,null,null,null,null,null,null,null,null,null,null,null,null,null,null,6,null,null,"賞与額(千円未満切捨て)",null,null,null,null,null,null,null,null,null,null,null,null,null,null,null,null,null,null,null,null,null,null,null,null,null,null,null,null,null,8,null,null,"備　考"]
[]
[]
[]
[]
[]
["１",null,null,null,null,1,null,null,{"$f":"組合届!I77","v":69},null,null,null,null,null,null,null,null,null,null,null,{"$f":"組合届!U77","v":35},null,null,null,null,null,null,null,null,null,null,null,2,null,null,{"$f":"組合届!AJ77","v":"健保　一郎"},null,null,null,null,null,null,null,null,null,null,null,null,null,null,null,null,null,null,null,null,null,null,null,null,null,null,null,null,null,null,null,null,null,null,null,null,null,null,null,null,null,null,null,null,null,null,null,null,null,3,null,null,{"$f":"組合届!CK77","v":"1968-11-01"},null,null,null,null,null,null,null,null,null,null,null,null,null,null,null,null,null,null,null,null,null,null,null,7,null,null,{"$f":"組合届!DL77","v":"123456789012"}]
[]
[]
[null,null,null,null,null,null,null,null,null,null,null,null,null,null,null,null,null,null,null,null,null,null,null,null,null,null,null,null,null,null,null,null,null,null,null,null,null,null,null,null,null,null,null,null,null,null,null,null,null,null,null,null,null,null,null,null,null,null,null,null,null,null,null,null,null,null,null,null,null,null,null,null,null,null,null,null,null,null,null,null,null,null,null,null,null,null,null,null,null,null,null,null,null,null,null,null,null,null,null,null,null,null,null,null,null,null,null,null,null,null,null,null,8,null,null,{"$f":"組合届!DL80","v":1},null,null,{"$f":"組合届!DO80","v":"70歳以上被用者"}]
[]
[]
[null,null,null,null,null,4,null,null,{"$f":"組合届!I83","v":""},null,null,null,null,null,null,null,null,null,null,null,null,null,null,null,null,null,null,null,null,null,null,null,5,null,null,"ｱ通貨",null,null,null,null,{"$f":"組合届!AO83","v":12345678},null,null,null,null,null,null,null,null,null,null,null,null,null,null,null,null,null,null,null,"ｲ現物",null,null,null,null,{"$f":"組合届!BN83","v":0},null,null,null,null,null,null,null,null,null,null,null,null,null,null,null,null,null,null,null,6,null,null,{"$f":"組合届!CK83","v":12345000},null,null,null,null,null,null,null,null,null,null,null,null,null,null,null,null,null,null,null,null,null,null,null,null,null,null,null,null,null,{"$f":"組合届!DO83","v":""}]
[]
[]
[null,null,null,null,null,null,null,null,null,null,null,null,null,null,null,null,null,null,null,null,null,null,null,null,null,null,null,null,null,null,null,null,null,null,null,null,null,null,null,null,null,null,null,null,null,null,null,null,null,null,null,null,null,null,null,null,null,null,null,null,null,null,null,null,null,null,null,null,null,null,null,null,null,null,null,null,null,null,null,null,null,null,null,null,null,null,null,null,null,null,null,null,null,null,null,null,null,null,null,null,null,null,null,null,null,null,null,null,null,null,null,null,null,null,null,null,null,null,{"$f":"組合届!DO86","v":""}]
[]
[]
[]
[]
["２",null,null,null,null,1,null,null,{"$f":"組合届!I91","v":36},null,null,null,null,null,null,null,null,null,null,null,{"$f":"組合届!U91","v":36},null,null,null,null,null,null,null,null,null,null,null,2,null,null,{"$f":"組合届!AJ91","v":"健保　次郎"},null,null,null,null,null,null,null,null,null,null,null,null,null,null,null,null,null,null,null,null,null,null,null,null,null,null,null,null,null,null,null,null,null,null,null,null,null,null,null,null,null,null,null,null,null,null,null,null,null,3,null,null,{"$f":"組合届!CK91","v":"1969-11-01"},null,null,null,null,null,null,null,null,null,null,null,null,null,null,null,null,null,null,null,null,null,null,null,7,null,null,{"$f":"組合届!DL91","v":""}]
[]
[]
[null,null,null,null,null,null,null,null,null,null,null,null,null,null,null,null,null,null,null,null,null,null,null,null,null,null,null,null,null,null,null,null,null,null,null,null,null,null,null,null,null,null,null,null,null,null,null,null,null,null,null,null,null,null,null,null,null,null,null,null,null,null,null,null,null,null,null,null,null,null,null,null,null,null,null,null,null,null,null,null,null,null,null,null,null,null,null,null,null,null,null,null,null,null,null,null,null,null,null,null,null,null,null,null,null,null,null,null,null,null,null,null,8,null,null,{"$f":"組合届!DL94","v":2},null,null,{"$f":"組合届!DO94","v":""}]
[]
[]
[null,null,null,null,null,4,null,null,{"$f":"組合届!I97","v":""},null,null,null,null,null,null,null,null,null,null,null,null,null,null,null,null,null,null,null,null,null,null,null,5,null,null,"ｱ通貨",null,null,null,null,{"$f":"組合届!AO97","v":1538500},null,null,null,null,null,null,null,null,null,null,null,null,null,null,null,null,null,null,null,"ｲ現物",null,null,null,null,{"$f":"組合届!BN97","v":0},null,null,null,null,null,null,null,null,null,null,null,null,null,null,null,null,null,null,null,6,null,null,{"$f":"組合届!CK97","v":13884000},null,null,null,null,null,null,null,null,null,null,null,null,null,null,null,null,null,null,null,null,null,null,null,null,null,null,null,null,null,{"$f":"組合届!DO97","v":12345678}]
[]
[]
[null,null,null,null,null,null,null,null,null,null,null,null,null,null,null,null,null,null,null,null,null,null,null,null,null,null,null,null,null,null,null,null,null,null,null,null,null,null,null,null,null,null,null,null,null,null,null,null,null,null,null,null,null,null,null,null,null,null,null,null,null,null,null,null,null,null,null,null,null,null,null,null,null,null,null,null,null,null,null,null,null,null,null,null,null,null,null,null,null,null,null,null,null,null,null,null,null,null,null,null,null,null,null,null,null,null,null,null,null,null,null,null,null,null,null,null,null,null,{"$f":"組合届!DO100","v":""}]
[]
[]
[]
[]
["３",null,null,null,null,1,null,null,{"$f":"組合届!I105","v":37},null,null,null,null,null,null,null,null,null,null,null,{"$f":"組合届!U105","v":37},null,null,null,null,null,null,null,null,null,null,null,2,null,null,{"$f":"組合届!AJ105","v":"健保　三朗"},null,null,null,null,null,null,null,null,null,null,null,null,null,null,null,null,null,null,null,null,null,null,null,null,null,null,null,null,null,null,null,null,null,null,null,null,null,null,null,null,null,null,null,null,null,null,null,null,null,3,null,null,{"$f":"組合届!CK105","v":"1970-11-01"},null,null,null,null,null,null,null,null,null,null,null,null,null,null,null,null,null,null,null,null,null,null,null,7,null,null,{"$f":"組合届!DL105","v":""}]
[]
[]
[null,null,null,null,null,null,null,null,null,null,null,null,null,null,null,null,null,null,null,null,null,null,null,null,null,null,null,null,null,null,null,null,null,null,null,null,null,null,null,null,null,null,null,null,null,null,null,null,null,null,null,null,null,null,null,null,null,null,null,null,null,null,null,null,null,null,null,null,null,null,null,null,null,null,null,null,null,null,null,null,null,null,null,null,null,null,null,null,null,null,null,null,null,null,null,null,null,null,null,null,null,null,null,null,null,null,null,null,null,null,null,null,8,null,null,{"$f":"組合届!DL108","v":3},null,null,{"$f":"組合届!DO108","v":""}]
[]
[]
[null,null,null,null,null,4,null,null,{"$f":"組合届!I111","v":"2018-12-15"},null,null,null,null,null,null,null,null,null,null,null,null,null,null,null,null,null,null,null,null,null,null,null,5,null,null,"ｱ通貨",null,null,null,null,{"$f":"組合届!AO111","v":2001250},null,null,null,null,null,null,null,null,null,null,null,null,null,null,null,null,null,null,null,"ｲ現物",null,null,null,null,{"$f":"組合届!BN111","v":50000},null,null,null,null,null,null,null,null,null,null,null,null,null,null,null,null,null,null,null,6,null,null,{"$f":"組合届!CK111","v":2051000},null,null,null,null,null,null,null,null,null,null,null,null,null,null,null,null,null,null,null,null,null,null,null,null,null,null,null,null,null,{"$f":"組合届!DO111","v":""}]
[]
[]
[null,null,null,null,null,null,null,null,null,null,null,null,null,null,null,null,null,null,null,null,null,null,null,null,null,null,null,null,null,null,null,null,null,null,null,null,null,null,null,null,null,null,null,null,null,null,null,null,null,null,null,null,null,null,null,null,null,null,null,null,null,null,null,null,null,null,null,null,null,null,null,null,null,null,null,null,null,null,null,null,null,null,null,null,null,null,null,null,null,null,null,null,null,null,null,null,null,null,null,null,null,null,null,null,null,null,null,null,null,null,null,null,null,null,null,null,null,null,{"$f":"組合届!DO114","v":"2018-12-02"}]
[]
[]
[]
[]
["４",null,null,null,null,1,null,null,{"$f":"組合届!I119","v":38},null,null,null,null,null,null,null,null,null,null,null,{"$f":"組合届!U119","v":38},null,null,null,null,null,null,null,null,null,null,null,2,null,null,{"$f":"組合届!AJ119","v":"健保　四郎"},null,null,null,null,null,null,null,null,null,null,null,null,null,null,null,null,null,null,null,null,null,null,null,null,null,null,null,null,null,null,null,null,null,null,null,null,null,null,null,null,null,null,null,null,null,null,null,null,null,3,null,null,{"$f":"組合届!CK119","v":"1971-11-01"},null,null,null,null,null,null,null,null,null,null,null,null,null,null,null,null,null,null,null,null,null,null,null,7,null,null,{"$f":"組合届!DL119","v":""}]
[]
[]
[null,null,null,null,null,null,null,null,null,null,null,null,null,null,null,null,null,null,null,null,null,null,null,null,null,null,null,null,null,null,null,null,null,null,null,null,null,null,null,null,null,null,null,null,null,null,null,null,null,null,null,null,null,null,null,null,null,null,null,null,null,null,null,null,null,null,null,null,null,null,null,null,null,null,null,null,null,null,null,null,null,null,null,null,null,null,null,null,null,null,null,null,null,null,null,null,null,null,null,null,null,null,null,null,null,null,null,null,null,null,null,null,8,null,null,{"$f":"組合届!DL122","v":""},null,null,{"$f":"組合届!DO122","v":""}]
[]
[]
[null,null,null,null,null,4,null,null,{"$f":"組合届!I125","v":""},null,null,null,null,null,null,null,null,null,null,null,null,null,null,null,null,null,null,null,null,null,null,null,5,null,null,"ｱ通貨",null,null,null,null,{"$f":"組合届!AO125","v":459638},null,null,null,null,null,null,null,null,null,null,null,null,null,null,null,null,null,null,null,"ｲ現物",null,null,null,null,{"$f":"組合届!BN125","v":0},null,null,null,null,null,null,null,null,null,null,null,null,null,null,null,null,null,null,null,6,null,null,{"$f":"組合届!CK125","v":459000},null,null,null,null,null,null,null,null,null,null,null,null,null,null,null,null,null,null,null,null,null,null,null,null,null,null,null,null,null,{"$f":"組合届!DO125","v":""}]
[]
[]
[null,null,null,null,null,null,null,null,null,null,null,null,null,null,null,null,null,null,null,null,null,null,null,null,null,null,null,null,null,null,null,null,null,null,null,null,null,null,null,null,null,null,null,null,null,null,null,null,null,null,null,null,null,null,null,null,null,null,null,null,null,null,null,null,null,null,null,null,null,null,null,null,null,null,null,null,null,null,null,null,null,null,null,null,null,null,null,null,null,null,null,null,null,null,null,null,null,null,null,null,null,null,null,null,null,null,null,null,null,null,null,null,null,null,null,null,null,null,{"$f":"組合届!DO128","v":""}]
[]
[]
[]
[]
["５",null,null,null,null,1,null,null,{"$f":"組合届!I133","v":41},null,null,null,null,null,null,null,null,null,null,null,{"$f":"組合届!U133","v":41},null,null,null,null,null,null,null,null,null,null,null,2,null,null,{"$f":"組合届!AJ133","v":"健保　五郎"},null,null,null,null,null,null,null,null,null,null,null,null,null,null,null,null,null,null,null,null,null,null,null,null,null,null,null,null,null,null,null,null,null,null,null,null,null,null,null,null,null,null,null,null,null,null,null,null,null,3,null,null,{"$f":"組合届!CK133","v":"1972-11-01"},null,null,null,null,null,null,null,null,null,null,null,null,null,null,null,null,null,null,null,null,null,null,null,7,null,null,{"$f":"組合届!DL133","v":""}]
[]
[]
[null,null,null,null,null,null,null,null,null,null,null,null,null,null,null,null,null,null,null,null,null,null,null,null,null,null,null,null,null,null,null,null,null,null,null,null,null,null,null,null,null,null,null,null,null,null,null,null,null,null,null,null,null,null,null,null,null,null,null,null,null,null,null,null,null,null,null,null,null,null,null,null,null,null,null,null,null,null,null,null,null,null,null,null,null,null,null,null,null,null,null,null,null,null,null,null,null,null,null,null,null,null,null,null,null,null,null,null,null,null,null,null,8,null,null,{"$f":"組合届!DL136","v":""},null,null,{"$f":"組合届!DO136","v":""}]
[]
[]
[null,null,null,null,null,4,null,null,{"$f":"組合届!I139","v":""},null,null,null,null,null,null,null,null,null,null,null,null,null,null,null,null,null,null,null,null,null,null,null,5,null,null,"ｱ通貨",null,null,null,null,{"$f":"組合届!AO139","v":1500000},null,null,null,null,null,null,null,null,null,null,null,null,null,null,null,null,null,null,null,"ｲ現物",null,null,null,null,{"$f":"組合届!BN139","v":0},null,null,null,null,null,null,null,null,null,null,null,null,null,null,null,null,null,null,null,6,null,null,{"$f":"組合届!CK139","v":1500000},null,null,null,null,null,null,null,null,null,null,null,null,null,null,null,null,null,null,null,null,null,null,null,null,null,null,null,null,null,{"$f":"組合届!DO139","v":""}]
[]
[]
[null,null,null,null,null,null,null,null,null,null,null,null,null,null,null,null,null,null,null,null,null,null,null,null,null,null,null,null,null,null,null,null,null,null,null,null,null,null,null,null,null,null,null,null,null,null,null,null,null,null,null,null,null,null,null,null,null,null,null,null,null,null,null,null,null,null,null,null,null,null,null,null,null,null,null,null,null,null,null,null,null,null,null,null,null,null,null,null,null,null,null,null,null,null,null,null,null,null,null,null,null,null,null,null,null,null,null,null,null,null,null,null,null,null,null,null,null,null,{"$f":"組合届!DO142","v":""}]
[]
[]
[]
[]
["６",null,null,null,null,1,null,null,{"$f":"組合届!I147","v":43},null,null,null,null,null,null,null,null,null,null,null,{"$f":"組合届!U147","v":42},null,null,null,null,null,null,null,null,null,null,null,2,null,null,{"$f":"組合届!AJ147","v":"健保　六郎"},null,null,null,null,null,null,null,null,null,null,null,null,null,null,null,null,null,null,null,null,null,null,null,null,null,null,null,null,null,null,null,null,null,null,null,null,null,null,null,null,null,null,null,null,null,null,null,null,null,3,null,null,{"$f":"組合届!CK147","v":"1973-11-01"},null,null,null,null,null,null,null,null,null,null,null,null,null,null,null,null,null,null,null,null,null,null,null,7,null,null,{"$f":"組合届!DL147","v":"987654321098"}]
[]
[]
[null,null,null,null,null,null,null,null,null,null,null,null,null,null,null,null,null,null,null,null,null,null,null,null,null,null,null,null,null,null,null,null,null,null,null,null,null,null,null,null,null,null,null,null,null,null,null,null,null,null,null,null,null,null,null,null,null,null,null,null,null,null,null,null,null,null,null,null,null,null,null,null,null,null,null,null,null,null,null,null,null,null,null,null,null,null,null,null,null,null,null,null,null,null,null,null,null,null,null,null,null,null,null,null,null,null,null,null,null,null,null,null,8,null,null,{"$f":"組合届!DL150","v":1},null,null,{"$f":"組合届!DO150","v":"70歳以上被用者"}]
[]
[]
[null,null,null,null,null,4,null,null,{"$f":"組合届!I153","v":""},null,null,null,null,null,null,null,null,null,null,null,null,null,null,null,null,null,null,null,null,null,null,null,5,null,null,"ｱ通貨",null,null,null,null,{"$f":"組合届!AO153","v":1000000},null,null,null,null,null,null,null,null,null,null,null,null,null,null,null,null,null,null,null,"ｲ現物",null,null,null,null,{"$f":"組合届!BN153","v":0},null,null,null,null,null,null,null,null,null,null,null,null,null,null,null,null,null,null,null,6,null,null,{"$f":"組合届!CK153","v":1000000},null,null,null,null,null,null,null,null,null,null,null,null,null,null,null,null,null,null,null,null,null,null,null,null,null,null,null,null,null,{"$f":"組合届!DO153","v":""}]
[]
[]
[null,null,null,null,null,null,null,null,null,null,null,null,null,null,null,null,null,null,null,null,null,null,null,null,null,null,null,null,null,null,null,null,null,null,null,null,null,null,null,null,null,null,null,null,null,null,null,null,null,null,null,null,null,null,null,null,null,null,null,null,null,null,null,null,null,null,null,null,null,null,null,null,null,null,null,null,null,null,null,null,null,null,null,null,null,null,null,null,null,null,null,null,null,null,null,null,null,null,null,null,null,null,null,null,null,null,null,null,null,null,null,null,null,null,null,null,null,null,{"$f":"組合届!DO156","v":""}]
[]
[]
[]
[]
["７",null,null,null,null,1,null,null,{"$f":"組合届!I161","v":44},null,null,null,null,null,null,null,null,null,null,null,{"$f":"組合届!U161","v":43},null,null,null,null,null,null,null,null,null,null,null,2,null,null,{"$f":"組合届!AJ161","v":"健保　七郎"},null,null,null,null,null,null,null,null,null,null,null,null,null,null,null,null,null,null,null,null,null,null,null,null,null,null,null,null,null,null,null,null,null,null,null,null,null,null,null,null,null,null,null,null,null,null,null,null,null,3,null,null,{"$f":"組合届!CK161","v":"1974-11-01"},null,null,null,null,null,null,null,null,null,null,null,null,null,null,null,null,null,null,null,null,null,null,null,7,null,null,{"$f":"組合届!DL161","v":""}]
[]
[]
[null,null,null,null,null,null,null,null,null,null,null,null,null,null,null,null,null,null,null,null,null,null,null,null,null,null,null,null,null,null,null,null,null,null,null,null,null,null,null,null,null,null,null,null,null,null,null,null,null,null,null,null,null,null,null,null,null,null,null,null,null,null,null,null,null,null,null,null,null,null,null,null,null,null,null,null,null,null,null,null,null,null,null,null,null,null,null,null,null,null,null,null,null,null,null,null,null,null,null,null,null,null,null,null,null,null,null,null,null,null,null,null,8,null,null,{"$f":"組合届!DL164","v":2},null,null,{"$f":"組合届!DO164","v":""}]
[]
[]
[null,null,null,null,null,4,null,null,{"$f":"組合届!I167","v":"2018-12-06"},null,null,null,null,null,null,null,null,null,null,null,null,null,null,null,null,null,null,null,null,null,null,null,5,null,null,"ｱ通貨",null,null,null,null,{"$f":"組合届!AO167","v":1200000},null,null,null,null,null,null,null,null,null,null,null,null,null,null,null,null,null,null,null,"ｲ現物",null,null,null,null,{"$f":"組合届!BN167","v":0},null,null,null,null,null,null,null,null,null,null,null,null,null,null,null,null,null,null,null,6,null,null,{"$f":"組合届!CK167","v":1702000},null,null,null,null,null,null,null,null,null,null,null,null,null,null,null,null,null,null,null,null,null,null,null,null,null,null,null,null,null,{"$f":"組合届!DO167","v":502385}]
[]
[]
[null,null,null,null,null,null,null,null,null,null,null,null,null,null,null,null,null,null,null,null,null,null,null,null,null,null,null,null,null,null,null,null,null,null,null,null,null,null,null,null,null,null,null,null,null,null,null,null,null,null,null,null,null,null,null,null,null,null,null,null,null,null,null,null,null,null,null,null,null,null,null,null,null,null,null,null,null,null,null,null,null,null,null,null,null,null,null,null,null,null,null,null,null,null,null,null,null,null,null,null,null,null,null,null,null,null,null,null,null,null,null,null,null,null,null,null,null,null,{"$f":"組合届!DO170","v":""}]
[]
[]
[]
[]
["８",null,null,null,null,1,null,null,{"$f":"組合届!I175","v":45},null,null,null,null,null,null,null,null,null,null,null,{"$f":"組合届!U175","v":45},null,null,null,null,null,null,null,null,null,null,null,2,null,null,{"$f":"組合届!AJ175","v":"健保　八郎"},null,null,null,null,null,null,null,null,null,null,null,null,null,null,null,null,null,null,null,null,null,null,null,null,null,null,null,null,null,null,null,null,null,null,null,null,null,null,null,null,null,null,null,null,null,null,null,null,null,3,null,null,{"$f":"組合届!CK175","v":"1975-11-01"},null,null,null,null,null,null,null,null,null,null,null,null,null,null,null,null,null,null,null,null,null,null,null,7,null,null,{"$f":"組合届!DL175","v":""}]
[]
[]
[null,null,null,null,null,null,null,null,null,null,null,null,null,null,null,null,null,null,null,null,null,null,null,null,null,null,null,null,null,null,null,null,null,null,null,null,null,null,null,null,null,null,null,null,null,null,null,null,null,null,null,null,null,null,null,null,null,null,null,null,null,null,null,null,null,null,null,null,null,null,null,null,null,null,null,null,null,null,null,null,null,null,null,null,null,null,null,null,null,null,null,null,null,null,null,null,null,null,null,null,null,null,null,null,null,null,null,null,null,null,null,null,8,null,null,{"$f":"組合届!DL178","v":3},null,null,{"$f":"組合届!DO178","v":""}]
[]
[]
[null,null,null,null,null,4,null,null,{"$f":"組合届!I181","v":"2018-12-07"},null,null,null,null,null,null,null,null,null,null,null,null,null,null,null,null,null,null,null,null,null,null,null,5,null,null,"ｱ通貨",null,null,null,null,{"$f":"組合届!AO181","v":1700000},null,null,null,null,null,null,null,null,null,null,null,null,null,null,null,null,null,null,null,"ｲ現物",null,null,null,null,{"$f":"組合届!BN181","v":0},null,null,null,null,null,null,null,null,null,null,null,null,null,null,null,null,null,null,null,6,null,null,{"$f":"組合届!CK181","v":1700000},null,null,null,null,null,null,null,null,null,null,null,null,null,null,null,null,null,null,null,null,null,null,null,null,null,null,null,null,null,{"$f":"組合届!DO181","v":""}]
[]
[]
[null,null,null,null,null,null,null,null,null,null,null,null,null,null,null,null,null,null,null,null,null,null,null,null,null,null,null,null,null,null,null,null,null,null,null,null,null,null,null,null,null,null,null,null,null,null,null,null,null,null,null,null,null,null,null,null,null,null,null,null,null,null,null,null,null,null,null,null,null,null,null,null,null,null,null,null,null,null,null,null,null,null,null,null,null,null,null,null,null,null,null,null,null,null,null,null,null,null,null,null,null,null,null,null,null,null,null,null,null,null,null,null,null,null,null,null,null,null,{"$f":"組合届!DO184","v":"2018-12-10"}]
[]
[]
[]
[]
["９",null,null,null,null,1,null,null,{"$f":"組合届!I189","v":52},null,null,null,null,null,null,null,null,null,null,null,{"$f":"組合届!U189","v":52},null,null,null,null,null,null,null,null,null,null,null,2,null,null,{"$f":"組合届!AJ189","v":"健保　九郎"},null,null,null,null,null,null,null,null,null,null,null,null,null,null,null,null,null,null,null,null,null,null,null,null,null,null,null,null,null,null,null,null,null,null,null,null,null,null,null,null,null,null,null,null,null,null,null,null,null,3,null,null,{"$f":"組合届!CK189","v":"1976-11-01"},null,null,null,null,null,null,null,null,null,null,null,null,null,null,null,null,null,null,null,null,null,null,null,7,null,null,{"$f":"組合届!DL189","v":""}]
[]
[]
[null,null,null,null,null,null,null,null,null,null,null,null,null,null,null,null,null,null,null,null,null,null,null,null,null,null,null,null,null,null,null,null,null,null,null,null,null,null,null,null,null,null,null,null,null,null,null,null,null,null,null,null,null,null,null,null,null,null,null,null,null,null,null,null,null,null,null,null,null,null,null,null,null,null,null,null,null,null,null,null,null,null,null,null,null,null,null,null,null,null,null,null,null,null,null,null,null,null,null,null,null,null,null,null,null,null,null,null,null,null,null,null,8,null,null,{"$f":"組合届!DL192","v":""},null,null,{"$f":"組合届!DO192","v":""}]
[]
[]
[null,null,null,null,null,4,null,null,{"$f":"組合届!I195","v":""},null,null,null,null,null,null,null,null,null,null,null,null,null,null,null,null,null,null,null,null,null,null,null,5,null,null,"ｱ通貨",null,null,null,null,{"$f":"組合届!AO195","v":1200000},null,null,null,null,null,null,null,null,null,null,null,null,null,null,null,null,null,null,null,"ｲ現物",null,null,null,null,{"$f":"組合届!BN195","v":0},null,null,null,null,null,null,null,null,null,null,null,null,null,null,null,null,null,null,null,6,null,null,{"$f":"組合届!CK195","v":1200000},null,null,null,null,null,null,null,null,null,null,null,null,null,null,null,null,null,null,null,null,null,null,null,null,null,null,null,null,null,{"$f":"組合届!DO195","v":""}]
[]
[]
[null,null,null,null,null,null,null,null,null,null,null,null,null,null,null,null,null,null,null,null,null,null,null,null,null,null,null,null,null,null,null,null,null,null,null,null,null,null,null,null,null,null,null,null,null,null,null,null,null,null,null,null,null,null,null,null,null,null,null,null,null,null,null,null,null,null,null,null,null,null,null,null,null,null,null,null,null,null,null,null,null,null,null,null,null,null,null,null,null,null,null,null,null,null,null,null,null,null,null,null,null,null,null,null,null,null,null,null,null,null,null,null,null,null,null,null,null,null,{"$f":"組合届!DO198","v":""}]
[]
[]
[]
[]
["１０",null,null,null,null,1,null,null,{"$f":"組合届!I203","v":60},null,null,null,null,null,null,null,null,null,null,null,{"$f":"組合届!U203","v":60},null,null,null,null,null,null,null,null,null,null,null,2,null,null,{"$f":"組合届!AJ203","v":"健保　十郎"},null,null,null,null,null,null,null,null,null,null,null,null,null,null,null,null,null,null,null,null,null,null,null,null,null,null,null,null,null,null,null,null,null,null,null,null,null,null,null,null,null,null,null,null,null,null,null,null,null,3,null,null,{"$f":"組合届!CK203","v":"1977-11-01"},null,null,null,null,null,null,null,null,null,null,null,null,null,null,null,null,null,null,null,null,null,null,null,7,null,null,{"$f":"組合届!DL203","v":""}]
[]
[]
[null,null,null,null,null,null,null,null,null,null,null,null,null,null,null,null,null,null,null,null,null,null,null,null,null,null,null,null,null,null,null,null,null,null,null,null,null,null,null,null,null,null,null,null,null,null,null,null,null,null,null,null,null,null,null,null,null,null,null,null,null,null,null,null,null,null,null,null,null,null,null,null,null,null,null,null,null,null,null,null,null,null,null,null,null,null,null,null,null,null,null,null,null,null,null,null,null,null,null,null,null,null,null,null,null,null,null,null,null,null,null,null,8,null,null,{"$f":"組合届!DL206","v":""},null,null,{"$f":"組合届!DO206","v":""}]
[]
[]
[null,null,null,null,null,4,null,null,{"$f":"組合届!I209","v":""},null,null,null,null,null,null,null,null,null,null,null,null,null,null,null,null,null,null,null,null,null,null,null,5,null,null,"ｱ通貨",null,null,null,null,{"$f":"組合届!AO209","v":5500000},null,null,null,null,null,null,null,null,null,null,null,null,null,null,null,null,null,null,null,"ｲ現物",null,null,null,null,{"$f":"組合届!BN209","v":0},null,null,null,null,null,null,null,null,null,null,null,null,null,null,null,null,null,null,null,6,null,null,{"$f":"組合届!CK209","v":5500000},null,null,null,null,null,null,null,null,null,null,null,null,null,null,null,null,null,null,null,null,null,null,null,null,null,null,null,null,null,{"$f":"組合届!DO209","v":""}]
[]
[]
[null,null,null,null,null,null,null,null,null,null,null,null,null,null,null,null,null,null,null,null,null,null,null,null,null,null,null,null,null,null,null,null,null,null,null,null,null,null,null,null,null,null,null,null,null,null,null,null,null,null,null,null,null,null,null,null,null,null,null,null,null,null,null,null,null,null,null,null,null,null,null,null,null,null,null,null,null,null,null,null,null,null,null,null,null,null,null,null,null,null,null,null,null,null,null,null,null,null,null,null,null,null,null,null,null,null,null,null,null,null,null,null,null,null,null,null,null,null,{"$f":"組合届!DO212","v":""}]

{"sheet":"健保総括表","index":7,"n_rows":171,"n_cols":132,"rows_kept":171,"cut":false,"hidden":false,"merged":[[15,16,18,31],[166,93,168,96],[169,25,178,31],[169,32,178,38],[169,39,178,44],[169,45,178,50],[169,71,178,77],[169,78,178,84],[169,85,178,90],[169,91,178,96],[166,74,168,77],[166,78,168,80],[166,81,168,84],[166,85,168,86],[166,87,168,90],[166,91,168,92],[166,41,168,44],[166,45,168,46],[166,47,168,50],[166,51,169,54],[166,55,169,70],[166,71,168,73],[153,5,156,24],[162,5,165,96],[166,0,178,4],[166,5,169,8],[166,9,169,24],[166,25,168,27],[166,28,168,31],[166,32,168,34],[166,35,168,38],[166,39,168,40],[118,0,156,4],[144,5,147,8],[144,9,147,24],[144,25,156,96],[148,5,152,24],[170,5,178,24],[170,51,178,70],[118,71,130,96],[122,5,126,24],[122,51,126,70],[127,5,130,24],[127,51,130,70],[131,5,134,8],[131,9,134,24],[131,25,143,96],[135,5,139,24],[140,5,143,24],[118,5,121,8],[118,9,121,24],[118,25,130,50],[118,51,121,54],[118,55,121,70],[100,5,103,8],[100,9,103,24],[100,25,112,50],[100,51,112,96],[104,5,108,24],[109,5,112,24],[74,0,112,4],[74,5,86,24],[74,25,86,50],[74,51,86,96],[87,5,90,8],[87,9,90,24],[87,25,99,50],[87,51,99,96],[91,5,95,24],[96,5,99,24],[55,71,64,130],[55,131,64,139],[56,0,59,69],[60,0,63,69],[40,5,40,15],[40,16,40,69],[41,5,46,15],[41,16,46,61],[41,62,46,69],[47,5,47,15],[47,16,47,69],[25,5,30,15],[26,16,32,69],[31,5,33,15],[33,16,33,69],[34,5,39,15],[34,16,39,69],[48,5,53,15],[48,16,53,69],[50,71,54,101],[3,131,12,141],[8,39,14,61],[9,0,12,27],[15,0,53,4],[15,5,18,15],[20,5,24,15],[20,16,22,69],[20,105,23,139],[1,7,7,72],[3,76,12,86],[3,87,12,97],[3,98,12,108],[3,109,12,119],[3,120,12,130],[0,76,2,86],[0,87,2,97],[0,98,2,108],[0,109,2,119],[0,120,2,130],[0,131,2,141],[23,16,25,18],[23,19,25,31],[23,32,25,69],[24,105,52,139]]}
[null,null,null,null,null,null,null,null,null,null,null,null,null,null,null,null,null,null,null,null,null,null,null,null,null,null,null,null,null,null,null,null,null,null,null,null,null,null,null,null,null,null,null,null,null,null,null,null,null,null,null,null,null,null,null,null,null,null,null,null,null,null,null,null,null,null,null,null,null,null,null,null,null,null,null,null,"常務理事",null,null,null,null,null,null,null,null,null,null,"事務長",null,null,null,null,null,null,null,null,null,null,"部長",null,null,null,null,null,null,null,null,null,null,"課長",null,null,null,null,null,null,null,null,null,null,"係長",null,null,null,null,null,null,null,null,null,null,"係"]
[null,null,null,null,null,null,null,"健康保険　被保険者賞与支払届"]
[]
[]
[]
[]
[]
[]
[null,null,null,null,null,null,null,null,null,null,null,null,null,null,null,null,null,null,null,null,null,null,null,null,null,null,null,null,null,null,null,null,null,null,null,null,null,null,null,"―総括表―"]
[{"$f":"基本情報登録!C2","v":"2021-04-22"}]
[]
[]
[]
[]
[]
["提出者記入欄",null,null,null,null,"記号",null,null,null,null,null,null,null,null,null,null,{"$f":"基本情報登録!C6","v":"532"}]
[]
[]
[]
[]
[null,null,null,null,null,null,null,null,null,null,null,null,null,null,null,null,null,null,null,null,null,null,null,null,null,null,null,null,null,null,null,null,null,null,null,null,null,null,null,null,null,null,null,null,null,null,null,null,null,null,null,null,null,null,null,null,null,null,null,null,null,null,null,null,null,null,null,null,null,null,null,null,null,null,null,null,null,null,null,null,null,null,null,null,null,null,null,null,null,null,null,null,null,null,null,null,null,null,null,null,null,null,null,null,null,"受付印"]
[]
[]
[null,null,null,null,null,null,null,null,null,null,null,null,null,null,null,null,"〒",null,null,{"$f":"基本情報登録!C7","v":"542-0066"}]
[]
[null,null,null,null,null,"事業所\n所在地"]
[null,null,null,null,null,null,null,null,null,null,null,null,null,null,null,null,{"$f":"基本情報登録!C8","v":"大阪府大阪市中央区瓦屋町2-3-1"}]
[]
[]
[]
[]
[]
[]
[]
[null,null,null,null,null,"事業所\n名称",null,null,null,null,null,null,null,null,null,null,{"$f":"基本情報登録!C9","v":"大阪自動車整備健康保険組合"}]
[]
[]
[]
[]
[]
[]
[null,null,null,null,null,"事業主\n氏名",null,null,null,null,null,null,null,null,null,null,{"$f":"基本情報登録!C10","v":"理事長　健保　太郎"}]
[]
[]
[]
[]
[]
[]
[null,null,null,null,null,"電話番号",null,null,null,null,null,null,null,null,null,null,{"$f":"基本情報登録!C11","v":"06-6762-6371"}]
[]
[null,null,null,null,null,null,null,null,null,null,null,null,null,null,null,null,null,null,null,null,null,null,null,null,null,null,null,null,null,null,null,null,null,null,null,null,null,null,null,null,null,null,null,null,null,null,null,null,null,null,null,null,null,null,null,null,null,null,null,null,null,null,null,null,null,null,null,null,null,null,null,"社会保険労務士記載欄"]
[]
[]
[]
[]
[]
["・この届書は、賞与の支給がなかった場合にも提出して下さい。"]
[]
[]
[]
["(賞与支給予定月に総括表の提出がない場合、後日お知らせが送付されます。）"]
[]
[]
[]
[]
[]
[]
[]
[]
[]
[]
[]
[]
[]
["賞与支払情報",null,null,null,null,"賞与支払予定月",null,null,null,null,null,null,null,null,null,null,null,null,null,null,null,null,null,null,null,"7.令和　　年　　月"]
[]
[]
[]
[]
[]
[]
[]
[]
[]
[]
[]
[]
[null,null,null,null,null,1,null,null,null,null,null,null,null,null,null,null,null,null,null,null,null,null,null,null,null,{"$f":"IF(ISNUMBER(総括表情報登録!C2),総括表情報登録!C2,\"7.令和　　年　　月\")","v":"7.令和　　年　　月"}]
[]
[]
[]
[null,null,null,null,null,"賞与支払年月"]
[]
[]
[]
[]
[]
[]
[]
[]
[null,null,null,null,null,2,null,null,null,null,null,null,null,null,null,null,null,null,null,null,null,null,null,null,null,{"$f":"IF(ISNUMBER(総括表情報登録!C2),\"0.支給\",\"1.不支給\")","v":"1.不支給"},null,null,null,null,null,null,null,null,null,null,null,null,null,null,null,null,null,null,null,null,null,null,null,null,null,"※「1.不支給」の場合、以下3～6欄への\n　記入は必要ありません。"]
[]
[]
[]
[null,null,null,null,null,"支給の有無"]
[]
[]
[]
[]
[]
[]
[]
[]
[]
[]
[]
[]
[]
["賞与支払情報内訳",null,null,null,null,3,null,null,null,null,null,null,null,null,null,null,null,null,null,null,null,null,null,null,null,{"$f":"IF(ISNUMBER(総括表情報登録!C5),総括表情報登録!C5,\"\")","v":""},null,null,null,null,null,null,null,null,null,null,null,null,null,null,null,null,null,null,null,null,null,null,null,null,null,4,null,null,null,null,null,null,null,null,null,null,null,null,null,null,null,null,null,null,null,{"$f":"IF(ISNUMBER(総括表情報登録!C3),総括表情報登録!C3,\"\")","v":""}]
[]
[]
[]
[null,null,null,null,null,"被保険者人数",null,null,null,null,null,null,null,null,null,null,null,null,null,null,null,null,null,null,null,null,null,null,null,null,null,null,null,null,null,null,null,null,null,null,null,null,null,null,null,null,null,null,null,null,null,"賞与支払人数"]
[]
[]
[]
[]
[]
[]
[]
[]
[null,null,null,null,null,5,null,null,null,null,null,null,null,null,null,null,null,null,null,null,null,null,null,null,null,{"$f":"IF(ISNUMBER(総括表情報登録!C2),SUM(入力!N2:N501),\"\")","v":""}]
[]
[]
[]
[null,null,null,null,null,"賞与支払総額"]
[]
[]
[]
[]
[]
[]
[]
[]
[null,null,null,null,null,6,null,null,null,null,null,null,null,null,null,null,null,null,null,null,null,null,null,null,null,{"$f":"IF(ISTEXT(総括表情報登録!C4),総括表情報登録!C4,\"\")","v":""}]
[]
[]
[]
[null,null,null,null,null,"賞与の名称"]
[]
[]
[]
[]
[]
[]
[]
[]
[]
[]
[]
[]
[]
[null,null,null,null,null,"・従前の賞与支払予定月を変更する場合は以下7も記入して下さい。"]
[]
[]
[]
["変更",null,null,null,null,7,null,null,null,null,null,null,null,null,null,null,null,null,null,null,null,null,null,null,null,null,null,null,"月",null,null,null,null,null,null,"月",null,null,null,null,null,"月",null,null,null,null,null,"月",null,null,null,null,null,null,null,null,null,null,null,null,null,null,null,null,null,null,null,null,null,null,null,null,null,null,"月",null,null,null,null,null,null,"月",null,null,null,null,null,"月",null,null,null,null,null,"月"]
[]
[]
[]
[null,null,null,null,null,"賞与支払予定月の変更",null,null,null,null,null,null,null,null,null,null,null,null,null,null,null,null,null,null,null,null,null,null,null,null,null,null,null,null,null,null,null,null,null,null,null,null,null,null,null,null,null,null,null,null,null,"賞与支払予定月\n変更前"]

{"sheet":"年金総括表","index":8,"n_rows":171,"n_cols":106,"rows_kept":171,"cut":false,"hidden":false,"merged":[[169,85,178,90],[169,91,178,96],[166,74,168,77],[166,78,168,80],[166,81,168,84],[166,85,168,86],[166,87,168,90],[166,91,168,92],[166,41,168,44],[166,45,168,46],[166,47,168,50],[166,51,169,54],[166,55,169,70],[166,71,168,73],[153,5,156,24],[162,5,165,96],[166,0,178,4],[166,5,169,8],[166,9,169,24],[166,25,168,27],[166,28,168,31],[166,32,168,34],[166,35,168,38],[166,39,168,40],[118,0,156,4],[144,5,147,8],[144,9,147,24],[144,25,156,96],[148,5,152,24],[170,5,178,24],[170,51,178,70],[166,93,168,96],[169,25,178,31],[169,32,178,38],[169,39,178,44],[169,45,178,50],[169,71,178,77],[169,78,178,84],[118,71,130,96],[122,5,126,24],[122,51,126,70],[127,5,130,24],[127,51,130,70],[131,5,134,8],[131,9,134,24],[131,25,143,96],[135,5,139,24],[140,5,143,24],[118,5,121,8],[118,9,121,24],[118,25,130,50],[118,51,121,54],[118,55,121,70],[100,5,103,8],[100,9,103,24],[100,25,112,50],[100,51,112,96],[104,5,108,24],[109,5,112,24],[74,0,112,4],[74,5,86,24],[74,25,86,50],[74,51,86,96],[87,5,90,8],[87,9,90,24],[87,25,99,50],[87,51,99,96],[91,5,95,24],[96,5,99,24],[50,71,54,101],[55,71,64,130],[55,131,64,139],[56,0,59,69],[60,0,63,69],[40,16,40,69],[41,5,46,15],[41,16,46,61],[41,62,46,69],[47,5,47,15],[47,16,47,69],[15,0,53,4],[15,5,18,15],[15,16,18,23],[15,24,18,31],[15,32,18,48],[15,49,18,69],[0,0,3,15],[0,26,6,91],[4,0,7,3],[4,4,7,7],[4,8,7,11],[4,12,7,15],[7,60,13,82],[9,0,12,27],[20,105,23,139],[23,16,25,18],[23,19,25,31],[23,32,25,69],[24,105,52,139],[25,5,30,15],[26,16,32,69],[31,5,33,15],[33,16,33,69],[34,5,39,15],[20,5,24,15],[20,16,22,69],[34,16,39,69],[40,5,40,15],[48,5,53,15],[48,16,53,69]]}
["様式コード",null,null,null,null,null,null,null,null,null,null,null,null,null,null,null,null,null,null,null,null,null,null,null,null,null,"厚生年金保険　被保険者賞与支払届"]
[]
[]
[]
[2,null,null,null,2,null,null,null,6,null,null,null,6]
[]
[]
[null,null,null,null,null,null,null,null,null,null,null,null,null,null,null,null,null,null,null,null,null,null,null,null,null,null,null,null,null,null,null,null,null,null,null,null,null,null,null,null,null,null,null,null,null,null,null,null,null,null,null,null,null,null,null,null,null,null,null,null,"―総括表―"]
[]
[{"$f":"基本情報登録!C2","v":"2021-04-22"}]
[]
[]
[]
[]
[]
["提出者記入欄",null,null,null,null,"記号",null,null,null,null,null,null,null,null,null,null,{"$f":"基本情報登録!C3","v":"南"},null,null,null,null,null,null,null,{"$f":"基本情報登録!C4","v":"ＷＥＤ"},null,null,null,null,null,null,null,"事業所番号",null,null,null,null,null,null,null,null,null,null,null,null,null,null,null,null,{"$f":"基本情報登録!C5","v":"00687"}]
[]
[]
[]
[]
[null,null,null,null,null,null,null,null,null,null,null,null,null,null,null,null,null,null,null,null,null,null,null,null,null,null,null,null,null,null,null,null,null,null,null,null,null,null,null,null,null,null,null,null,null,null,null,null,null,null,null,null,null,null,null,null,null,null,null,null,null,null,null,null,null,null,null,null,null,null,null,null,null,null,null,null,null,null,null,null,null,null,null,null,null,null,null,null,null,null,null,null,null,null,null,null,null,null,null,null,null,null,null,null,null,"受付印"]
[]
[]
[null,null,null,null,null,null,null,null,null,null,null,null,null,null,null,null,"〒",null,null,{"$f":"基本情報登録!C7","v":"542-0066"}]
[]
[null,null,null,null,null,"事業所\n所在地"]
[null,null,null,null,null,null,null,null,null,null,null,null,null,null,null,null,{"$f":"基本情報登録!C8","v":"大阪府大阪市中央区瓦屋町2-3-1"}]
[]
[]
[]
[]
[]
[]
[]
[null,null,null,null,null,"事業所\n名称",null,null,null,null,null,null,null,null,null,null,{"$f":"基本情報登録!C9","v":"大阪自動車整備健康保険組合"}]
[]
[]
[]
[]
[]
[]
[null,null,null,null,null,"事業主\n氏名",null,null,null,null,null,null,null,null,null,null,{"$f":"基本情報登録!C10","v":"理事長　健保　太郎"}]
[]
[]
[]
[]
[]
[]
[null,null,null,null,null,"電話番号",null,null,null,null,null,null,null,null,null,null,{"$f":"基本情報登録!C11","v":"06-6762-6371"}]
[]
[null,null,null,null,null,null,null,null,null,null,null,null,null,null,null,null,null,null,null,null,null,null,null,null,null,null,null,null,null,null,null,null,null,null,null,null,null,null,null,null,null,null,null,null,null,null,null,null,null,null,null,null,null,null,null,null,null,null,null,null,null,null,null,null,null,null,null,null,null,null,null,"社会保険労務士記載欄"]
[]
[]
[]
[]
[]
["・この届書は、賞与の支給がなかった場合にも提出して下さい。"]
[]
[]
[]
["(賞与支給予定月に総括表の提出がない場合、後日お知らせが送付されます。）"]
[]
[]
[]
[]
[]
[]
[]
[]
[]
[]
[]
[]
[]
["賞与支払情報",null,null,null,null,"賞与支払予定月",null,null,null,null,null,null,null,null,null,null,null,null,null,null,null,null,null,null,null,"7.令和　　年　　月"]
[]
[]
[]
[]
[]
[]
[]
[]
[]
[]
[]
[]
[null,null,null,null,null,1,null,null,null,null,null,null,null,null,null,null,null,null,null,null,null,null,null,null,null,{"$f":"健保総括表!Z88","v":"7.令和　　年　　月"}]
[]
[]
[]
[null,null,null,null,null,"賞与支払年月"]
[]
[]
[]
[]
[]
[]
[]
[]
[null,null,null,null,null,2,null,null,null,null,null,null,null,null,null,null,null,null,null,null,null,null,null,null,null,{"$f":"健保総括表!Z101","v":"1.不支給"},null,null,null,null,null,null,null,null,null,null,null,null,null,null,null,null,null,null,null,null,null,null,null,null,null,"※「1.不支給」の場合、以下3～6欄への\n　記入は必要ありません。"]
[]
[]
[]
[null,null,null,null,null,"支給の有無"]
[]
[]
[]
[]
[]
[]
[]
[]
[]
[]
[]
[]
[]
["賞与支払情報内訳",null,null,null,null,3,null,null,null,null,null,null,null,null,null,null,null,null,null,null,null,null,null,null,null,{"$f":"健保総括表!Z119","v":""},null,null,null,null,null,null,null,null,null,null,null,null,null,null,null,null,null,null,null,null,null,null,null,null,null,4,null,null,null,null,null,null,null,null,null,null,null,null,null,null,null,null,null,null,null,{"$f":"健保総括表!BT119","v":""}]
[]
[]
[]
[null,null,null,null,null,"被保険者人数",null,null,null,null,null,null,null,null,null,null,null,null,null,null,null,null,null,null,null,null,null,null,null,null,null,null,null,null,null,null,null,null,null,null,null,null,null,null,null,null,null,null,null,null,null,"賞与支払人数"]
[]
[]
[]
[]
[]
[]
[]
[]
[null,null,null,null,null,5,null,null,null,null,null,null,null,null,null,null,null,null,null,null,null,null,null,null,null,{"$f":"健保総括表!Z132","v":""}]
[]
[]
[]
[null,null,null,null,null,"賞与支払総額"]
[]
[]
[]
[]
[]
[]
[]
[]
[null,null,null,null,null,6,null,null,null,null,null,null,null,null,null,null,null,null,null,null,null,null,null,null,null,{"$f":"健保総括表!Z145","v":""}]
[]
[]
[]
[null,null,null,null,null,"賞与の名称"]
[]
[]
[]
[]
[]
[]
[]
[]
[]
[]
[]
[]
[]
[null,null,null,null,null,"・従前の賞与支払予定月を変更する場合は以下7も記入して下さい。"]
[]
[]
[]
["変更",null,null,null,null,7,null,null,null,null,null,null,null,null,null,null,null,null,null,null,null,null,null,null,null,null,null,null,"月",null,null,null,null,null,null,"月",null,null,null,null,null,"月",null,null,null,null,null,"月",null,null,null,null,null,null,null,null,null,null,null,null,null,null,null,null,null,null,null,null,null,null,null,null,null,null,"月",null,null,null,null,null,null,"月",null,null,null,null,null,"月",null,null,null,null,null,"月"]
[]
[]
[]
[null,null,null,null,null,"賞与支払予定月の変更",null,null,null,null,null,null,null,null,null,null,null,null,null,null,null,null,null,null,null,null,null,null,null,null,null,null,null,null,null,null,null,null,null,null,null,null,null,null,null,null,null,null,null,null,null,"賞与支払予定月\n変更前"]

{"sheet":"Sheet2","index":9,"n_rows":0,"n_cols":0,"rows_kept":0,"cut":false,"hidden":false,"merged":[]}